Workbook

Sheet Data Definition

Sheet All
B1: id | C1: time | D1: timegap | E1: x | F1: y | G1: buttonPressed | H1: state | I1: overlay | J1: mf | K1: age | L1: braille | M1: finger | N1: buttonExpected | O1: error | P1: mode | Q1: time | R1: altTime | S1: q1 | T1: q2 | U1: q3
A2: micro: | B2: 1 | C2: 1445362463863 | D2: 1445362463863 | E2: 342 | F2: 368 | G2: TestButton | H2: NotActive | I2: not | J2: f | K2: 60 | L2: brN | M2: 2.14
A3: micro: | B3: 1 | C3: 1445362465846 | D3: 1983 | E3: 343 | F3: 383 | G3: TestButton | H3: NotActive | I3: not | J3: f | K3: 60 | L3: brN | M3: 2.14
A4: micro: | B4: 1 | C4: 1445362466848 | D4: 1002 | E4: 0 | F4: 0 | G4: BEEP | H4: NotActive | I4: not | J4: f | K4: 60 | L4: brN | M4: 2.14
A5: micro: | B5: 1 | C5: 1445362548345 | D5: 81497 | E5: 343 | F5: 378 | G5: TestButton | H5: NotActive | I5: not | J5: f | K5: 60 | L5: brN | M5: 2.14
A6: micro: | B6: 1 | C6: 1445362549356 | D6: 1011 | E6: 0 | F6: 0 | G6: BEEP | H6: NotActive | I6: not | J6: f | K6: 60 | L6: brN | M6: 2.14
A7: micro: | B7: 1 | C7: 1445362573741 | D7: 24385 | E7: 650 | F7: 252 | G7: TimerButton | H7: NotActive | I7: not | J7: f | K7: 60 | L7: brN | M7: 2.14
A8: micro: | B8: 1 | C8: 1445362574753 | D8: 1012 | E8: 0 | F8: 0 | G8: BEEP | H8: SetTime | I8: not | J8: f | K8: 60 | L8: brN | M8: 2.14
A9: micro: | B9: 1 | C9: 1445362577977 | D9: 3224 | E9: 661 | F9: 321 | G9: 1Button | H9: SetTime | I9: not | J9: f | K9: 60 | L9: brN | M9: 2.14
A10: micro: | B10: 1 | C10: 1445362578989 | D10: 1012 | E10: 0 | F10: 0 | G10: BEEP | H10: SetTime | I10: not | J10: f | K10: 60 | L10: brN | M10: 2.14
A11: micro: | B11: 1 | C11: 1445362580170 | D11: 1181 | E11: 865 | F11: 317 | G11: 3Button | H11: SetTime | I11: not | J11: f | K11: 60 | L11: brN | M11: 2.14
A12: micro: | B12: 1 | C12: 1445362580331 | D12: 161 | E12: 849 | F12: 314 | G12: 3Button | H12: SetTime | I12: not | J12: f | K12: 60 | L12: brN | M12: 2.14
A13: micro: | B13: 1 | C13: 1445362581342 | D13: 1011 | E13: 0 | F13: 0 | G13: BEEP | H13: SetTime | I13: not | J13: f | K13: 60 | L13: brN | M13: 2.14
A14: micro: | B14: 1 | C14: 1445362583866 | D14: 2524 | E14: 637 | F14: 587 | G14: NoButton | H14: SetTime | I14: not | J14: f | K14: 60 | L14: brN | M14: 2.14
A15: micro: | B15: 1 | C15: 1445362584226 | D15: 360 | E15: 881 | F15: 513 | G15: NoButton | H15: SetTime | I15: not | J15: f | K15: 60 | L15: brN | M15: 2.14
A16: micro: | B16: 1 | C16: 1445362586089 | D16: 1863 | E16: 830 | F16: 343 | G16: 6Button | H16: SetTime | I16: not | J16: f | K16: 60 | L16: brN | M16: 2.14
A17: micro: | B17: 1 | C17: 1445362586930 | D17: 841 | E17: 813 | F17: 372 | G17: 6Button | H17: SetTime | I17: not | J17: f | K17: 60 | L17: brN | M17: 2.14
A18: micro: | B18: 1 | C18: 1445362587471 | D18: 541 | E18: 828 | F18: 397 | G18: 9Button | H18: SetTime | I18: not | J18: f | K18: 60 | L18: brN | M18: 2.14
A19: micro: | B19: 1 | C19: 1445362588733 | D19: 1262 | E19: 830 | F19: 343 | G19: 6Button | H19: SetTime | I19: not | J19: f | K19: 60 | L19: brN | M19: 2.14
A20: micro: | B20: 1 | C20: 1445362589424 | D20: 691 | E20: 865 | F20: 434 | G20: 9Button | H20: SetTime | I20: not | J20: f | K20: 60 | L20: brN | M20: 2.14
A21: micro: | B21: 1 | C21: 1445362590435 | D21: 1011 | E21: 0 | F21: 0 | G21: BEEP | H21: SetTime | I21: not | J21: f | K21: 60 | L21: brN | M21: 2.14
A22: micro: | B22: 1 | C22: 1445362595653 | D22: 5218 | E22: 718 | F22: 317 | G22: 2Button | H22: SetTime | I22: not | J22: f | K22: 60 | L22: brN | M22: 2.14
A23: micro: | B23: 1 | C23: 1445362596844 | D23: 1191 | E23: 838 | F23: 482 | G23: StartButton | H23: SetTime | I23: not | J23: f | K23: 60 | L23: brN | M23: 2.14
A24: micro: | B24: 1 | C24: 1445362597215 | D24: 371 | E24: 721 | F24: 482 | G24: 0Button | H24: Cooking | I24: not | J24: f | K24: 60 | L24: brN | M24: 2.14
A25: micro: | B25: 1 | C25: 1445362597566 | D25: 351 | E25: 821 | F25: 481 | G25: StartButton | H25: Cooking | I25: not | J25: f | K25: 60 | L25: brN | M25: 2.14
A26: micro: | B26: 1 | C26: 1445362597836 | D26: 270 | E26: 759 | F26: 473 | G26: 0Button | H26: Cooking | I26: not | J26: f | K26: 60 | L26: brN | M26: 2.14
A27: micro: | B27: 1 | C27: 1445362598847 | D27: 1011 | E27: 0 | F27: 0 | G27: BEEP | H27: Cooking | I27: not | J27: f | K27: 60 | L27: brN | M27: 2.14
A28: micro: | B28: 1 | C28: 1445362603194 | D28: 4347 | E28: 838 | F28: 270 | G28: NoButton | H28: Cooking | I28: not | J28: f | K28: 60 | L28: brN | M28: 2.14
A29: micro: | B29: 1 | C29: 1445362603494 | D29: 300 | E29: 637 | F29: 257 | G29: TimerButton | H29: Cooking | I29: not | J29: f | K29: 60 | L29: brN | M29: 2.14
A30: micro: | B30: 1 | C30: 1445362604516 | D30: 1022 | E30: 0 | F30: 0 | G30: BEEP | H30: Cooking | I30: not | J30: f | K30: 60 | L30: brN | M30: 2.14
A31: micro: | B31: 1 | C31: 1445362608732 | D31: 4216 | E31: 759 | F31: 365 | G31: 5Button | H31: Cooking | I31: not | J31: f | K31: 60 | L31: brN | M31: 2.14
A32: micro: | B32: 1 | C32: 1445362611425 | D32: 2693 | E32: 641 | F32: 468 | G32: CancelButton | H32: Cooking | I32: not | J32: f | K32: 60 | L32: brN | M32: 2.14
A33: micro: | B33: 1 | C33: 1445362616162 | D33: 4737 | E33: 635 | F33: 235 | G33: TimerButton | H33: NotActive | I33: not | J33: f | K33: 60 | L33: brN | M33: 2.14
A34: micro: | B34: 1 | C34: 1445362623713 | D34: 7551 | E34: 751 | F34: 312 | G34: 2Button | H34: SetTime | I34: not | J34: f | K34: 60 | L34: brN | M34: 2.14
A35: micro: | B35: 1 | C35: 1445362626908 | D35: 3195 | E35: 650 | F35: 231 | G35: TimerButton | H35: SetTime | I35: not | J35: f | K35: 60 | L35: brN | M35: 2.14
A36: micro: | B36: 1 | C36: 1445362627729 | D36: 821 | E36: 830 | F36: 343 | G36: 6Button | H36: SetTime | I36: not | J36: f | K36: 60 | L36: brN | M36: 2.14
A37: micro: | B37: 1 | C37: 1445362628079 | D37: 350 | E37: 830 | F37: 343 | G37: 6Button | H37: SetTime | I37: not | J37: f | K37: 60 | L37: brN | M37: 2.14
A38: micro: | B38: 1 | C38: 1445362628630 | D38: 551 | E38: 768 | F38: 598 | G38: NoButton | H38: SetTime | I38: not | J38: f | K38: 60 | L38: brN | M38: 2.14
A39: micro: | B39: 1 | C39: 1445362628891 | D39: 261 | E39: 1099 | F39: 636 | G39: NoButton | H39: SetTime | I39: not | J39: f | K39: 60 | L39: brN | M39: 2.14
A40: micro: | B40: 1 | C40: 1445362629061 | D40: 170 | E40: 630 | F40: 438 | G40: 7Button | H40: SetTime | I40: not | J40: f | K40: 60 | L40: brN | M40: 2.14
A41: micro: | B41: 1 | C41: 1445362629541 | D41: 480 | E41: 655 | F41: 482 | G41: CancelButton | H41: SetTime | I41: not | J41: f | K41: 60 | L41: brN | M41: 2.14
A42: micro: | B42: 1 | C42: 1445362630563 | D42: 1022 | E42: 0 | F42: 0 | G42: BEEP | H42: NotActive | I42: not | J42: f | K42: 60 | L42: brN | M42: 2.14
A43: micro: | B43: 1 | C43: 1445362631785 | D43: 1222 | E43: 651 | F43: 231 | G43: TimerButton | H43: NotActive | I43: not | J43: f | K43: 60 | L43: brN | M43: 2.14
A44: micro: | B44: 1 | C44: 1445362632796 | D44: 1011 | E44: 0 | F44: 0 | G44: BEEP | H44: SetTime | I44: not | J44: f | K44: 60 | L44: brN | M44: 2.14
A45: micro: | B45: 1 | C45: 1445362635029 | D45: 2233 | E45: 741 | F45: 319 | G45: 2Button | H45: SetTime | I45: not | J45: f | K45: 60 | L45: brN | M45: 2.14
A46: micro: | B46: 1 | C46: 1445362636712 | D46: 1683 | E46: 832 | F46: 292 | G46: 3Button | H46: SetTime | I46: not | J46: f | K46: 60 | L46: brN | M46: 2.14
A47: micro: | B47: 1 | C47: 1445362645124 | D47: 8412 | E47: 830 | F47: 343 | G47: 6Button | H47: SetTime | I47: not | J47: f | K47: 60 | L47: brN | M47: 2.14
A48: micro: | B48: 1 | C48: 1445362645675 | D48: 551 | E48: 630 | F48: 441 | G48: 7Button | H48: SetTime | I48: not | J48: f | K48: 60 | L48: brN | M48: 2.14
A49: micro: | B49: 1 | C49: 1445362646075 | D49: 400 | E49: 649 | F49: 421 | G49: 7Button | H49: SetTime | I49: not | J49: f | K49: 60 | L49: brN | M49: 2.14
A50: micro: | B50: 1 | C50: 1445362646366 | D50: 291 | E50: 698 | F50: 366 | G50: NoButton | H50: SetTime | I50: not | J50: f | K50: 60 | L50: brN | M50: 2.14
A51: micro: | B51: 1 | C51: 1445362646446 | D51: 80 | E51: 759 | F51: 309 | G51: 2Button | H51: SetTime | I51: not | J51: f | K51: 60 | L51: brN | M51: 2.14
A52: micro: | B52: 1 | C52: 1445362647317 | D52: 871 | E52: 836 | F52: 465 | G52: StartButton | H52: SetTime | I52: not | J52: f | K52: 60 | L52: brN | M52: 2.14
A53: micro: | B53: 1 | C53: 1445362647668 | D53: 351 | E53: 670 | F53: 482 | G53: CancelButton | H53: Cooking | I53: not | J53: f | K53: 60 | L53: brN | M53: 2.14
A54: micro: | B54: 1 | C54: 1445362648489 | D54: 821 | E54: 777 | F54: 364 | G54: NoButton | H54: NotActive | I54: not | J54: f | K54: 60 | L54: brN | M54: 2.14
A55: micro: | B55: 1 | C55: 1445362648849 | D55: 360 | E55: 761 | F55: 420 | G55: 8Button | H55: NotActive | I55: not | J55: f | K55: 60 | L55: brN | M55: 2.14
A56: micro: | B56: 1 | C56: 1445362649710 | D56: 861 | E56: 682 | F56: 327 | G56: 1Button | H56: NotActive | I56: not | J56: f | K56: 60 | L56: brN | M56: 2.14
A57: micro: | B57: 1 | C57: 1445362651493 | D57: 1783 | E57: 578 | F57: 184 | G57: NoButton | H57: NotActive | I57: not | J57: f | K57: 60 | L57: brN | M57: 2.14
A58: micro: | B58: 1 | C58: 1445362652174 | D58: 681 | E58: 830 | F58: 343 | G58: 6Button | H58: NotActive | I58: not | J58: f | K58: 60 | L58: brN | M58: 2.14
A59: micro: | B59: 1 | C59: 1445362653185 | D59: 1011 | E59: 0 | F59: 0 | G59: BEEP | H59: NotActive | I59: not | J59: f | K59: 60 | L59: brN | M59: 2.14
A60: micro: | B60: 1 | C60: 1445362654207 | D60: 1022 | E60: 661 | F60: 293 | G60: 1Button | H60: NotActive | I60: not | J60: f | K60: 60 | L60: brN | M60: 2.14
A61: micro: | B61: 1 | C61: 1445362655218 | D61: 1011 | E61: 0 | F61: 0 | G61: BEEP | H61: NotActive | I61: not | J61: f | K61: 60 | L61: brN | M61: 2.14
A62: micro: | B62: 1 | C62: 1445362655699 | D62: 481 | E62: 830 | F62: 343 | G62: 6Button | H62: NotActive | I62: not | J62: f | K62: 60 | L62: brN | M62: 2.14
A63: micro: | B63: 1 | C63: 1445362655899 | D63: 200 | E63: 866 | F63: 313 | G63: 3Button | H63: NotActive | I63: not | J63: f | K63: 60 | L63: brN | M63: 2.14
A64: micro: | B64: 1 | C64: 1445362656280 | D64: 381 | E64: 684 | F64: 328 | G64: 1Button | H64: NotActive | I64: not | J64: f | K64: 60 | L64: brN | M64: 2.14
A65: micro: | B65: 1 | C65: 1445362656580 | D65: 300 | E65: 830 | F65: 343 | G65: 6Button | H65: NotActive | I65: not | J65: f | K65: 60 | L65: brN | M65: 2.14
A66: micro: | B66: 1 | C66: 1445362657592 | D66: 1012 | E66: 0 | F66: 0 | G66: BEEP | H66: NotActive | I66: not | J66: f | K66: 60 | L66: brN | M66: 2.14
A67: micro: | B67: 1 | C67: 1445362659955 | D67: 2363 | E67: 721 | F67: 482 | G67: 0Button | H67: NotActive | I67: not | J67: f | K67: 60 | L67: brN | M67: 2.14
A68: micro: | B68: 1 | C68: 1445362660967 | D68: 1012 | E68: 0 | F68: 0 | G68: BEEP | H68: NotActive | I68: not | J68: f | K68: 60 | L68: brN | M68: 2.14
A69: micro: | B69: 1 | C69: 1445362666515 | D69: 5548 | E69: 769 | F69: 248 | G69: PowerButton | H69: NotActive | I69: not | J69: f | K69: 60 | L69: brN | M69: 2.14
A70: micro: | B70: 1 | C70: 1445362667536 | D70: 1021 | E70: 0 | F70: 0 | G70: BEEP | H70: SetPower | I70: not | J70: f | K70: 60 | L70: brN | M70: 2.14
A71: micro: | B71: 1 | C71: 1445362668087 | D71: 551 | E71: 637 | F71: 465 | G71: CancelButton | H71: SetPower | I71: not | J71: f | K71: 60 | L71: brN | M71: 2.14
A72: micro: | B72: 1 | C72: 1445362669098 | D72: 1011 | E72: 0 | F72: 0 | G72: BEEP | H72: NotActive | I72: not | J72: f | K72: 60 | L72: brN | M72: 2.14
A73: micro: | B73: 1 | C73: 1445362669729 | D73: 631 | E73: 354 | F73: 382 | G73: TestButton | H73: NotActive | I73: not | J73: f | K73: 60 | L73: brN | M73: 2.14
A74: micro: | B74: 1 | C74: 1445362670741 | D74: 1012 | E74: 0 | F74: 0 | G74: BEEP | H74: NotActive | I74: not | J74: f | K74: 60 | L74: brN | M74: 2.14
A75: micro: | B75: 1 | C75: 1445362672283 | D75: 1542 | E75: 651 | F75: 231 | G75: TimerButton | H75: NotActive | I75: not | J75: f | K75: 60 | L75: brN | M75: 2.14
A76: micro: | B76: 1 | C76: 1445362672904 | D76: 621 | E76: 651 | F76: 231 | G76: TimerButton | H76: SetTime | I76: not | J76: f | K76: 60 | L76: brN | M76: 2.14
A77: micro: | B77: 1 | C77: 1445362674927 | D77: 2023 | E77: 718 | F77: 313 | G77: 2Button | H77: SetTime | I77: not | J77: f | K77: 60 | L77: brN | M77: 2.14
A78: micro: | B78: 1 | C78: 1445362677791 | D78: 2864 | E78: 344 | F78: 379 | G78: TestButton | H78: SetTime | I78: not | J78: f | K78: 60 | L78: brN | M78: 2.14
A79: micro: | B79: 1 | C79: 1445362678802 | D79: 1011 | E79: 0 | F79: 0 | G79: BEEP | H79: SetTime | I79: not | J79: f | K79: 60 | L79: brN | M79: 2.14
A80: micro: | B80: 1 | C80: 1445362679824 | D80: 1022 | E80: 343 | F80: 380 | G80: TestButton | H80: SetTime | I80: not | J80: f | K80: 60 | L80: brN | M80: 2.14
A81: micro: | B81: 1 | C81: 1445362681256 | D81: 1432 | E81: 360 | F81: 395 | G81: TestButton | H81: SetTime | I81: not | J81: f | K81: 60 | L81: brN | M81: 2.14
A82: micro: | B82: 1 | C82: 1445362682267 | D82: 1011 | E82: 0 | F82: 0 | G82: BEEP | H82: SetTime | I82: not | J82: f | K82: 60 | L82: brN | M82: 2.14
A83: micro: | B83: 1 | C83: 1445362683339 | D83: 1072 | E83: 650 | F83: 231 | G83: TimerButton | H83: SetTime | I83: not | J83: f | K83: 60 | L83: brN | M83: 2.14
A84: micro: | B84: 1 | C84: 1445362683679 | D84: 340 | E84: 650 | F84: 231 | G84: TimerButton | H84: SetTime | I84: not | J84: f | K84: 60 | L84: brN | M84: 2.14
A85: micro: | B85: 1 | C85: 1445362762232 | D85: 78553 | E85: StartTest | F85: NotActive | G85: not | H85: f | I85: 10 | J85: brN | K85: 60 | M85: 2.14
A86: micro: | B86: 1 | C86: 1445362762783 | D86: 551 | E86: 329 | F86: 374 | G86: TestButton | H86: NotActive | I86: not | J86: f | K86: 60 | L86: brN | M86: 2.14
A87: micro: | B87: 1 | C87: 1445362763795 | D87: 1012 | E87: 0 | F87: 0 | G87: BEEP | H87: NotActive | I87: not | J87: f | K87: 60 | L87: brN | M87: 2.14
A88: micro: | B88: 1 | C88: 1445362765557 | D88: 1762 | E88: 650 | F88: 231 | G88: TimerButton | H88: NotActive | I88: not | J88: f | K88: 60 | L88: brN | M88: 2.14
A89: micro: | B89: 1 | C89: 1445362766288 | D89: 731 | E89: 759 | F89: 345 | G89: 5Button | H89: SetTime | I89: not | J89: f | K89: 60 | L89: brN | M89: 2.14
A90: micro: | B90: 1 | C90: 1445362766378 | D90: 90 | E90: 759 | F90: 369 | G90: 5Button | H90: SetTime | I90: not | J90: f | K90: 60 | L90: brN | M90: 2.14
A91: micro: | B91: 1 | C91: 1445362767390 | D91: 1012 | E91: 0 | F91: 0 | G91: BEEP | H91: SetTime | I91: not | J91: f | K91: 60 | L91: brN | M91: 2.14
A92: micro: | B92: 1 | C92: 1445362865671 | D92: 98281 | E92: 721 | F92: 482 | G92: 0Button | H92: SetTime | I92: not | J92: f | K92: 60 | L92: brN | M92: 2.14
A93: micro: | B93: 1 | C93: 1445362881243 | D93: 15572 | E93: 579 | F93: 556 | G93: NoButton | H93: SetTime | I93: not | J93: f | K93: 60 | L93: brN | M93: 2.14
A94: micro: | B94: 1 | C94: 1445363086509 | D94: 205266 | E94: 655 | F94: 468 | G94: CancelButton | H94: SetTime | I94: not | J94: f | K94: 60 | L94: brN | M94: 2.14
A95: micro: | B95: 1 | C95: 1445363108771 | D95: 22262 | E95: EndTest | F95: NotActive | G95: not | H95: f | I95: 10 | J95: brN | K95: 60 | M95: 2.14
A96: micro: | B96: 1 | C96: 1445363121819 | D96: 13048 | E96: 877 | F96: 312 | G96: NoButton | H96: NotActive | I96: not | J96: f | K96: 60 | L96: brN | M96: 2.14
A97: micro: | B97: 1 | C97: 1445363124283 | D97: 2464 | E97: 654 | F97: 231 | G97: TimerButton | H97: NotActive | I97: tac | J97: f | K97: 60 | L97: brN | M97: 2.14 | N97: TimerButton | P97: coffee | S97: 4 | T97: 4 | U97: 2
A98: micro: | B98: 1 | C98: 1445363125294 | D98: 1011 | E98: 0 | F98: 0 | G98: BEEP | H98: SetTime | I98: tac | J98: f | K98: 60 | L98: brN | M98: 2.14 | P98: coffee
A99: micro: | B99: 1 | C99: 1445363126156 | D99: 862 | E99: 647 | F99: 314 | G99: 1Button | H99: SetTime | I99: tac | J99: f | K99: 60 | L99: brN | M99: 2.14 | N99: 1Button | P99: coffee
A100: micro: | B100: 1 | C100: 1445363127167 | D100: 1011 | E100: 0 | F100: 0 | G100: BEEP | H100: SetTime | I100: tac | J100: f | K100: 60 | L100: brN | M100: 2.14 | P100: coffee
A101: micro: | B101: 1 | C101: 1445363127838 | D101: 671 | E101: 830 | F101: 342 | G101: 6Button | H101: SetTime | I101: tac | J101: f | K101: 60 | L101: brN | M101: 2.14 | P101: coffee
A102: micro: | B102: 1 | C102: 1445363127938 | D102: 100 | E102: 865 | F102: 314 | G102: 3Button | H102: SetTime | I102: tac | J102: f | K102: 60 | L102: brN | M102: 2.14 | N102: 3Button | P102: coffee
A103: micro: | B103: 1 | C103: 1445363128950 | D103: 1012 | E103: 0 | F103: 0 | G103: BEEP | H103: SetTime | I103: tac | J103: f | K103: 60 | L103: brN | M103: 2.14 | P103: coffee
A104: micro: | B104: 1 | C104: 1445363129290 | D104: 340 | E104: 830 | F104: 342 | G104: 6Button | H104: SetTime | I104: tac | J104: f | K104: 60 | L104: brN | M104: 2.14 | P104: coffee
A105: micro: | B105: 1 | C105: 1445363129520 | D105: 230 | E105: 759 | F105: 474 | G105: 0Button | H105: SetTime | I105: tac | J105: f | K105: 60 | L105: brN | M105: 2.14 | N105: 0Button | P105: coffee
A106: micro: | B106: 1 | C106: 1445363130532 | D106: 1012 | E106: 0 | F106: 0 | G106: BEEP | H106: SetTime | I106: tac | J106: f | K106: 60 | L106: brN | M106: 2.14 | P106: coffee
A107: micro: | B107: 1 | C107: 1445363131003 | D107: 471 | E107: 769 | F107: 254 | G107: PowerButton | H107: SetTime | I107: tac | J107: f | K107: 60 | L107: brN | M107: 2.14 | N107: PowerButton | P107: coffee
A108: micro: | B108: 1 | C108: 1445363132014 | D108: 1011 | E108: 0 | F108: 0 | G108: BEEP | H108: SetPower | I108: tac | J108: f | K108: 60 | L108: brN | M108: 2.14 | P108: coffee
A109: micro: | B109: 1 | C109: 1445363132385 | D109: 371 | E109: 739 | F109: 289 | G109: 2Button | H109: SetPower | I109: tac | J109: f | K109: 60 | L109: brN | M109: 2.14 | P109: coffee
A110: micro: | B110: 1 | C110: 1445363132525 | D110: 140 | E110: 681 | F110: 418 | G110: 7Button | H110: SetPower | I110: tac | J110: f | K110: 60 | L110: brN | M110: 2.14 | N110: 7Button | P110: coffee
A111: micro: | B111: 1 | C111: 1445363133536 | D111: 1011 | E111: 0 | F111: 0 | G111: BEEP | H111: SetPower | I111: tac | J111: f | K111: 60 | L111: brN | M111: 2.14 | P111: coffee
A112: micro: | B112: 1 | C112: 1445363134367 | D112: 831 | E112: 835 | F112: 494 | G112: StartButton | H112: SetPower | I112: tac | J112: f | K112: 60 | L112: brN | M112: 2.14 | N112: StartButton | P112: coffee
A113: micro: | B113: 1 | C113: 1445363135379 | D113: 1012 | E113: 0 | F113: 0 | G113: BEEP | H113: Cooking | I113: tac | J113: f | K113: 60 | L113: brN | M113: 2.14 | P113: coffee
A114: micro: | B114: 1 | C114: 1445363136310 | D114: 931 | E114: 652 | F114: 484 | G114: CancelButton | H114: Cooking | I114: tac | J114: f | K114: 60 | L114: brN | M114: 2.14 | N114: CancelButton | P114: coffee | Q114: =C114-C97 -> 12027 | R114: 12027
A115: micro: | B115: 1 | C115: 1445363137332 | D115: 1022 | E115: 0 | F115: 0 | G115: BEEP | H115: NotActive | I115: not | J115: f | K115: 60 | L115: brN | M115: 2.14
A116: micro: | B116: 1 | C116: 1445363138784 | D116: 1452 | E116: 1004 | F116: 201 | G116: NoButton | H116: NotActive | I116: not | J116: f | K116: 60 | L116: brN | M116: 2.14
A117: micro: | B117: 1 | C117: 1445363138914 | D117: 130 | E117: 1000 | F117: 128 | G117: NoButton | H117: NotActive | I117: not | J117: f | K117: 60 | L117: brN | M117: 2.14
A118: micro: | B118: 1 | C118: 1445363140306 | D118: 1392 | E118: 343 | F118: 390 | G118: TestButton | H118: NotActive | I118: not | J118: f | K118: 60 | L118: brN | M118: 2.14
A119: micro: | B119: 1 | C119: 1445363141317 | D119: 1011 | E119: 0 | F119: 0 | G119: BEEP | H119: NotActive | I119: not | J119: f | K119: 60 | L119: brN | M119: 2.14
A120: micro: | B120: 1 | C120: 1445363145824 | D120: 4507 | E120: 344 | F120: 405 | G120: TestButton | H120: NotActive | I120: not | J120: f | K120: 60 | L120: brN | M120: 2.14
A121: micro: | B121: 1 | C121: 1445363146835 | D121: 1011 | E121: 0 | F121: 0 | G121: BEEP | H121: NotActive | I121: not | J121: f | K121: 60 | L121: brN | M121: 2.14
A122: micro: | B122: 1 | C122: 1445363150491 | D122: 3656 | E122: 717 | F122: 307 | G122: 2Button | H122: NotActive | I122: not | J122: f | K122: 60 | L122: brN | M122: 2.14
A123: micro: | B123: 1 | C123: 1445363151532 | D123: 1041 | E123: 759 | F123: 311 | G123: 2Button | H123: NotActive | I123: not | J123: f | K123: 60 | L123: brN | M123: 2.14
A124: micro: | B124: 1 | C124: 1445363152544 | D124: 1012 | E124: 0 | F124: 0 | G124: BEEP | H124: NotActive | I124: not | J124: f | K124: 60 | L124: brN | M124: 2.14
A125: micro: | B125: 1 | C125: 1445363173864 | D125: 21320 | E125: 834 | F125: 462 | G125: StartButton | H125: NotActive | I125: not | J125: f | K125: 60 | L125: brN | M125: 2.14
A126: micro: | B126: 1 | C126: 1445363181615 | D126: 7751 | E126: 381 | F126: 396 | G126: NoButton | H126: NotActive | I126: not | J126: f | K126: 60 | L126: brN | M126: 2.14
A127: micro: | B127: 1 | C127: 1445363186102 | D127: 4487 | E127: 660 | F127: 376 | G127: 4Button | H127: NotActive | I127: not | J127: f | K127: 60 | L127: brN | M127: 2.14
A128: micro: | B128: 1 | C128: 1445363187023 | D128: 921 | E128: 831 | F128: 317 | G128: 3Button | H128: NotActive | I128: not | J128: f | K128: 60 | L128: brN | M128: 2.14
A129: micro: | B129: 1 | C129: 1445363188035 | D129: 1012 | E129: 0 | F129: 0 | G129: BEEP | H129: NotActive | I129: not | J129: f | K129: 60 | L129: brN | M129: 2.14
A130: micro: | B130: 1 | C130: 1445363189817 | D130: 1782 | E130: 661 | F130: 369 | G130: 4Button | H130: NotActive | I130: not | J130: f | K130: 60 | L130: brN | M130: 2.14
A131: micro: | B131: 1 | C131: 1445363189987 | D131: 170 | E131: 661 | F131: 365 | G131: 4Button | H131: NotActive | I131: not | J131: f | K131: 60 | L131: brN | M131: 2.14
A132: micro: | B132: 1 | C132: 1445363191359 | D132: 1372 | E132: 637 | F132: 492 | G132: CancelButton | H132: NotActive | I132: not | J132: f | K132: 60 | L132: brN | M132: 2.14
A133: micro: | B133: 1 | C133: 1445363192020 | D133: 661 | E133: 620 | F133: 459 | G133: CancelButton | H133: NotActive | I133: not | J133: f | K133: 10 | L133: brN | M133: 2.14
A134: micro: | B134: 1 | C134: 1445363192731 | D134: 711 | E134: 743 | F134: 350 | G134: 5Button | H134: NotActive | I134: not | J134: f | K134: 10 | L134: brN | M134: 2.14
A135: micro: | B135: 1 | C135: 1445363192962 | D135: 231 | E135: 742 | F135: 360 | G135: 5Button | H135: NotActive | I135: not | J135: f | K135: 10 | L135: brN | M135: 2.14
A136: micro: | B136: 1 | C136: 1445363193512 | D136: 550 | E136: 761 | F136: 363 | G136: 5Button | H136: NotActive | I136: not | J136: f | K136: 10 | L136: brN | M136: 2.14
A137: micro: | B137: 1 | C137: 1445363193713 | D137: 201 | E137: 761 | F137: 363 | G137: 5Button | H137: NotActive | I137: not | J137: f | K137: 10 | L137: brN | M137: 2.14
A138: micro: | B138: 1 | C138: 1445363194083 | D138: 370 | E138: 828 | F138: 369 | G138: 6Button | H138: NotActive | I138: not | J138: f | K138: 10 | L138: brN | M138: 2.14
A139: micro: | B139: 1 | C139: 1445363195796 | D139: 1713 | E139: 661 | F139: 369 | G139: 4Button | H139: NotActive | I139: not | J139: f | K139: 10 | L139: brN | M139: 2.14
A140: micro: | B140: 1 | C140: 1445363204959 | D140: 9163 | E140: 739 | F140: 370 | G140: 5Button | H140: NotActive | I140: not | J140: f | K140: 10 | L140: brN | M140: 2.14
A141: micro: | B141: 1 | C141: 1445363208284 | D141: 3325 | E141: 753 | F141: 484 | G141: 0Button | H141: NotActive | I141: not | J141: f | K141: 10 | L141: brN | M141: 2.14
A142: micro: | B142: 1 | C142: 1445363211699 | D142: 3415 | E142: 759 | F142: 380 | G142: 5Button | H142: NotActive | I142: not | J142: f | K142: 10 | L142: brN | M142: 2.14
A143: micro: | B143: 1 | C143: 1445363211859 | D143: 160 | E143: 748 | F143: 379 | G143: 5Button | H143: NotActive | I143: not | J143: f | K143: 10 | L143: brN | M143: 2.14
A144: micro: | B144: 1 | C144: 1445363212059 | D144: 200 | E144: 759 | F144: 361 | G144: 5Button | H144: NotActive | I144: not | J144: f | K144: 10 | L144: brN | M144: 2.14
A145: micro: | B145: 1 | C145: 1445363213211 | D145: 1152 | E145: 660 | F145: 369 | G145: 4Button | H145: NotActive | I145: not | J145: f | K145: 10 | L145: brN | M145: 2.14
A146: micro: | B146: 1 | C146: 1445363213431 | D146: 220 | E146: 762 | F146: 362 | G146: 5Button | H146: NotActive | I146: not | J146: f | K146: 10 | L146: brN | M146: 2.14
A147: micro: | B147: 1 | C147: 1445363213681 | D147: 250 | E147: 812 | F147: 369 | G147: 6Button | H147: NotActive | I147: not | J147: f | K147: 10 | L147: brN | M147: 2.14
A148: micro: | B148: 1 | C148: 1445363213902 | D148: 221 | E148: 746 | F148: 379 | G148: 5Button | H148: NotActive | I148: not | J148: f | K148: 10 | L148: brN | M148: 2.14
A149: micro: | B149: 1 | C149: 1445363214743 | D149: 841 | E149: 733 | F149: 244 | G149: PowerButton | H149: NotActive | I149: not | J149: f | K149: 10 | L149: brN | M149: 2.14
A150: micro: | B150: 1 | C150: 1445363215744 | D150: 1001 | E150: 655 | F150: 468 | G150: CancelButton | H150: SetPower | I150: not | J150: f | K150: 10 | L150: brN | M150: 2.14
A151: micro: | B151: 1 | C151: 1445363216035 | D151: 291 | E151: 672 | F151: 461 | G151: CancelButton | H151: NotActive | I151: not | J151: f | K151: 10 | L151: brN | M151: 2.14
A152: micro: | B152: 1 | C152: 1445363216445 | D152: 410 | E152: 654 | F152: 480 | G152: CancelButton | H152: NotActive | I152: not | J152: f | K152: 10 | L152: brN | M152: 2.14
A153: micro: | B153: 1 | C153: 1445363217467 | D153: 1022 | E153: 0 | F153: 0 | G153: BEEP | H153: NotActive | I153: not | J153: f | K153: 10 | L153: brN | M153: 2.14
A154: micro: | B154: 1 | C154: 1445363218158 | D154: 691 | E154: 749 | F154: 254 | G154: PowerButton | H154: NotActive | I154: not | J154: f | K154: 10 | L154: brN | M154: 2.14
A155: micro: | B155: 1 | C155: 1445363218578 | D155: 420 | E155: 832 | F155: 310 | G155: 3Button | H155: SetPower | I155: not | J155: f | K155: 10 | L155: brN | M155: 2.14
A156: micro: | B156: 1 | C156: 1445363218779 | D156: 201 | E156: 849 | F156: 344 | G156: 6Button | H156: SetPower | I156: not | J156: f | K156: 10 | L156: brN | M156: 2.14
A157: micro: | B157: 1 | C157: 1445363219810 | D157: 1031 | E157: 743 | F157: 311 | G157: 2Button | H157: SetPower | I157: not | J157: f | K157: 10 | L157: brN | M157: 2.14
A158: micro: | B158: 1 | C158: 1445363220111 | D158: 301 | E158: 658 | F158: 312 | G158: 1Button | H158: SetPower | I158: not | J158: f | K158: 10 | L158: brN | M158: 2.14
A159: micro: | B159: 1 | C159: 1445363220401 | D159: 290 | E159: 661 | F159: 366 | G159: 4Button | H159: SetPower | I159: not | J159: f | K159: 10 | L159: brN | M159: 2.14
A160: micro: | B160: 1 | C160: 1445363220762 | D160: 361 | E160: 740 | F160: 363 | G160: 5Button | H160: SetPower | I160: not | J160: f | K160: 10 | L160: brN | M160: 2.14
A161: micro: | B161: 1 | C161: 1445363220942 | D161: 180 | E161: 760 | F161: 361 | G161: 5Button | H161: SetPower | I161: not | J161: f | K161: 10 | L161: brN | M161: 2.14
A162: micro: | B162: 1 | C162: 1445363221403 | D162: 461 | E162: 831 | F162: 366 | G162: 6Button | H162: SetPower | I162: not | J162: f | K162: 10 | L162: brN | M162: 2.14
A163: micro: | B163: 1 | C163: 1445363221583 | D163: 180 | E163: 812 | F163: 379 | G163: 6Button | H163: SetPower | I163: not | J163: f | K163: 10 | L163: brN | M163: 2.14
A164: micro: | B164: 1 | C164: 1445363221933 | D164: 350 | E164: 750 | F164: 474 | G164: 0Button | H164: SetPower | I164: not | J164: f | K164: 10 | L164: brN | M164: 2.14
A165: micro: | B165: 1 | C165: 1445363243414 | D165: 21481 | E165: 343 | F165: 412 | G165: TestButton | H165: SetPower | I165: not | J165: f | K165: 10 | L165: brN | M165: 2.14
A166: micro: | B166: 1 | C166: 1445363244426 | D166: 1012 | E166: 0 | F166: 0 | G166: BEEP | H166: SetPower | I166: not | J166: f | K166: 10 | L166: brN | M166: 2.14
A167: micro: | B167: 1 | C167: 1445363246388 | D167: 1962 | E167: 733 | F167: 494 | G167: 0Button | H167: SetPower | I167: not | J167: f | K167: 10 | L167: brN | M167: 2.14
A168: micro: | B168: 1 | C168: 1445363247420 | D168: 1032 | E168: 674 | F168: 223 | G168: TimerButton | H168: SetPower | I168: not | J168: f | K168: 10 | L168: brN | M168: 2.14
A169: micro: | B169: 1 | C169: 1445363247710 | D169: 290 | E169: 670 | F169: 228 | G169: TimerButton | H169: SetTime | I169: not | J169: f | K169: 10 | L169: brN | M169: 2.14
A170: micro: | B170: 1 | C170: 1445363248722 | D170: 1012 | E170: 0 | F170: 0 | G170: BEEP | H170: SetTime | I170: not | J170: f | K170: 10 | L170: brN | M170: 2.14
A171: micro: | B171: 1 | C171: 1445363249263 | D171: 541 | E171: 768 | F171: 256 | G171: PowerButton | H171: SetTime | I171: not | J171: f | K171: 10 | L171: brN | M171: 2.14
A172: micro: | B172: 1 | C172: 1445363250274 | D172: 1011 | E172: 0 | F172: 0 | G172: BEEP | H172: SetPower | I172: not | J172: f | K172: 10 | L172: brN | M172: 2.14
A173: micro: | B173: 1 | C173: 1445363251766 | D173: 1492 | E173: 761 | F173: 358 | G173: 5Button | H173: SetPower | I173: not | J173: f | K173: 10 | L173: brN | M173: 2.14
A174: micro: | B174: 1 | C174: 1445363252417 | D174: 651 | E174: 660 | F174: 417 | G174: 7Button | H174: SetPower | I174: not | J174: f | K174: 10 | L174: brN | M174: 2.14
A175: micro: | B175: 1 | C175: 1445363253519 | D175: 1102 | E175: 759 | F175: 470 | G175: 0Button | H175: SetPower | I175: not | J175: f | K175: 10 | L175: brN | M175: 2.14
A176: micro: | B176: 1 | C176: 1445363254530 | D176: 1011 | E176: 0 | F176: 0 | G176: BEEP | H176: SetPower | I176: not | J176: f | K176: 10 | L176: brN | M176: 2.14
A177: micro: | B177: 1 | C177: 1445363255211 | D177: 681 | E177: 732 | F177: 263 | G177: PowerButton | H177: SetPower | I177: not | J177: f | K177: 10 | L177: brN | M177: 2.14
A178: micro: | B178: 1 | C178: 1445363256233 | D178: 1022 | E178: 0 | F178: 0 | G178: BEEP | H178: SetPower | I178: not | J178: f | K178: 10 | L178: brN | M178: 2.14
A179: micro: | B179: 1 | C179: 1445363256934 | D179: 701 | E179: 756 | F179: 469 | G179: 0Button | H179: SetPower | I179: not | J179: f | K179: 10 | L179: brN | M179: 2.14
A180: micro: | B180: 1 | C180: 1445363257014 | D180: 80 | E180: 758 | F180: 473 | G180: 0Button | H180: SetPower | I180: not | J180: f | K180: 10 | L180: brN | M180: 2.14
A181: micro: | B181: 1 | C181: 1445363257124 | D181: 110 | E181: 757 | F181: 476 | G181: 0Button | H181: SetPower | I181: not | J181: f | K181: 10 | L181: brN | M181: 2.14
A182: micro: | B182: 1 | C182: 1445363257504 | D182: 380 | E182: 758 | F182: 478 | G182: 0Button | H182: SetPower | I182: not | J182: f | K182: 10 | L182: brN | M182: 2.14
A183: micro: | B183: 1 | C183: 1445363257875 | D183: 371 | E183: 759 | F183: 476 | G183: 0Button | H183: SetPower | I183: not | J183: f | K183: 10 | L183: brN | M183: 2.14
A184: micro: | B184: 1 | C184: 1445363258526 | D184: 651 | E184: 758 | F184: 482 | G184: 0Button | H184: SetPower | I184: not | J184: f | K184: 10 | L184: brN | M184: 2.14
A185: micro: | B185: 1 | C185: 1445363262932 | D185: 4406 | E185: 762 | F185: 417 | G185: 8Button | H185: SetPower | I185: not | J185: f | K185: 10 | L185: brN | M185: 2.14
A186: micro: | B186: 1 | C186: 1445363263944 | D186: 1012 | E186: 0 | F186: 0 | G186: BEEP | H186: SetPower | I186: not | J186: f | K186: 10 | L186: brN | M186: 2.14
A187: micro: | B187: 1 | C187: 1445363274018 | D187: 10074 | E187: 647 | F187: 301 | G187: 1Button | H187: SetPower | I187: not | J187: f | K187: 10 | L187: brN | M187: 2.14
A188: micro: | B188: 1 | C188: 1445363274459 | D188: 441 | E188: 647 | F188: 421 | G188: 7Button | H188: SetPower | I188: not | J188: f | K188: 10 | L188: brN | M188: 2.14
A189: micro: | B189: 1 | C189: 1445363274609 | D189: 150 | E189: 659 | F189: 421 | G189: 7Button | H189: SetPower | I189: not | J189: f | K189: 10 | L189: brN | M189: 2.14
A190: micro: | B190: 1 | C190: 1445363275530 | D190: 921 | E190: 755 | F190: 434 | G190: 8Button | H190: SetPower | I190: not | J190: f | K190: 10 | L190: brN | M190: 2.14
A191: micro: | B191: 1 | C191: 1445363276782 | D191: 1252 | E191: 637 | F191: 263 | G191: TimerButton | H191: SetPower | I191: not | J191: f | K191: 10 | L191: brN | M191: 2.14
A192: micro: | B192: 1 | C192: 1445363277093 | D192: 311 | E192: 658 | F192: 331 | G192: 1Button | H192: SetTime | I192: not | J192: f | K192: 10 | L192: brN | M192: 2.14
A193: micro: | B193: 1 | C193: 1445363277834 | D193: 741 | E193: 680 | F193: 317 | G193: 1Button | H193: SetTime | I193: not | J193: f | K193: 10 | L193: brN | M193: 2.14
A194: micro: | B194: 1 | C194: 1445363278134 | D194: 300 | E194: 646 | F194: 314 | G194: 1Button | H194: SetTime | I194: not | J194: f | K194: 10 | L194: brN | M194: 2.14
A195: micro: | B195: 1 | C195: 1445363279146 | D195: 1012 | E195: 0 | F195: 0 | G195: BEEP | H195: SetTime | I195: not | J195: f | K195: 10 | L195: brN | M195: 2.14
A196: micro: | B196: 1 | C196: 1445363279666 | D196: 520 | E196: 761 | F196: 293 | G196: 2Button | H196: SetTime | I196: not | J196: f | K196: 10 | L196: brN | M196: 2.14
A197: micro: | B197: 1 | C197: 1445363280718 | D197: 1052 | E197: 856 | F197: 292 | G197: 3Button | H197: SetTime | I197: not | J197: f | K197: 10 | L197: brN | M197: 2.14
A198: micro: | B198: 1 | C198: 1445363281529 | D198: 811 | E198: 738 | F198: 381 | G198: 5Button | H198: SetTime | I198: not | J198: f | K198: 10 | L198: brN | M198: 2.14
A199: micro: | B199: 1 | C199: 1445363281920 | D199: 391 | E199: 743 | F199: 414 | G199: 8Button | H199: SetTime | I199: not | J199: f | K199: 10 | L199: brN | M199: 2.14
A200: micro: | B200: 1 | C200: 1445363282380 | D200: 460 | E200: 802 | F200: 460 | G200: StartButton | H200: SetTime | I200: not | J200: f | K200: 10 | L200: brN | M200: 2.14
... 4300 more rows

Sheet coffeeTime
B1: id | C1: time | D1: timegap | E1: x | F1: y | G1: buttonPressed | H1: state | I1: overlay | J1: mf | K1: age | L1: braille | M1: finger | N1: buttonExpected | O1: error | P1: mode | Q1: time | R1: altTime
B2: 7 | C2: 1445426950346 | D2: 871 | E2: 632 | F2: 471 | G2: CancelButton | H2: Cooking | I2: but | J2: f | K2: 20 | L2: brN | M2: 1.85 | N2: CancelButton | P2: coffee | Q2: 16594 | R2: 13340 | U2: but | V2: t-Test: Two-Sample Assuming Equal Variances | Z2: but | AA2: t-Test: Two-Sample Assuming Equal Variances
B3: 2 | C3: 1445371999835 | D3: 5167 | E3: 653 | F3: 474 | G3: CancelButton | H3: NotActive | I3: but | J3: m | K3: 50 | L3: brN | M3: 2.57 | N3: CancelButton | P3: coffee | Q3: 25066 | R3: 22302 | U3: time | Z3: altTime
B4: 11 | C4: 1445441376199 | D4: 2874 | E4: 642 | F4: 484 | G4: CancelButton | H4: Cooking | I4: but | J4: f | K4: 30 | L4: brY | M4: 1.77 | N4: CancelButton | P4: coffee | Q4: 19147 | R4: 19147 | W4: Variable 1 | X4: Variable 2 | AB4: Variable 1 | AC4: Variable 2
B5: 9 | C5: 1445433343419 | D5: 681 | E5: 616 | F5: 460 | G5: CancelButton | H5: Cooking | I5: but | J5: f | K5: 60 | L5: brY | M5: 1.77 | N5: CancelButton | P5: coffee | Q5: 31415 | R5: 29222 | V5: Mean | W5: 32277.85714 | X5: 22805.25 | AA5: Mean | AB5: 29780 | AC5: 20985.125
B6: 4 | C6: 1445466920660 | D6: 541 | E6: 621 | F6: 455 | G6: CancelButton | H6: NotActive | I6: but | J6: f | K6: 60 | L6: brY | M6: 1.79 | N6: CancelButton | P6: coffee | Q6: 28281 | R6: 28281 | V6: Variance | W6: 275042808.8 | X6: 30076494.21 | AA6: Variance | AB6: 230986603.7 | AC6: 33329848.12
B7: 3 | C7: 1445375638437 | D7: 1362 | E7: 670 | F7: 489 | G7: CancelButton | H7: Cooking | I7: but | J7: f | K7: 50 | L7: brY | M7: 2.04 | N7: CancelButton | P7: coffee | Q7: 24956 | R7: 22953 | V7: Observations | W7: 7 | X7: 8 | AA7: Observations | AB7: 7 | AC7: 8
B8: 5 | C8: 1445368496748 | D8: 1212 | E8: 651 | F8: 469 | G8: CancelButton | H8: NotActive | I8: but | J8: f | K8: 60 | L8: brY | M8: 2.06 | N8: CancelButton | P8: coffee | Q8: 16554 | R8: 15532 | V8: Pooled Variance | W8: 143137870.2 | AA8: Pooled Variance | AB8: 124556043
B9: 8 | C9: 1445429986732 | D9: 250 | E9: 650 | F9: 470 | G9: CancelButton | H9: SetPower | I9: but | J9: m | K9: 30 | L9: brY | M9: 2.25 | N9: CancelButton | P9: coffee | Q9: 20429 | R9: 17104 | V9: Hypothesized Mean Difference | W9: 0 | AA9: Hypothesized Mean Difference | AB9: 0
B10: 6 | C10: 1445423355867 | D10: 2283 | E10: 618 | F10: 453 | G10: CancelButton | H10: Cooking | I10: dot | J10: f | K10: 50 | L10: brN | M10: 1.77 | N10: CancelButton | P10: coffee | Q10: 26157 | R10: 21810 | V10: df | W10: 13 | AA10: df | AB10: 13
B11: 7 | C11: 1445426734355 | D11: 3334 | E11: 668 | F11: 485 | G11: CancelButton | H11: Cooking | I11: dot | J11: f | K11: 20 | L11: brN | M11: 1.85 | N11: CancelButton | P11: coffee | Q11: 24415 | R11: 22613 | V11: t Stat | W11: 1.529821058 | AA11: t Stat | AB11: 1.522634458
B12: 10 | C12: 1445438498441 | D12: 8151 | E12: 673 | F12: 471 | G12: CancelButton | H12: SetPower | I12: dot | J12: f | K12: 60 | L12: brN | M12: 2.16 | N12: CancelButton | P12: coffee | Q12: 69490 | R12: 63262 | V12: P(T<=t) one-tail | W12: 0.07501210429 | AA12: =SUMIFS(ct2ButtonTimes, ct2Overlay,Y12,ct2Mode,"coffee", ct2Age,"60") ->  | AB12: 0.07589930977
B13: 12 | C13: 1445418760289 | D13: 1512 | E13: 612 | F13: 485 | G13: CancelButton | H13: SetPower | I13: dot | J13: f | K13: 40 | L13: brP | M13: 2.11 | N13: CancelButton | P13: coffee | Q13: 24165 | R13: 23744 | V13: t Critical one-tail | W13: 1.770933383 | AA13: t Critical one-tail | AB13: 1.770933383
B14: 3 | C14: 1445376348869 | D14: 1983 | E14: 630 | F14: 465 | G14: CancelButton | H14: Cooking | I14: dot | J14: f | K14: 50 | L14: brY | M14: 2.04 | N14: CancelButton | P14: coffee | Q14: 29543 | R14: 29393 | V14: P(T<=t) two-tail | W14: 0.1500242086 | AA14: P(T<=t) two-tail | AB14: 0.1517986195
B15: 5 | C15: 1445368272946 | D15: 470 | E15: 617 | F15: 468 | G15: CancelButton | H15: Cooking | I15: dot | J15: f | K15: 60 | L15: brY | M15: 2.06 | N15: CancelButton | P15: coffee | Q15: 28941 | R15: 28420 | V15: t Critical two-tail | W15: 2.160368652 | AA15: t Critical two-tail | AB15: 2.160368652
B16: 8 | C16: 1445429656277 | D16: 781 | E16: 669 | F16: 485 | G16: CancelButton | H16: Cooking | I16: dot | J16: m | K16: 30 | L16: brY | M16: 2.25 | N16: CancelButton | P16: coffee | Q16: 23234 | R16: 19218
B17: 6 | C17: 1445423842707 | D17: 1021 | E17: 618 | F17: 486 | G17: CancelButton | H17: SetPower | I17: tac | J17: f | K17: 50 | L17: brN | M17: 1.77 | N17: CancelButton | P17: coffee | Q17: 21951 | R17: 21951 | U17: tac | V17: t-Test: Two-Sample Assuming Equal Variances | Z17: tac | AA17: t-Test: Two-Sample Assuming Equal Variances
B18: 7 | C18: 1445426304728 | D18: 1262 | E18: 651 | F18: 477 | G18: CancelButton | H18: Cooking | I18: tac | J18: f | K18: 20 | L18: brN | M18: 1.85 | N18: CancelButton | P18: coffee | Q18: 13340 | R18: 13340 | U18: time | Z18: alttime
B19: 1 | C19: 1445363136310 | D19: 931 | E19: 652 | F19: 484 | G19: CancelButton | H19: Cooking | I19: tac | J19: f | K19: 60 | L19: brN | M19: 2.14 | N19: CancelButton | P19: coffee | Q19: 12027 | R19: 12027 | W19: Variable 1 | X19: Variable 2 | AB19: Variable 1 | AC19: Variable 2
B20: 10 | C20: 1445438717496 | D20: 991 | E20: 651 | F20: 481 | G20: CancelButton | H20: NotActive | I20: tac | J20: f | K20: 60 | L20: brN | M20: 2.16 | N20: CancelButton | P20: coffee | Q20: 36332 | R20: 34991 | T20: tac SD | U20: =STDEV(Q20:Q28)/1000 -> 5.782922224 | V20: Mean | W20: 32277.85714 | X20: 21196.33333 | AA20: Mean | AB20: 29780 | AC20: 20591.33333
B21: 2 | C21: 1445372167697 | D21: 2123 | E21: 634 | F21: 478 | G21: CancelButton | H21: SetPower | I21: tac | J21: m | K21: 50 | L21: brN | M21: 2.57 | N21: CancelButton | P21: coffee | Q21: 23134 | R21: 21172 | T21: dot SD | U21: =STDEV(dotTime)/1000 -> 16.58441464 | V21: Variance | W21: 275042808.8 | X21: 40301985.88 | AA21: Variance | AB21: 230986603.7 | AC21: 37276026.42
B22: 12 | C22: 1445419555803 | D22: 751 | E22: 629 | F22: 495 | G22: CancelButton | H22: Cooking | I22: tac | J22: f | K22: 40 | L22: brP | M22: 2.11 | N22: CancelButton | P22: coffee | Q22: 19638 | R22: 18957 | V22: Observations | W22: 7 | X22: 12 | AA22: Observations | AB22: 7 | AC22: 12
B23: 11 | C23: 1445441048899 | D23: 2364 | E23: 642 | F23: 485 | G23: CancelButton | H23: Cooking | I23: tac | J23: f | K23: 30 | L23: brY | M23: 1.77 | N23: CancelButton | P23: coffee | Q23: 26068 | R23: 26068 | V23: Pooled Variance | W23: 123151688.1 | AA23: Pooled Variance | AB23: 105644465.5
B24: 9 | C24: 1445433142330 | D24: 842 | E24: 616 | F24: 456 | G24: CancelButton | H24: Cooking | I24: tac | J24: f | K24: 60 | L24: brY | M24: 1.77 | N24: CancelButton | P24: coffee | Q24: 24546 | R24: 24316 | V24: Hypothesized Mean Difference | W24: 0 | AA24: Hypothesized Mean Difference | AB24: 0
B25: 4 | C25: 1445466646415 | D25: 1161 | E25: 638 | F25: 476 | G25: CancelButton | H25: Cooking | I25: tac | J25: f | K25: 60 | L25: brY | M25: 1.79 | N25: CancelButton | P25: coffee | Q25: 21360 | R25: 20258 | V25: df | W25: 17 | AA25: df | AB25: 17
B26: 3 | C26: 1445376109355 | D26: 1903 | E26: 630 | F26: 485 | G26: CancelButton | H26: Cooking | I26: tac | J26: f | K26: 50 | L26: brY | M26: 2.04 | N26: CancelButton | P26: coffee | Q26: 20620 | R26: 19908 | V26: t Stat | W26: 2.099626966 | AA26: t Stat | AB26: 1.879714816
B27: 5 | C27: 1445368646363 | D27: 601 | E27: 617 | F27: 496 | G27: CancelButton | H27: NotActive | I27: tac | J27: f | K27: 60 | L27: brY | M27: 2.06 | N27: CancelButton | P27: coffee | Q27: 18536 | R27: 18156 | V27: P(T<=t) one-tail | W27: 0.02549832645 | AA27: P(T<=t) one-tail | AB27: 0.03869917911
B28: 8 | C28: 1445430218355 | D28: 1963 | E28: 633 | F28: 491 | G28: CancelButton | H28: NotActive | I28: tac | J28: m | K28: 30 | L28: brY | M28: 2.25 | N28: CancelButton | P28: coffee | Q28: 16804 | R28: 15952 | V28: t Critical one-tail | W28: 1.739606716 | AA28: t Critical one-tail | AB28: 1.739606716
B29: 6 | C29: 1445423626877 | D29: 911 | E29: 617 | F29: 463 | G29: CancelButton | H29: Cooking | I29: tou | J29: f | K29: 50 | L29: brN | M29: 1.77 | N29: CancelButton | P29: coffee | Q29: 27740 | R29: 27740 | V29: P(T<=t) two-tail | W29: 0.05099665291 | AA29: P(T<=t) two-tail | AB29: 0.07739835823
B30: 7 | C30: 1445426518745 | D30: 2253 | E30: 670 | F30: 461 | G30: CancelButton | H30: Cooking | I30: tou | J30: f | K30: 20 | L30: brN | M30: 1.85 | N30: CancelButton | P30: coffee | Q30: 21270 | R30: 15552 | V30: t Critical two-tail | W30: 2.109815559 | AA30: t Critical two-tail | AB30: 2.109815559
B31: 1 | C31: 1445365149825 | D31: 1562 | E31: 620 | F31: 466 | G31: CancelButton | H31: Cooking | I31: tou | J31: f | K31: 60 | L31: brN | M31: 2.14 | N31: CancelButton | P31: coffee | Q31: 45255 | R31: 39866
B32: 10 | C32: 1445437651323 | D32: 1131 | E32: 625 | F32: 477 | G32: CancelButton | H32: SetPower | I32: tou | J32: f | K32: 60 | L32: brN | M32: 2.16 | N32: CancelButton | P32: coffee | Q32: 64693 | R32: 61208
B33: 2 | C33: 1445371489251 | D33: 340 | E33: 672 | F33: 484 | G33: CancelButton | H33: SetPower | I33: tou | J33: m | K33: 50 | L33: brN | M33: 2.57 | N33: CancelButton | P33: coffee | Q33: 20680 | R33: 19239 | U33: tou | V33: t-Test: Two-Sample Assuming Equal Variances | Z33: tou | AA33: t-Test: Two-Sample Assuming Equal Variances
B34: 11 | C34: 1445440803496 | D34: 2584 | E34: 659 | F34: 477 | G34: CancelButton | H34: Cooking | I34: tou | J34: f | K34: 30 | L34: brY | M34: 1.77 | N34: CancelButton | P34: coffee | Q34: 32367 | R34: 26619 | U34: time | Z34: alttime
B35: 9 | C35: 1445433619355 | D35: 1962 | E35: 632 | F35: 461 | G35: CancelButton | H35: Cooking | I35: tou | J35: f | K35: 60 | L35: brY | M35: 1.77 | N35: CancelButton | P35: coffee | Q35: 32196 | R35: 32196 | W35: Variable 1 | X35: Variable 2 | AB35: Variable 1 | AC35: Variable 2
B36: 4 | C36: 1445465896868 | D36: 2194 | E36: 638 | F36: 456 | G36: CancelButton | H36: Cooking | I36: tou | J36: f | K36: 60 | L36: brY | M36: 1.79 | N36: CancelButton | P36: coffee | Q36: 25517 | R36: 25517 | V36: Mean | W36: 32277.85714 | X36: 31650.18182 | AA36: Mean | AB36: 29780 | AC36: 28879.90909
B37: 3 | C37: 1445375924589 | D37: 1843 | E37: 630 | F37: 484 | G37: CancelButton | H37: Cooking | I37: tou | J37: f | K37: 50 | L37: brY | M37: 2.04 | N37: CancelButton | P37: coffee | Q37: 24946 | R37: 24265 | V37: Variance | W37: 275042808.8 | X37: 166183374.4 | AA37: Variance | AB37: 230986603.7 | AC37: 156693187.3
B38: 5 | C38: 1445368854563 | D38: 1132 | E38: 635 | F38: 468 | G38: CancelButton | H38: Cooking | I38: tou | J38: f | K38: 60 | L38: brY | M38: 2.06 | N38: CancelButton | P38: coffee | Q38: 24506 | R38: 24336 | V38: Observations | W38: 7 | X38: 11 | AA38: Observations | AB38: 7 | AC38: 11
B39: 8 | C39: 1445429345590 | D39: 2343 | E39: 617 | F39: 478 | G39: CancelButton | H39: Cooking | I39: tou | J39: m | K39: 30 | L39: brY | M39: 2.25 | N39: CancelButton | P39: coffee | Q39: 28982 | R39: 21141 | V39: Pooled Variance | W39: 207005662.3 | AA39: Pooled Variance | AB39: 184553218.4
V40: Hypothesized Mean Difference | W40: 0 | AA40: Hypothesized Mean Difference | AB40: 0
V41: df | W41: 16 | AA41: df | AB41: 16
V42: t Stat | W42: 0.09023043548 | AA42: t Stat | AB42: 0.1370360001
V43: P(T<=t) one-tail | W43: 0.4646120026 | AA43: P(T<=t) one-tail | AB43: 0.4463559574
V44: t Critical one-tail | W44: 1.745883669 | AA44: t Critical one-tail | AB44: 1.745883669
V45: P(T<=t) two-tail | W45: 0.9292240052 | AA45: P(T<=t) two-tail | AB45: 0.8927119149
V46: t Critical two-tail | W46: 2.119905285 | AA46: t Critical two-tail | AB46: 2.119905285
U49: >59 | V49: =SUMIF($K$2:$K$39,">59",$Q$2:$Q$39) -> 479649 | W49: =COUNTIF(K2:K39,">59") -> 15 | X49: =(V49/W49)/1000 -> 31.9766
U50: <60 | V50: =SUMIF($K$2:$K$39,"<60",$Q$2:$Q$39) -> 531246 | W50: =COUNTIF(K3:K40,"<60") -> 22 | X50: =(V50/W50)/1000 -> 24.14754545
U53: Overall
U55: overlay | V55: count | W55: total time | X55: Avg time | Y55: per button | AA55: age t-test
U56: but | V56: =COUNTIF(coffeeTimeOverlay,U56) -> 8 | W56: =SUMIFS(coffeeTimeTime, coffeeTimeOverlay,U56) -> 182442 | X56: =(W56/V56)/1000 -> 22.80525 | AA56: t-Test: Two-Sample Assuming Equal Variances
U57: dot | V57: =COUNTIF(coffeeTimeOverlay,U57) -> 7 | W57: =SUMIFS(coffeeTimeTime, coffeeTimeOverlay,U57) -> 225945 | X57: =(W57/V57)/1000 -> 32.27785714
U58: tac | V58: =COUNTIF(coffeeTimeOverlay,U58) -> 12 | W58: =SUMIFS(coffeeTimeTime, coffeeTimeOverlay,U58) -> 254356 | X58: 21.19633333 | AB58: Variable 1 | AC58: Variable 2
U59: tou | V59: =COUNTIF(coffeeTimeOverlay,U59) -> 11 | W59: =SUMIFS(coffeeTimeTime, coffeeTimeOverlay,U59) -> 348152 | X59: 31.65018182 | AA59: Mean | AB59: 23097.65217 | AC59: 31976.6
V60: =SUM(V56:V59) -> 38 | W60: 1010895 | X60: 26.6025 | AA60: Variance | AB60: 20178110.24 | AC60: 269863889.3
AA61: Observations | AB61: 23 | AC61: 15
U62: older | AA62: Pooled Variance | AB62: 117278135.4
U63: but | V63: =COUNTIFS(coffeeTimeOverlay,U63,coffeeTimeAge,">59") -> 3 | W63: =SUMIFS(coffeeTimeTime,coffeeTimeOverlay,U63,coffeeTimeAge,">59") -> 76250 | X63: =(W63/V63)/1000 -> 25.41666667 | AA63: Hypothesized Mean Difference | AB63: 0
U64: dot | V64: =COUNTIFS(coffeeTimeOverlay,U64,coffeeTimeAge,">59") -> 2 | W64: =SUMIFS(coffeeTimeTime,coffeeTimeOverlay,U64,coffeeTimeAge,">59") -> 98431 | X64: 49.2155 | AA64: df | AB64: 36
U65: tac | V65: =COUNTIFS(coffeeTimeOverlay,U65,coffeeTimeAge,">59") -> 5 | W65: =SUMIFS(coffeeTimeTime,coffeeTimeOverlay,U65,coffeeTimeAge,">59") -> 112801 | X65: 22.5602 | AA65: t Stat | AB65: -2.470419615
U66: tou | V66: =COUNTIFS(coffeeTimeOverlay,U66,coffeeTimeAge,">59") -> 5 | W66: =SUMIFS(coffeeTimeTime,coffeeTimeOverlay,U66,coffeeTimeAge,">59") -> 192167 | X66: 38.4334 | AA66: P(T<=t) one-tail | AB66: 0.009183238992
V67: =SUM(V63:V66) -> 15 | W67: =SUM(W63:W66) -> 479649 | X67: 31.9766 | AA67: t Critical one-tail | AB67: 1.688297694
U68: younger | AA68: P(T<=t) two-tail | AB68: 0.01836647798
U69: but | V69: =COUNTIFS(coffeeTimeOverlay,U69,coffeeTimeAge,"<59") -> 5 | W69: =SUMIFS(coffeeTimeTime,coffeeTimeOverlay,U69,coffeeTimeAge,"<59") -> 106192 | X69: 21.2384 | AA69: t Critical two-tail | AB69: 2.028093987
U70: dot | V70: =COUNTIFS(coffeeTimeOverlay,U70,coffeeTimeAge,"<59") -> 5 | W70: =SUMIFS(coffeeTimeTime,coffeeTimeOverlay,U70,coffeeTimeAge,"<59") -> 127514 | X70: 25.5028
U71: tac | V71: =COUNTIFS(coffeeTimeOverlay,U71,coffeeTimeAge,"<59") -> 7 | W71: =SUMIFS(coffeeTimeTime,coffeeTimeOverlay,U71,coffeeTimeAge,"<59") -> 141555 | X71: 20.22214286
U72: tou | V72: =COUNTIFS(coffeeTimeOverlay,U72,coffeeTimeAge,"<59") -> 6 | W72: =SUMIFS(coffeeTimeTime,coffeeTimeOverlay,U72,coffeeTimeAge,"<59") -> 155985 | X72: 25.9975
V73: =SUM(V69:V72) -> 23 | W73: 531246 | X73: 23.09765217
U75: finger >2 | AA75: finger t-test
U76: but | V76: =COUNTIFS(coffeeTimeOverlay,U76,coffeeTimeFinger,">2.05") -> 3 | W76: =SUMIFS(coffeeTimeTime,coffeeTimeOverlay,U76,coffeeTimeFinger,">2.05") -> 62049 | X76: =(W76/V76)/1000 -> 20.683 | AA76: t-Test: Two-Sample Assuming Equal Variances
U77: dot | V77: =COUNTIFS(coffeeTimeOverlay,U77,coffeeTimeFinger,">2.05") -> 4 | W77: =SUMIFS(coffeeTimeTime,coffeeTimeOverlay,U77,coffeeTimeFinger,">2.05") -> 145830 | X77: 36.4575
U78: tac | V78: =COUNTIFS(coffeeTimeOverlay,U78,coffeeTimeFinger,">2.05") -> 6 | W78: =SUMIFS(coffeeTimeTime,coffeeTimeOverlay,U78,coffeeTimeFinger,">2.05") -> 126471 | X78: 21.0785 | AB78: Variable 1 | AC78: Variable 2
U79: tou | V79: =COUNTIFS(coffeeTimeOverlay,U79,coffeeTimeFinger,">2.05") -> 5 | W79: =SUMIFS(coffeeTimeTime,coffeeTimeOverlay,U79,coffeeTimeFinger,">2.05") -> 184116 | X79: 36.8232 | AA79: Mean | AB79: 24621.45 | AC79: 28803.66667
V80: =SUM(V76:V79) -> 18 | W80: =SUM(W76:W79) -> 518466 | X80: 28.80366667 | AA80: Variance | AB80: 25424728.37 | AC80: 252293219.5
U81: finger <2 | AA81: Observations | AB81: 20 | AC81: 18
U82: but | V82: =COUNTIFS(coffeeTimeOverlay,U82,coffeeTimeFinger,"<2.05") -> 5 | W82: =SUMIFS(coffeeTimeTime,coffeeTimeOverlay,U82,coffeeTimeFinger,"<2.05") -> 120393 | X82: =(W82/V82)/1000 -> 24.0786 | AA82: Pooled Variance | AB82: 132557071.4
U83: dot | V83: =COUNTIFS(coffeeTimeOverlay,U83,coffeeTimeFinger,"<2.05") -> 3 | W83: =SUMIFS(coffeeTimeTime,coffeeTimeOverlay,U83,coffeeTimeFinger,"<2.05") -> 80115 | X83: 26.705 | AA83: Hypothesized Mean Difference | AB83: 0
U84: tac | V84: =COUNTIFS(coffeeTimeOverlay,U84,coffeeTimeFinger,"<2.05") -> 6 | W84: =SUMIFS(coffeeTimeTime,coffeeTimeOverlay,U84,coffeeTimeFinger,"<2.05") -> 127885 | X84: 21.31416667 | AA84: df | AB84: 36
U85: tou | V85: =COUNTIFS(coffeeTimeOverlay,U85,coffeeTimeFinger,"<2.05") -> 6 | W85: =SUMIFS(coffeeTimeTime,coffeeTimeOverlay,U85,coffeeTimeFinger,"<2.05") -> 164036 | X85: 27.33933333 | AA85: t Stat | AB85: -1.118058506
V86: =SUM(V82:V85) -> 20 | W86: 492429 | X86: 24.62145 | AA86: P(T<=t) one-tail | AB86: 0.1354738639
AA87: t Critical one-tail | AB87: 1.688297694
U88: Braille Y | AA88: P(T<=t) two-tail | AB88: 0.2709477279
U89: but | V89: =COUNTIFS(coffeeTimeOverlay,U89,coffeeTimeBraille,"brY") -> 6 | W89: =SUMIFS(coffeeTimeTime,coffeeTimeOverlay,U89,coffeeTimeBraille,"brY") -> 140782 | X89: =(W89/V89)/1000 -> 23.46366667 | AA89: t Critical two-tail | AB89: 2.028093987
U90: dot | V90: =COUNTIFS(coffeeTimeOverlay,U90,coffeeTimeBraille,"brY") -> 3 | W90: =SUMIFS(coffeeTimeTime,coffeeTimeOverlay,U90,coffeeTimeBraille,"brY") -> 81718 | X90: 27.23933333
U91: tac | V91: =COUNTIFS(coffeeTimeOverlay,U91,coffeeTimeBraille,"brY") -> 6 | W91: =SUMIFS(coffeeTimeTime,coffeeTimeOverlay,U91,coffeeTimeBraille,"brY") -> 127934 | X91: 21.32233333
U92: tou | V92: =COUNTIFS(coffeeTimeOverlay,U92,coffeeTimeBraille,"brY") -> 6 | W92: =SUMIFS(coffeeTimeTime,coffeeTimeOverlay,U92,coffeeTimeBraille,"brY") -> 168514 | X92: 28.08566667 | AA92: braille t-test
V93: =SUM(V89:V92) -> 21 | W93: =SUM(W89:W92) -> 518948 | X93: 24.71180952 | AA93: t-Test: Two-Sample Assuming Equal Variances
U94: Braille N/P
U95: but | V95: =COUNTIFS(coffeeTimeOverlay,U95,coffeeTimeBraille,"brN") + COUNTIFS(coffeeTimeOverlay,U95,coffeeTimeBraille,"brP") -> 2 | W95: =SUMIFS(coffeeTimeTime,coffeeTimeOverlay,U95,coffeeTimeBraille,"brN") + SUMIFS(coffeeTimeTime,coffeeTimeOverlay,U95,coffeeTimeBraille,"brP") -> 41660 | X95: 20.83 | AB95: Variable 1 | AC95: Variable 2
U96: dot | V96: =COUNTIFS(coffeeTimeOverlay,U96,coffeeTimeBraille,"brN") + COUNTIFS(coffeeTimeOverlay,U96,coffeeTimeBraille,"brP") -> 4 | W96: =SUMIFS(coffeeTimeTime,coffeeTimeOverlay,U96,coffeeTimeBraille,"brN") + SUMIFS(coffeeTimeTime,coffeeTimeOverlay,U96,coffeeTimeBraille,"brP") -> 144227 | X96: 36.05675 | AA96: Mean | AB96: 28938.05882 | AC96: 24711.80952
U97: tac | V97: =COUNTIFS(coffeeTimeOverlay,U97,coffeeTimeBraille,"brN") + COUNTIFS(coffeeTimeOverlay,U97,coffeeTimeBraille,"brP") -> 6 | W97: =SUMIFS(coffeeTimeTime,coffeeTimeOverlay,U97,coffeeTimeBraille,"brN") + SUMIFS(coffeeTimeTime,coffeeTimeOverlay,U97,coffeeTimeBraille,"brP") -> 126422 | X97: 21.07033333 | AA97: Variance | AB97: 268052643.4 | AC97: 24055738.36
U98: tou | V98: =COUNTIFS(coffeeTimeOverlay,U98,coffeeTimeBraille,"brN") + COUNTIFS(coffeeTimeOverlay,U98,coffeeTimeBraille,"brP") -> 5 | W98: =SUMIFS(coffeeTimeTime,coffeeTimeOverlay,U98,coffeeTimeBraille,"brN") + SUMIFS(coffeeTimeTime,coffeeTimeOverlay,U98,coffeeTimeBraille,"brP") -> 179638 | X98: 35.9276 | AA98: Observations | AB98: 17 | AC98: 21
V99: =SUM(V95:V98) -> 17 | W99: 491947 | X99: 28.93805882 | AA99: Pooled Variance | AB99: 132498807.3
AA100: Hypothesized Mean Difference | AB100: 0
AA101: df | AB101: 36
AA102: t Stat | AB102: 1.125359903
AA103: P(T<=t) one-tail | AB103: 0.1339417691
AA104: t Critical one-tail | AB104: 1.688297694
AA105: P(T<=t) two-tail | AB105: 0.2678835382
AA106: t Critical two-tail | AB106: 2.028093987

Sheet searchTime
B1: id | C1: time | D1: timegap | E1: x | F1: y | G1: buttonPressed | H1: state | I1: overlay | J1: mf | K1: age | L1: braille | M1: finger | N1: buttonExpected | O1: error | P1: mode | Q1: time
B2: 7 | C2: 1445426979608 | D2: 871 | E2: 657 | F2: 297 | G2: 1Button | H2: Cooking | I2: but | J2: f | K2: 20 | L2: brN | M2: 1.85 | N2: 1Button | P2: search | Q2: 871 | S2: overlay | T2: count | U2: sum | V2: mean | X2: tac time vs dot time
B3: 7 | C3: 1445426962804 | D3: 921 | E3: 825 | F3: 416 | G3: 9Button | H3: NotActive | I3: but | J3: f | K3: 20 | L3: brN | M3: 1.85 | N3: 9Button | P3: search | Q3: 921 | S3: tac | T3: =COUNTIF($I$1:$I$313,S3) -> 77 | U3: =SUMIF($I$1:$I$313,S3,$Q$2:$Q$313) -> 201921 | V3: =U3/T3 -> 2622.350649 | Y3: t-Test: Two-Sample Assuming Equal Variances | AB3: tac SD | AC3: =STDEV(tacSearchTime) -> 1099.179372
B4: 7 | C4: 1445426983704 | D4: 1042 | E4: 632 | F4: 476 | G4: CancelButton | H4: NotActive | I4: but | J4: f | K4: 20 | L4: brN | M4: 1.85 | N4: CancelButton | P4: search | Q4: 1042 | S4: but | T4: =COUNTIF($I$1:$I$313,S4) -> 86 | U4: =SUMIF($I$1:$I$313,S4,$Q$2:$Q$313) -> 261828 | V4: =U4/T4 -> 3044.511628 | AB4: dot SD | AC4: =STDEV(dotSearchTime) -> 2078.459607
B5: 7 | C5: 1445426971396 | D5: 1121 | E5: 661 | F5: 411 | G5: 7Button | H5: SetTime | I5: but | J5: f | K5: 20 | L5: brN | M5: 1.85 | N5: 7Button | P5: search | Q5: 1121 | S5: dot | T5: =COUNTIF($I$1:$I$313,S5) -> 70 | U5: =SUMIF($I$1:$I$313,S5,$Q$2:$Q$313) -> 229533 | V5: =U5/T5 -> 3279.042857 | Z5: Variable 1 | AA5: Variable 2
B6: 7 | C6: 1445426967010 | D6: 1142 | E6: 666 | F6: 225 | G6: TimerButton | H6: NotActive | I6: but | J6: f | K6: 20 | L6: brN | M6: 1.85 | N6: TimerButton | P6: search | Q6: 1142 | S6: tou | T6: =COUNTIF($I$1:$I$313,S6) -> 79 | U6: =SUMIF($I$1:$I$313,S6,$Q$2:$Q$313) -> 288481 | V6: =U6/T6 -> 3651.658228 | Y6: Mean | Z6: 3278.328571 | AA6: 2618.844156
B7: 7 | C7: 1445426975622 | D7: 1161 | E7: 819 | F7: 463 | G7: StartButton | H7: SetTime | I7: but | J7: f | K7: 20 | L7: brN | M7: 1.85 | N7: StartButton | P7: search | Q7: 1161 | Y7: Variance | Z7: 4319994.34 | AA7: 1208195.291
B8: 7 | C8: 1445426988901 | D8: 1281 | E8: 735 | F8: 384 | G8: 5Button | H8: NotActive | I8: but | J8: f | K8: 20 | L8: brN | M8: 1.85 | N8: 5Button | P8: search | Q8: 1281 | Y8: Observations | Z8: 70 | AA8: 77
B9: 7 | C9: 1445426958728 | D9: 1322 | E9: 757 | F9: 299 | G9: 2Button | H9: NotActive | I9: but | J9: f | K9: 20 | L9: brN | M9: 1.85 | N9: 2Button | P9: search | Q9: 1322 | S9: Overall | Y9: Pooled Variance | Z9: 2688982.425
B10: 2 | C10: 1445372071518 | D10: 1452 | E10: 634 | F10: 489 | G10: CancelButton | H10: SetPower | I10: but | J10: m | K10: 50 | L10: brN | M10: 2.57 | N10: CancelButton | P10: search | Q10: 1452 | Y10: Hypothesized Mean Difference | Z10: 0
B11: 6 | C11: 1445423163831 | D11: 1542 | E11: 667 | F11: 227 | G11: TimerButton | H11: SetTime | I11: but | J11: f | K11: 50 | L11: brN | M11: 1.77 | N11: TimerButton | P11: search | Q11: 1542 | T11: count | U11: total time | V11: Avg time | Y11: df | Z11: 145
B12: 5 | C12: 1445368549574 | D12: 1662 | E12: 732 | F12: 384 | G12: 5Button | H12: NotActive | I12: but | J12: f | K12: 60 | L12: brY | M12: 2.06 | N12: 5Button | P12: search | Q12: 1662 | S12: but | T12: =COUNTIF(searchTimeOverlay,S12) -> 86 | U12: =SUMIFS(searchTimeTime, searchTimeOverlay,S12) -> 262038 | V12: =(U12/T12)/1000 -> 3.046953488 | Y12: t Stat | Z12: 2.435265244 | AA12: =SUMIFS(ct2ButtonTimes, ct2Overlay,Y12,ct2Mode,"coffee", ct2Age,"60") -> 
B13: 8 | C13: 1445430026770 | D13: 651 | E13: 827 | F13: 416 | G13: 9Button | H13: SetTime | I13: but | J13: m | K13: 30 | L13: brY | M13: 2.25 | N13: 9Button | P13: search | Q13: 1713 | S13: dot | T13: =COUNTIF(searchTimeOverlay,S13) -> 70 | U13: =SUMIFS(searchTimeTime, searchTimeOverlay,S13) -> 229483 | V13: =(U13/T13)/1000 -> 3.278328571 | Y13: P(T<=t) one-tail | Z13: 0.008047320596
B14: 8 | C14: 1445430014011 | D14: 1432 | E14: 660 | F14: 421 | G14: 7Button | H14: SetTime | I14: but | J14: m | K14: 30 | L14: brY | M14: 2.25 | N14: 7Button | P14: search | Q14: 1722 | S14: tac | T14: =COUNTIF(searchTimeOverlay,S14) -> 77 | V14: 0 | Y14: t Critical one-tail | Z14: 1.655430252
B15: 11 | C15: 1445441404420 | D15: 1753 | E15: 756 | F15: 323 | G15: 2Button | H15: NotActive | I15: but | J15: f | K15: 30 | L15: brY | M15: 1.77 | N15: 2Button | P15: search | Q15: 1753 | S15: tou | T15: =COUNTIF(searchTimeOverlay,S15) -> 79 | U15: =SUMIFS(searchTimeTime, searchTimeOverlay,S15) -> 289462 | V15: 3.664075949 | Y15: P(T<=t) two-tail | Z15: 0.01609464119
B16: 11 | C16: 1445441435565 | D16: 611 | E16: 750 | F16: 378 | G16: 5Button | H16: SetTime | I16: but | J16: f | K16: 30 | L16: brY | M16: 1.77 | N16: 5Button | P16: search | Q16: 1813 | T16: =SUM(T12:T15) -> 312 | U16: 780983 | V16: 2.503150641 | Y16: t Critical two-tail | Z16: 1.976459531
B17: 2 | C17: 1445372038341 | D17: 581 | E17: 644 | F17: 417 | G17: 7Button | H17: SetTime | I17: but | J17: m | K17: 50 | L17: brN | M17: 2.57 | N17: 7Button | P17: search | Q17: 1833
B18: 5 | C18: 1445368539650 | D18: 90 | E18: 634 | F18: 490 | G18: CancelButton | H18: SetPower | I18: but | J18: f | K18: 60 | L18: brY | M18: 2.06 | N18: CancelButton | P18: search | Q18: 1843 | S18: older
B19: 5 | C19: 1445368521043 | D19: 1873 | E19: 657 | F19: 420 | G19: 7Button | H19: SetPower | I19: but | J19: f | K19: 60 | L19: brY | M19: 2.06 | N19: 7Button | P19: search | Q19: 1873 | S19: but | T19: =COUNTIFS(searchTimeOverlay,S19,searchTimeAge,">59") -> 31 | U19: =SUMIFS(searchTimeTime,searchTimeOverlay,S19,searchTimeAge,">59") -> 109718 | V19: =(U19/T19)/1000 -> 3.539290323 | X19: but time vs. dot time
B20: 8 | C20: 1445430045677 | D20: 1973 | E20: 731 | F20: 301 | G20: 2Button | H20: NotActive | I20: but | J20: m | K20: 30 | L20: brY | M20: 2.25 | N20: 2Button | P20: search | Q20: 1973 | S20: dot | T20: =COUNTIFS(searchTimeOverlay,S20,searchTimeAge,">59") -> 21 | U20: =SUMIFS(searchTimeTime,searchTimeOverlay,S20,searchTimeAge,">59") -> 69962 | V20: 3.33152381 | Y20: t-Test: Two-Sample Assuming Equal Variances
B21: 11 | C21: 1445441399493 | D21: 1983 | E21: 848 | F21: 477 | G21: StartButton | H21: NotActive | I21: but | J21: f | K21: 30 | L21: brY | M21: 1.77 | N21: StartButton | P21: search | Q21: 1983 | S21: tac | T21: =COUNTIFS(searchTimeOverlay,S21,searchTimeAge,">59") -> 24 | U21: =SUMIFS(searchTimeTime,searchTimeOverlay,S21,searchTimeAge,">59") -> 62650 | V21: 2.610416667
B22: 11 | C22: 1445441388477 | D22: 80 | E22: 661 | F22: 474 | G22: CancelButton | H22: NotActive | I22: but | J22: f | K22: 30 | L22: brY | M22: 1.77 | N22: CancelButton | P22: search | Q22: 1993 | S22: tou | T22: =COUNTIFS(searchTimeOverlay,S22,searchTimeAge,">59") -> 29 | U22: =SUMIFS(searchTimeTime,searchTimeOverlay,S22,searchTimeAge,">59") -> 123312 | V22: 4.252137931 | Z22: Variable 1 | AA22: Variable 2
B23: 11 | C23: 1445441409758 | D23: 2003 | E23: 837 | F23: 414 | G23: 9Button | H23: NotActive | I23: but | J23: f | K23: 30 | L23: brY | M23: 1.77 | N23: 9Button | P23: search | Q23: 2003 | T23: =SUM(T19:T22) -> 105 | U23: =SUM(U19:U22) -> 365642 | V23: 3.482304762 | W23: =ABS(V23-$V$16) -> 0.9791541209 | Y23: Mean | Z23: 3278.328571 | AA23: 3046.953488
B24: 4 | C24: 1445466972034 | D24: 2063 | E24: 745 | F24: 325 | G24: 2Button | H24: SetTime | I24: but | J24: f | K24: 60 | L24: brY | M24: 1.79 | N24: 2Button | P24: search | Q24: 2063 | S24: younger | Y24: Variance | Z24: 4319994.34 | AA24: 2978448.398
B25: 2 | C25: 1445372012904 | D25: 2103 | E25: 838 | F25: 469 | G25: StartButton | H25: NotActive | I25: but | J25: m | K25: 50 | L25: brN | M25: 2.57 | N25: StartButton | P25: search | Q25: 2103 | S25: but | T25: =COUNTIFS(searchTimeOverlay,S25,searchTimeAge,"<59") -> 55 | U25: =SUMIFS(searchTimeTime,searchTimeOverlay,S25,searchTimeAge,"<59") -> 152320 | V25: =(U25/T25)/1000 -> 2.769454545 | Y25: Observations | Z25: 70 | AA25: 86
B26: 3 | C26: 1445375714807 | D26: 2173 | E26: 845 | F26: 403 | G26: 9Button | H26: Cooking | I26: but | J26: f | K26: 50 | L26: brY | M26: 2.04 | N26: 9Button | P26: search | Q26: 2173 | S26: dot | T26: =COUNTIFS(searchTimeOverlay,S26,searchTimeAge,"<59") -> 49 | U26: =SUMIFS(searchTimeTime,searchTimeOverlay,S26,searchTimeAge,"<59") -> 159521 | V26: 3.255530612 | Y26: Pooled Variance | Z26: 3579530.67
B27: 10 | C27: 1445438181776 | D27: 100 | E27: 767 | F27: 355 | G27: 5Button | H27: NotActive | I27: but | J27: f | K27: 60 | L27: brN | M27: 2.16 | N27: 5Button | P27: search | Q27: 2173 | S27: tac | T27: =COUNTIFS(searchTimeOverlay,S27,searchTimeAge,"<59") -> 53 | U27: =SUMIFS(searchTimeTime,searchTimeOverlay,S27,searchTimeAge,"<59") -> 139001 | V27: 2.622660377 | Y27: Hypothesized Mean Difference | Z27: 0
B28: 9 | C28: 1445433374694 | D28: 2183 | E28: 632 | F28: 483 | G28: CancelButton | H28: SetTime | I28: but | J28: f | K28: 60 | L28: brY | M28: 1.77 | N28: CancelButton | P28: search | Q28: 2183 | S28: tou | T28: =COUNTIFS(searchTimeOverlay,S28,searchTimeAge,"<59") -> 50 | U28: =SUMIFS(searchTimeTime,searchTimeOverlay,S28,searchTimeAge,"<59") -> 166150 | V28: 3.323 | Y28: df | Z28: 154
B29: 5 | C29: 1445368544857 | D29: 2193 | E29: 747 | F29: 315 | G29: 2Button | H29: NotActive | I29: but | J29: f | K29: 60 | L29: brY | M29: 2.06 | N29: 2Button | P29: search | Q29: 2193 | T29: =SUM(T25:T28) -> 207 | U29: 616992 | V29: 2.980637681 | W29: =ABS(V29-$V$16) -> 0.4774870401 | Y29: t Stat | Z29: 0.7596953885
B30: 3 | C30: 1445375694478 | D30: 2203 | E30: 735 | F30: 370 | G30: 5Button | H30: SetTime | I30: but | J30: f | K30: 50 | L30: brY | M30: 2.04 | N30: 5Button | P30: search | Q30: 2203 | Y30: P(T<=t) one-tail | Z30: 0.2242990316
B31: 11 | C31: 1445441394456 | D31: 2204 | E31: 666 | F31: 415 | G31: 7Button | H31: NotActive | I31: but | J31: f | K31: 30 | L31: brY | M31: 1.77 | N31: 7Button | P31: search | Q31: 2204 | S31: finger >2 | Y31: t Critical one-tail | Z31: 1.654808386
B32: 8 | C32: 1445430039608 | D32: 2233 | E32: 834 | F32: 471 | G32: StartButton | H32: NotActive | I32: but | J32: m | K32: 30 | L32: brY | M32: 2.25 | N32: StartButton | P32: search | Q32: 2233 | S32: but | T32: =COUNTIFS(searchTimeOverlay,S32,searchTimeFinger,">2.05") -> 39 | U32: =SUMIFS(searchTimeTime,searchTimeOverlay,S32,searchTimeFinger,">2.05") -> 129086 | V32: =(U32/T32)/1000 -> 3.309897436 | Y32: P(T<=t) two-tail | Z32: 0.4485980632
B33: 3 | C33: 1445375727025 | D33: 2243 | E33: 647 | F33: 306 | G33: 1Button | H33: NotActive | I33: but | J33: f | K33: 50 | L33: brY | M33: 2.04 | N33: 1Button | P33: search | Q33: 2243 | S33: dot | T33: =COUNTIFS(searchTimeOverlay,S33,searchTimeFinger,">2.05") -> 30 | U33: =SUMIFS(searchTimeTime,searchTimeOverlay,S33,searchTimeFinger,">2.05") -> 115928 | V33: 3.864266667 | Y33: t Critical two-tail | Z33: 1.975488024
B34: 5 | C34: 1445368516276 | D34: 2243 | E34: 836 | F34: 486 | G34: StartButton | H34: SetPower | I34: but | J34: f | K34: 60 | L34: brY | M34: 2.06 | N34: StartButton | P34: search | Q34: 2243 | S34: tac | T34: =COUNTIFS(searchTimeOverlay,S34,searchTimeFinger,">2.05") -> 31 | U34: =SUMIFS(searchTimeTime,searchTimeOverlay,S34,searchTimeFinger,">2.05") -> 82039 | V34: 2.646419355
B35: 8 | C35: 1445430020661 | D35: 891 | E35: 643 | F35: 303 | G35: 1Button | H35: SetTime | I35: but | J35: m | K35: 30 | L35: brY | M35: 2.25 | N35: 1Button | P35: search | Q35: 2293 | S35: tou | T35: =COUNTIFS(searchTimeOverlay,S35,searchTimeFinger,">2.05") -> 37 | U35: =SUMIFS(searchTimeTime,searchTimeOverlay,S35,searchTimeFinger,">2.05") -> 161664 | V35: 4.369297297
B36: 12 | C36: 1445420209964 | D36: 872 | E36: 752 | F36: 349 | G36: 5Button | H36: NotActive | I36: but | J36: f | K36: 40 | L36: brP | M36: 2.11 | N36: 5Button | P36: search | Q36: 2364 | T36: =SUM(T32:T35) -> 137 | U36: =SUM(U32:U35) -> 488717 | V36: 3.567277372 | W36: =ABS(V36-$V$16) -> 1.064126731 | X36: tou time vs dot time
B37: 4 | C37: 1445466950973 | D37: 2373 | E37: 675 | F37: 225 | G37: TimerButton | H37: NotActive | I37: but | J37: f | K37: 60 | L37: brY | M37: 1.79 | N37: TimerButton | P37: search | Q37: 2373 | S37: finger <2 | Y37: t-Test: Two-Sample Assuming Equal Variances
B38: 4 | C38: 1445466994997 | D38: 2394 | E38: 638 | F38: 484 | G38: CancelButton | H38: Cooking | I38: but | J38: f | K38: 60 | L38: brY | M38: 1.79 | N38: CancelButton | P38: search | Q38: 2394 | S38: but | T38: =COUNTIFS(searchTimeOverlay,S38,searchTimeFinger,"<2.05") -> 47 | U38: =SUMIFS(searchTimeTime,searchTimeOverlay,S38,searchTimeFinger,"<2.05") -> 132952 | V38: =(U38/T38)/1000 -> 2.828765957
B39: 12 | C39: 1445420262950 | D39: 2414 | E39: 648 | F39: 470 | G39: CancelButton | H39: SetTime | I39: but | J39: f | K39: 40 | L39: brP | M39: 2.11 | N39: CancelButton | P39: search | Q39: 2414 | S39: dot | T39: =COUNTIFS(searchTimeOverlay,S39,searchTimeFinger,"<2.05") -> 40 | U39: =SUMIFS(searchTimeTime,searchTimeOverlay,S39,searchTimeFinger,"<2.05") -> 113555 | V39: 2.838875 | Z39: Variable 1 | AA39: Variable 2
B40: 3 | C40: 1445375720976 | D40: 2453 | E40: 633 | F40: 477 | G40: CancelButton | H40: Cooking | I40: but | J40: f | K40: 50 | L40: brY | M40: 2.04 | N40: CancelButton | P40: search | Q40: 2453 | S40: tac | T40: =COUNTIFS(searchTimeOverlay,S40,searchTimeFinger,"<2.05") -> 46 | U40: =SUMIFS(searchTimeTime,searchTimeOverlay,S40,searchTimeFinger,"<2.05") -> 119612 | V40: 2.60026087 | Y40: Mean | Z40: 3278.328571 | AA40: 3626.820513
B41: 3 | C41: 1445375701348 | D41: 2504 | E41: 659 | F41: 403 | G41: 7Button | H41: SetTime | I41: but | J41: f | K41: 50 | L41: brY | M41: 2.04 | N41: 7Button | P41: search | Q41: 2504 | S41: tou | T41: =COUNTIFS(searchTimeOverlay,S41,searchTimeFinger,"<2.05") -> 42 | U41: =SUMIFS(searchTimeTime,searchTimeOverlay,S41,searchTimeFinger,"<2.05") -> 127798 | V41: 3.042809524 | Y41: Variance | Z41: 4319994.34 | AA41: 3799921.058
B42: 6 | C42: 1445423238048 | D42: 2514 | E42: 644 | F42: 417 | G42: 7Button | H42: NotActive | I42: but | J42: f | K42: 50 | L42: brN | M42: 1.77 | N42: 7Button | P42: search | Q42: 2514 | T42: =SUM(T38:T41) -> 175 | U42: 493917 | V42: 2.822382857 | W42: =ABS(V42-$V$16) -> 0.3192322161 | Y42: Observations | Z42: 70 | AA42: 78
B43: 9 | C43: 1445433368585 | D43: 2544 | E43: 642 | F43: 328 | G43: 1Button | H43: SetTime | I43: but | J43: f | K43: 60 | L43: brY | M43: 1.77 | N43: 1Button | P43: search | Q43: 2544 | Y43: Pooled Variance | Z43: 4045709.116
B44: 8 | C44: 1445430052316 | D44: 2613 | E44: 670 | F44: 225 | G44: TimerButton | H44: NotActive | I44: but | J44: m | K44: 30 | L44: brY | M44: 2.25 | N44: TimerButton | P44: search | Q44: 2613 | S44: Braille Y | Y44: Hypothesized Mean Difference | Z44: 0
B45: 8 | C45: 1445430008674 | D45: 251 | E45: 757 | F45: 343 | G45: 5Button | H45: SetTime | I45: but | J45: m | K45: 30 | L45: brY | M45: 2.25 | N45: 5Button | P45: search | Q45: 2724 | S45: but | T45: =COUNTIFS(searchTimeOverlay,S45,searchTimeBraille,"brY") -> 47 | U45: =SUMIFS(searchTimeTime,searchTimeOverlay,S45,searchTimeBraille,"brY") -> 134624 | V45: =(U45/T45)/1000 -> 2.864340426 | Y45: df | Z45: 146
B46: 12 | C46: 1445420240468 | D46: 2724 | E46: 656 | F46: 413 | G46: 7Button | H46: NotActive | I46: but | J46: f | K46: 40 | L46: brP | M46: 2.11 | N46: 7Button | P46: search | Q46: 2724 | S46: dot | T46: =COUNTIFS(searchTimeOverlay,S46,searchTimeBraille,"brY") -> 41 | U46: =SUMIFS(searchTimeTime,searchTimeOverlay,S46,searchTimeBraille,"brY") -> 125140 | V46: 3.052195122 | Y46: t Stat | Z46: -1.052351626
B47: 5 | C47: 1445368534002 | D47: 331 | E47: 828 | F47: 428 | G47: 9Button | H47: SetPower | I47: but | J47: f | K47: 60 | L47: brY | M47: 2.06 | N47: 9Button | P47: search | Q47: 2824 | S47: tac | T47: =COUNTIFS(searchTimeOverlay,S47,searchTimeBraille,"brY") -> 47 | U47: =SUMIFS(searchTimeTime,searchTimeOverlay,S47,searchTimeBraille,"brY") -> 119954 | V47: 2.552212766 | Y47: P(T<=t) one-tail | Z47: 0.1471884216
B48: 5 | C48: 1445368510268 | D48: 611 | E48: 645 | F48: 329 | G48: 1Button | H48: SetPower | I48: but | J48: f | K48: 60 | L48: brY | M48: 2.06 | N48: 1Button | P48: search | Q48: 2825 | S48: tou | T48: =COUNTIFS(searchTimeOverlay,S48,searchTimeBraille,"brY") -> 44 | U48: =SUMIFS(searchTimeTime,searchTimeOverlay,S48,searchTimeBraille,"brY") -> 147578 | V48: 3.354045455 | Y48: t Critical one-tail | Z48: 1.655357345
B49: 9 | C49: 1445433355877 | D49: 2834 | E49: 642 | F49: 410 | G49: 7Button | H49: NotActive | I49: but | J49: f | K49: 60 | L49: brY | M49: 1.77 | N49: 7Button | P49: search | Q49: 2834 | T49: =SUM(T45:T48) -> 179 | U49: =SUM(U45:U48) -> 527296 | V49: 2.945787709 | W49: =ABS(V49-$V$16) -> 0.4426370685 | Y49: P(T<=t) two-tail | Z49: 0.2943768432
B50: 8 | C50: 1445430033599 | D50: 2874 | E50: 667 | F50: 465 | G50: CancelButton | H50: SetTime | I50: but | J50: m | K50: 30 | L50: brY | M50: 2.25 | N50: CancelButton | P50: search | Q50: 2874 | S50: Braille N/P | Y50: t Critical two-tail | Z50: 1.976345623
B51: 6 | C51: 1445423231048 | D51: 2924 | E51: 644 | F51: 302 | G51: 1Button | H51: NotActive | I51: but | J51: f | K51: 50 | L51: brN | M51: 1.77 | N51: 1Button | P51: search | Q51: 2924 | S51: but | T51: =COUNTIFS(searchTimeOverlay,S51,searchTimeBraille,"brN") + COUNTIFS(searchTimeOverlay,S51,searchTimeBraille,"brP") -> 39 | U51: =SUMIFS(searchTimeTime,searchTimeOverlay,S51,searchTimeBraille,"brN") + SUMIFS(searchTimeTime,searchTimeOverlay,S51,searchTimeBraille,"brP") -> 127414 | V51: =(U51/T51)/1000 -> 3.267025641
B52: 3 | C52: 1445375671715 | D52: 2964 | E52: 646 | F52: 223 | G52: TimerButton | H52: NotActive | I52: but | J52: f | K52: 50 | L52: brY | M52: 2.04 | N52: TimerButton | P52: search | Q52: 2964 | S52: dot | T52: =COUNTIFS(searchTimeOverlay,S52,searchTimeBraille,"brN") + COUNTIFS(searchTimeOverlay,S52,searchTimeBraille,"brP") -> 29 | U52: =SUMIFS(searchTimeTime,searchTimeOverlay,S52,searchTimeBraille,"brN") + SUMIFS(searchTimeTime,searchTimeOverlay,S52,searchTimeBraille,"brP") -> 104343 | V52: 3.598034483
B53: 9 | C53: 1445433362236 | D53: 261 | E53: 715 | F53: 309 | G53: 2Button | H53: SetTime | I53: but | J53: f | K53: 60 | L53: brY | M53: 1.77 | N53: 2Button | P53: search | Q53: 2995 | S53: tac | T53: =COUNTIFS(searchTimeOverlay,S53,searchTimeBraille,"brN") + COUNTIFS(searchTimeOverlay,S53,searchTimeBraille,"brP") -> 30 | U53: =SUMIFS(searchTimeTime,searchTimeOverlay,S53,searchTimeBraille,"brN") + SUMIFS(searchTimeTime,searchTimeOverlay,S53,searchTimeBraille,"brP") -> 81697 | V53: 2.723233333
B54: 3 | C54: 1445375708468 | D54: 3014 | E54: 820 | F54: 454 | G54: StartButton | H54: SetTime | I54: but | J54: f | K54: 50 | L54: brY | M54: 2.04 | N54: StartButton | P54: search | Q54: 3014 | S54: tou | T54: =COUNTIFS(searchTimeOverlay,S54,searchTimeBraille,"brN") + COUNTIFS(searchTimeOverlay,S54,searchTimeBraille,"brP") -> 35 | U54: =SUMIFS(searchTimeTime,searchTimeOverlay,S54,searchTimeBraille,"brN") + SUMIFS(searchTimeTime,searchTimeOverlay,S54,searchTimeBraille,"brP") -> 141884 | V54: 4.053828571
B55: 6 | C55: 1445423181747 | D55: 3024 | E55: 629 | F55: 483 | G55: CancelButton | H55: SetTime | I55: but | J55: f | K55: 50 | L55: brN | M55: 1.77 | N55: CancelButton | P55: search | Q55: 3024 | T55: =SUM(T51:T54) -> 133 | U55: 455338 | V55: 3.423593985 | W55: =ABS(V55-$V$16) -> 0.9204433439
B56: 12 | C56: 1445420216483 | D56: 3024 | E56: 832 | F56: 480 | G56: StartButton | H56: NotActive | I56: but | J56: f | K56: 40 | L56: brP | M56: 2.11 | N56: StartButton | P56: search | Q56: 3024 | V56: =MAX(V12:V55) -> 4.369297297
B57: 4 | C57: 1445466988788 | D57: 611 | E57: 834 | F57: 428 | G57: 9Button | H57: Cooking | I57: but | J57: f | K57: 60 | L57: brY | M57: 1.79 | N57: 9Button | P57: search | Q57: 3025 | V57: =MIN(V12:V55) -> 0
B58: 4 | C58: 1445466944564 | D58: 3124 | E58: 648 | F58: 295 | G58: 1Button | H58: NotActive | I58: but | J58: f | K58: 60 | L58: brY | M58: 1.79 | N58: 1Button | P58: search | Q58: 3124
B59: 10 | C59: 1445438095191 | D59: 3124 | E59: 625 | F59: 500 | G59: CancelButton | H59: SetTime | I59: but | J59: f | K59: 60 | L59: brN | M59: 2.16 | N59: CancelButton | P59: search | Q59: 3124
B60: 9 | C60: 1445433395233 | D60: 3144 | E60: 828 | F60: 426 | G60: 9Button | H60: NotActive | I60: but | J60: f | K60: 60 | L60: brY | M60: 1.77 | N60: 9Button | P60: search | Q60: 3144
B61: 4 | C61: 1445466957753 | D61: 3175 | E61: 662 | F61: 417 | G61: 7Button | H61: SetTime | I61: but | J61: f | K61: 60 | L61: brY | M61: 1.79 | N61: 7Button | P61: search | Q61: 3175
B62: 10 | C62: 1445438165863 | D62: 1412 | E62: 810 | F62: 499 | G62: StartButton | H62: NotActive | I62: but | J62: f | K62: 60 | L62: brN | M62: 2.16 | N62: StartButton | P62: search | Q62: 3235
B63: 12 | C63: 1445420247257 | D63: 360 | E63: 843 | F63: 420 | G63: 9Button | H63: NotActive | I63: but | J63: f | K63: 40 | L63: brP | M63: 2.11 | N63: 9Button | P63: search | Q63: 3254
B64: 12 | C64: 1445420234449 | D64: 3355 | E64: 731 | F64: 313 | G64: 2Button | H64: NotActive | I64: but | J64: f | K64: 40 | L64: brP | M64: 2.11 | N64: 2Button | P64: search | Q64: 3355
B65: 9 | C65: 1445433415172 | D65: 3395 | E65: 749 | F65: 371 | G65: 5Button | H65: NotActive | I65: but | J65: f | K65: 60 | L65: brY | M65: 1.77 | N65: 5Button | P65: search | Q65: 3395
B66: 12 | C66: 1445420226788 | D66: 3445 | E66: 639 | F66: 306 | G66: 1Button | H66: NotActive | I66: but | J66: f | K66: 40 | L66: brP | M66: 2.11 | N66: 1Button | P66: search | Q66: 3445
B67: 2 | C67: 1445372055656 | D67: 151 | E67: 678 | F67: 307 | G67: 1Button | H67: SetPower | I67: but | J67: m | K67: 50 | L67: brN | M67: 2.57 | N67: 1Button | P67: search | Q67: 3546
B68: 9 | C68: 1445433422773 | D68: 2143 | E68: 632 | F68: 263 | G68: TimerButton | H68: NotActive | I68: but | J68: f | K68: 60 | L68: brY | M68: 1.77 | N68: TimerButton | P68: search | Q68: 3635
B69: 6 | C69: 1445423212171 | D69: 3766 | E69: 828 | F69: 427 | G69: 9Button | H69: NotActive | I69: but | J69: f | K69: 50 | L69: brN | M69: 1.77 | N69: 9Button | P69: search | Q69: 3766
B70: 6 | C70: 1445423203879 | D70: 3806 | E70: 741 | F70: 295 | G70: 2Button | H70: NotActive | I70: but | J70: f | K70: 50 | L70: brN | M70: 1.77 | N70: 2Button | P70: search | Q70: 3806
B71: 5 | C71: 1445368528063 | D71: 2133 | E71: 766 | F71: 253 | G71: PowerButton | H71: SetPower | I71: but | J71: f | K71: 60 | L71: brY | M71: 2.06 | N71: TimerButton | P71: search | Q71: 3855
B72: 2 | C72: 1445372065430 | D72: 321 | E72: 741 | F72: 379 | G72: 5Button | H72: SetPower | I72: but | J72: m | K72: 50 | L72: brN | M72: 2.57 | N72: 5Button | P72: search | Q72: 3996
B73: 4 | C73: 1445466965514 | D73: 4046 | E73: 744 | F73: 379 | G73: 5Button | H73: SetTime | I73: but | J73: f | K73: 60 | L73: brY | M73: 1.79 | N73: 5Button | P73: search | Q73: 4046
B74: 10 | C74: 1445438075894 | D74: 50 | E74: 633 | F74: 253 | G74: TimerButton | H74: NotActive | I74: but | J74: f | K74: 60 | L74: brN | M74: 2.16 | N74: TimerButton | P74: search | Q74: 4166
B75: 6 | C75: 1445423174627 | D75: 4477 | E75: 739 | F75: 383 | G75: 5Button | H75: SetTime | I75: but | J75: f | K75: 50 | L75: brN | M75: 1.77 | N75: 5Button | P75: search | Q75: 4477
B76: 11 | C76: 1445441417489 | D76: 4517 | E76: 656 | F76: 229 | G76: TimerButton | H76: NotActive | I76: but | J76: f | K76: 30 | L76: brY | M76: 1.77 | N76: TimerButton | P76: search | Q76: 4517
B77: 6 | C77: 1445423190740 | D77: 3325 | E77: 800 | F77: 464 | G77: StartButton | H77: NotActive | I77: but | J77: f | K77: 50 | L77: brN | M77: 1.77 | N77: StartButton | P77: search | Q77: 4877
B78: 4 | C78: 1445466980896 | D78: 410 | E78: 803 | F78: 476 | G78: StartButton | H78: Cooking | I78: but | J78: f | K78: 60 | L78: brY | M78: 1.79 | N78: StartButton | P78: search | Q78: 5017
B79: 2 | C79: 1445372022708 | D79: 3875 | E79: 848 | F79: 424 | G79: 9Button | H79: NotActive | I79: but | J79: m | K79: 50 | L79: brN | M79: 2.57 | N79: 9Button | P79: search | Q79: 5037
B80: 10 | C80: 1445438136851 | D80: 621 | E80: 839 | F80: 414 | G80: 9Button | H80: NotActive | I80: but | J80: f | K80: 60 | L80: brN | M80: 2.16 | N80: 9Button | P80: search | Q80: 5047
B81: 2 | C81: 1445372032262 | D81: 3765 | E81: 649 | F81: 229 | G81: TimerButton | H81: NotActive | I81: but | J81: m | K81: 50 | L81: brN | M81: 2.57 | N81: TimerButton | P81: search | Q81: 5488
B82: 2 | C82: 1445372047854 | D82: 661 | E82: 757 | F82: 293 | G82: 2Button | H82: SetPower | I82: but | J82: m | K82: 50 | L82: brN | M82: 2.57 | N82: 2Button | P82: search | Q82: 5568
B83: 12 | C83: 1445420256651 | D83: 5588 | E83: 667 | F83: 225 | G83: TimerButton | H83: NotActive | I83: but | J83: f | K83: 40 | L83: brP | M83: 2.11 | N83: TimerButton | P83: search | Q83: 5588
B84: 9 | C84: 1445433386340 | D84: 160 | E84: 798 | F84: 460 | G84: StartButton | H84: NotActive | I84: but | J84: f | K84: 60 | L84: brY | M84: 1.77 | N84: StartButton | P84: search | Q84: 8021
B85: 10 | C85: 1445438155528 | D85: 7791 | E85: 761 | F85: 324 | G85: 2Button | H85: NotActive | I85: but | J85: f | K85: 60 | L85: brN | M85: 2.16 | N85: 2Button | P85: search | Q85: 9103
B86: 3 | C86: 1445375685615 | D86: 9373 | E86: 754 | F86: 285 | G86: 2Button | H86: SetTime | I86: but | J86: f | K86: 50 | L86: brY | M86: 2.04 | N86: 2Button | P86: search | Q86: 9373
B87: 10 | C87: 1445438086489 | D87: 371 | E87: 671 | F87: 325 | G87: 1Button | H87: SetTime | I87: but | J87: f | K87: 60 | L87: brN | M87: 2.16 | N87: 1Button | P87: search | Q87: 9584
B88: 9 | C88: 1445432896456 | D88: 661 | E88: 656 | F88: 309 | G88: 1Button | H88: NotActive | I88: dot | J88: f | K88: 60 | L88: brY | M88: 1.77 | N88: 1Button | P88: search | Q88: 661
B89: 6 | C89: 1445423438146 | D89: 882 | E89: 658 | F89: 323 | G89: 1Button | H89: NotActive | I89: dot | J89: f | K89: 50 | L89: brN | M89: 1.77 | N89: 1Button | P89: search | Q89: 882
B90: 7 | C90: 1445426799359 | D90: 1022 | E90: 615 | F90: 228 | G90: TimerButton | H90: NotActive | I90: dot | J90: f | K90: 20 | L90: brN | M90: 1.85 | N90: TimerButton | P90: search | Q90: 1022
B91: 7 | C91: 1445426782104 | D91: 1202 | E91: 615 | F91: 476 | G91: CancelButton | H91: SetTime | I91: dot | J91: f | K91: 20 | L91: brN | M91: 1.85 | N91: CancelButton | P91: search | Q91: 1202
B92: 8 | C92: 1445429689074 | D92: 481 | E92: 616 | F92: 236 | G92: TimerButton | H92: NotActive | I92: dot | J92: m | K92: 30 | L92: brY | M92: 2.25 | N92: TimerButton | P92: search | Q92: 1212
B93: 7 | C93: 1445426773081 | D93: 1262 | E93: 642 | F93: 407 | G93: 7Button | H93: NotActive | I93: dot | J93: f | K93: 20 | L93: brN | M93: 1.85 | N93: 7Button | P93: search | Q93: 1262
B94: 7 | C94: 1445426777658 | D94: 1262 | E94: 615 | F94: 228 | G94: TimerButton | H94: NotActive | I94: dot | J94: f | K94: 20 | L94: brN | M94: 1.85 | N94: 1Button | P94: search | Q94: 1262
B95: 11 | C95: 1445441282985 | D95: 1362 | E95: 769 | F95: 373 | G95: 5Button | H95: SetPower | I95: dot | J95: f | K95: 30 | L95: brY | M95: 1.77 | N95: 5Button | P95: search | Q95: 1362
B96: 5 | C96: 1445368305012 | D96: 550 | E96: 759 | F96: 384 | G96: 5Button | H96: NotActive | I96: dot | J96: f | K96: 60 | L96: brY | M96: 2.06 | N96: 5Button | P96: search | Q96: 1372
B97: 2 | C97: 1445371858001 | D97: 1392 | E97: 761 | F97: 364 | G97: 5Button | H97: SetTime | I97: dot | J97: m | K97: 50 | L97: brN | M97: 2.57 | N97: 5Button | P97: search | Q97: 1392
B98: 6 | C98: 1445423444555 | D98: 1412 | E98: 716 | F98: 286 | G98: 2Button | H98: NotActive | I98: dot | J98: f | K98: 50 | L98: brN | M98: 1.77 | N98: 2Button | P98: search | Q98: 1412
B99: 8 | C99: 1445429701211 | D99: 1412 | E99: 663 | F99: 292 | G99: 1Button | H99: SetTime | I99: dot | J99: m | K99: 30 | L99: brY | M99: 2.25 | N99: 1Button | P99: search | Q99: 1412
B100: 7 | C100: 1445426787111 | D100: 1472 | E100: 740 | F100: 354 | G100: 5Button | H100: NotActive | I100: dot | J100: f | K100: 20 | L100: brN | M100: 1.85 | N100: 5Button | P100: search | Q100: 1472
B101: 5 | C101: 1445368315838 | D101: 140 | E101: 659 | F101: 312 | G101: 1Button | H101: SetTime | I101: dot | J101: f | K101: 60 | L101: brY | M101: 2.06 | N101: 1Button | P101: search | Q101: 1482
B102: 11 | C102: 1445441266712 | D102: 1482 | E102: 661 | F102: 499 | G102: CancelButton | H102: NotActive | I102: dot | J102: f | K102: 30 | L102: brY | M102: 1.77 | N102: CancelButton | P102: search | Q102: 1482
B103: 6 | C103: 1445423450383 | D103: 1582 | E103: 741 | F103: 352 | G103: 5Button | H103: NotActive | I103: dot | J103: f | K103: 50 | L103: brN | M103: 1.77 | N103: 5Button | P103: search | Q103: 1582
B104: 11 | C104: 1445441294612 | D104: 1692 | E104: 671 | F104: 317 | G104: 1Button | H104: SetPower | I104: dot | J104: f | K104: 30 | L104: brY | M104: 1.77 | N104: 1Button | P104: search | Q104: 1692
B105: 2 | C105: 1445371851422 | D105: 1693 | E105: 644 | F105: 303 | G105: 1Button | H105: SetTime | I105: dot | J105: m | K105: 50 | L105: brN | M105: 2.57 | N105: 1Button | P105: search | Q105: 1693
B106: 2 | C106: 1445371879883 | D106: 751 | E106: 810 | F106: 409 | G106: 9Button | H106: Cooking | I106: dot | J106: m | K106: 50 | L106: brN | M106: 2.57 | N106: 9Button | P106: search | Q106: 1793
B107: 8 | C107: 1445429680181 | D107: 1882 | E107: 643 | F107: 405 | G107: 7Button | H107: NotActive | I107: dot | J107: m | K107: 30 | L107: brY | M107: 2.25 | N107: 7Button | P107: search | Q107: 1882
B108: 4 | C108: 1445466435282 | D108: 1933 | E108: 762 | F108: 372 | G108: 5Button | H108: SetTime | I108: dot | J108: f | K108: 60 | L108: brY | M108: 1.79 | N108: 5Button | P108: search | Q108: 1933
B109: 5 | C109: 1445368340924 | D109: 150 | E109: 627 | F109: 423 | G109: 7Button | H109: NotActive | I109: dot | J109: f | K109: 60 | L109: brY | M109: 2.06 | N109: 7Button | P109: search | Q109: 1963
B110: 3 | C110: 1445376449974 | D110: 2093 | E110: 845 | F110: 412 | G110: 9Button | H110: NotActive | I110: dot | J110: f | K110: 50 | L110: brY | M110: 2.04 | N110: 9Button | P110: search | Q110: 2093
B111: 11 | C111: 1445441272310 | D111: 2093 | E111: 848 | F111: 493 | G111: StartButton | H111: NotActive | I111: dot | J111: f | K111: 30 | L111: brY | M111: 1.77 | N111: StartButton | P111: search | Q111: 2093
B112: 9 | C112: 1445432938026 | D112: 471 | E112: 615 | F112: 483 | G112: CancelButton | H112: SetTime | I112: dot | J112: f | K112: 60 | L112: brY | M112: 1.77 | N112: CancelButton | P112: search | Q112: 2133
B113: 9 | C113: 1445432932097 | D113: 2323 | E113: 819 | F113: 482 | G113: StartButton | H113: SetTime | I113: dot | J113: f | K113: 60 | L113: brY | M113: 1.77 | N113: StartButton | P113: search | Q113: 2323
B114: 6 | C114: 1445423425467 | D114: 2353 | E114: 628 | F114: 414 | G114: 7Button | H114: SetTime | I114: dot | J114: f | K114: 50 | L114: brN | M114: 1.77 | N114: 7Button | P114: search | Q114: 2353
B115: 8 | C115: 1445429731114 | D115: 2383 | E115: 733 | F115: 352 | G115: 5Button | H115: NotActive | I115: dot | J115: m | K115: 30 | L115: brY | M115: 2.25 | N115: 5Button | P115: search | Q115: 2383
B116: 11 | C116: 1445441289074 | D116: 2383 | E116: 839 | F116: 407 | G116: 9Button | H116: SetPower | I116: dot | J116: f | K116: 30 | L116: brY | M116: 1.77 | N116: 9Button | P116: search | Q116: 2383
B117: 4 | C117: 1445466429133 | D117: 2404 | E117: 662 | F117: 313 | G117: 1Button | H117: SetTime | I117: dot | J117: f | K117: 60 | L117: brY | M117: 1.79 | N117: 1Button | P117: search | Q117: 2404
B118: 8 | C118: 1445429695613 | D118: 2553 | E118: 845 | F118: 397 | G118: 9Button | H118: SetTime | I118: dot | J118: m | K118: 30 | L118: brY | M118: 2.25 | N118: 9Button | P118: search | Q118: 2553
B119: 9 | C119: 1445432956813 | D119: 2674 | E119: 739 | F119: 361 | G119: 5Button | H119: NotActive | I119: dot | J119: f | K119: 60 | L119: brY | M119: 1.77 | N119: 5Button | P119: search | Q119: 2674
B120: 3 | C120: 1445376431358 | D120: 2724 | E120: 835 | F120: 456 | G120: StartButton | H120: SetTime | I120: dot | J120: f | K120: 50 | L120: brY | M120: 2.04 | N120: StartButton | P120: search | Q120: 2724
B121: 12 | C121: 1445418879611 | D121: 2804 | E121: 655 | F121: 297 | G121: 1Button | H121: NotActive | I121: dot | J121: f | K121: 40 | L121: brP | M121: 2.11 | N121: 1Button | P121: search | Q121: 2804
B122: 4 | C122: 1445466396196 | D122: 2835 | E122: 648 | F122: 399 | G122: 7Button | H122: NotActive | I122: dot | J122: f | K122: 60 | L122: brY | M122: 1.79 | N122: 7Button | P122: search | Q122: 2835
B123: 12 | C123: 1445418862216 | D123: 2854 | E123: 743 | F123: 294 | G123: 2Button | H123: NotActive | I123: dot | J123: f | K123: 40 | L123: brP | M123: 2.11 | N123: 2Button | P123: search | Q123: 2854
B124: 5 | C124: 1445368311081 | D124: 2904 | E124: 617 | F124: 237 | G124: TimerButton | H124: NotActive | I124: dot | J124: f | K124: 60 | L124: brY | M124: 2.06 | N124: TimerButton | P124: search | Q124: 2904
B125: 3 | C125: 1445376424968 | D125: 2984 | E125: 655 | F125: 315 | G125: 1Button | H125: SetTime | I125: dot | J125: f | K125: 50 | L125: brY | M125: 2.04 | N125: 1Button | P125: search | Q125: 2984
B126: 6 | C126: 1445423432908 | D126: 370 | E126: 631 | F126: 500 | G126: CancelButton | H126: SetTime | I126: dot | J126: f | K126: 50 | L126: brN | M126: 1.77 | N126: CancelButton | P126: search | Q126: 2994
B127: 3 | C127: 1445376418169 | D127: 3145 | E127: 614 | F127: 240 | G127: TimerButton | H127: NotActive | I127: dot | J127: f | K127: 50 | L127: brY | M127: 2.04 | N127: TimerButton | P127: search | Q127: 3145
B128: 2 | C128: 1445371825525 | D128: 351 | E128: 741 | F128: 294 | G128: 2Button | H128: SetPower | I128: dot | J128: m | K128: 50 | L128: brN | M128: 2.57 | N128: 2Button | P128: search | Q128: 3165
B129: 4 | C129: 1445466422503 | D129: 3224 | E129: 671 | F129: 227 | G129: TimerButton | H129: NotActive | I129: dot | J129: f | K129: 60 | L129: brY | M129: 1.79 | N129: TimerButton | P129: search | Q129: 3224
B130: 2 | C130: 1445371844352 | D130: 2554 | E130: 618 | F130: 229 | G130: TimerButton | H130: SetPower | I130: dot | J130: m | K130: 50 | L130: brN | M130: 2.57 | N130: TimerButton | P130: search | Q130: 3305
B131: 5 | C131: 1445368322257 | D131: 561 | E131: 810 | F131: 433 | G131: 9Button | H131: SetTime | I131: dot | J131: f | K131: 60 | L131: brY | M131: 2.06 | N131: 9Button | P131: search | Q131: 3305
B132: 4 | C132: 1445466403566 | D132: 3545 | E132: 761 | F132: 285 | G132: 2Button | H132: NotActive | I132: dot | J132: f | K132: 60 | L132: brY | M132: 1.79 | N132: 2Button | P132: search | Q132: 3545
B133: 12 | C133: 1445418886741 | D133: 3585 | E133: 842 | F133: 417 | G133: 9Button | H133: NotActive | I133: dot | J133: f | K133: 40 | L133: brP | M133: 2.11 | N133: 9Button | P133: search | Q133: 3585
B134: 8 | C134: 1445429723494 | D134: 591 | E134: 650 | F134: 496 | G134: CancelButton | H134: Cooking | I134: dot | J134: m | K134: 30 | L134: brY | M134: 2.25 | N134: CancelButton | P134: search | Q134: 3646
B135: 9 | C135: 1445432911538 | D135: 3666 | E135: 642 | F135: 408 | G135: 7Button | H135: NotActive | I135: dot | J135: f | K135: 60 | L135: brY | M135: 1.77 | N135: 7Button | P135: search | Q135: 3666
B136: 5 | C136: 1445368288399 | D136: 3696 | E136: 617 | F136: 468 | G136: CancelButton | H136: NotActive | I136: dot | J136: f | K136: 60 | L136: brY | M136: 2.06 | N136: CancelButton | P136: search | Q136: 3696
B137: 3 | C137: 1445376409957 | D137: 3706 | E137: 754 | F137: 288 | G137: 2Button | H137: NotActive | I137: dot | J137: f | K137: 50 | L137: brY | M137: 2.04 | N137: 2Button | P137: search | Q137: 3706
B138: 9 | C138: 1445432924476 | D138: 3785 | E138: 616 | F138: 228 | G138: TimerButton | H138: NotActive | I138: dot | J138: f | K138: 60 | L138: brY | M138: 1.77 | N138: TimerButton | P138: search | Q138: 3785
B139: 3 | C139: 1445376400944 | D139: 3836 | E139: 633 | F139: 485 | G139: CancelButton | H139: NotActive | I139: dot | J139: f | K139: 50 | L139: brY | M139: 2.04 | N139: CancelButton | P139: search | Q139: 3836
B140: 4 | C140: 1445466388625 | D140: 3906 | E140: 621 | F140: 487 | G140: CancelButton | H140: NotActive | I140: dot | J140: f | K140: 60 | L140: brY | M140: 1.79 | N140: CancelButton | P140: search | Q140: 3906
B141: 6 | C141: 1445423403706 | D141: 4126 | E141: 617 | F141: 216 | G141: TimerButton | H141: NotActive | I141: dot | J141: f | K141: 50 | L141: brN | M141: 1.77 | N141: TimerButton | P141: search | Q141: 4126
B142: 12 | C142: 1445418855196 | D142: 2614 | E142: 754 | F142: 362 | G142: 5Button | H142: NotActive | I142: dot | J142: f | K142: 40 | L142: brP | M142: 2.11 | N142: 5Button | P142: search | Q142: 4327
B143: 8 | C143: 1445429739036 | D143: 1933 | E143: 819 | F143: 478 | G143: StartButton | H143: NotActive | I143: dot | J143: m | K143: 30 | L143: brY | M143: 2.25 | N143: StartButton | P143: search | Q143: 4346
B144: 7 | C144: 1445426794552 | D144: 4356 | E144: 827 | F144: 410 | G144: 9Button | H144: NotActive | I144: dot | J144: f | K144: 20 | L144: brN | M144: 1.85 | N144: 9Button | P144: search | Q144: 4356
B145: 7 | C145: 1445426768544 | D145: 4496 | E145: 836 | F145: 454 | G145: StartButton | H145: NotActive | I145: dot | J145: f | K145: 20 | L145: brN | M145: 1.85 | N145: StartButton | P145: search | Q145: 4496
B146: 3 | C146: 1445376442524 | D146: 4877 | E146: 737 | F146: 361 | G146: 5Button | H146: NotActive | I146: dot | J146: f | K146: 50 | L146: brY | M146: 2.04 | N146: 5Button | P146: search | Q146: 4877
B147: 8 | C147: 1445429715021 | D147: 5367 | E147: 731 | F147: 300 | G147: 2Button | H147: SetTime | I147: dot | J147: m | K147: 30 | L147: brY | M147: 2.25 | N147: 2Button | P147: search | Q147: 5367
B148: 12 | C148: 1445418872060 | D148: 5448 | E148: 641 | F148: 420 | G148: 7Button | H148: NotActive | I148: dot | J148: f | K148: 40 | L148: brP | M148: 2.11 | N148: 7Button | P148: search | Q148: 5448
B149: 7 | C149: 1445426808222 | D149: 5468 | E149: 739 | F149: 303 | G149: 2Button | H149: SetTime | I149: dot | J149: f | K149: 20 | L149: brN | M149: 1.85 | N149: 2Button | P149: search | Q149: 5468
B150: 12 | C150: 1445418838912 | D150: 3835 | E150: 629 | F150: 454 | G150: CancelButton | H150: SetTime | I150: dot | J150: f | K150: 40 | L150: brP | M150: 2.11 | N150: CancelButton | P150: search | Q150: 5688
B151: 5 | C151: 1445368300075 | D151: 40 | E151: 757 | F151: 312 | G151: 2Button | H151: NotActive | I151: dot | J151: f | K151: 60 | L151: brY | M151: 2.06 | N151: 2Button | P151: search | Q151: 5878
B152: 12 | C152: 1445418897857 | D152: 7010 | E152: 853 | F152: 488 | G152: StartButton | H152: NotActive | I152: dot | J152: f | K152: 40 | L152: brP | M152: 2.11 | N152: StartButton | P152: search | Q152: 7010
B153: 4 | C153: 1445466445997 | D153: 7050 | E153: 805 | F153: 490 | G153: StartButton | H153: SetTime | I153: dot | J153: f | K153: 60 | L153: brY | M153: 1.79 | N153: StartButton | P153: search | Q153: 7050
B154: 6 | C154: 1445423468559 | D154: 2133 | E154: 830 | F154: 402 | G154: 9Button | H154: NotActive | I154: dot | J154: f | K154: 50 | L154: brN | M154: 1.77 | N154: 9Button | P154: search | Q154: 7150
B155: 2 | C155: 1445371871411 | D155: 7341 | E155: 821 | F155: 465 | G155: StartButton | H155: Cooking | I155: dot | J155: m | K155: 50 | L155: brN | M155: 2.57 | N155: CancelButton | P155: search | Q155: 9204
B156: 5 | C156: 1445368334945 | D156: 9223 | E156: 818 | F156: 461 | G156: StartButton | H156: SetTime | I156: dot | J156: f | K156: 60 | L156: brY | M156: 2.06 | N156: StartButton | P156: search | Q156: 9223
B157: 12 | C157: 1445418826755 | D157: 11036 | E157: 629 | F157: 264 | G157: TimerButton | H157: NotActive | I157: dot | J157: f | K157: 40 | L157: brP | M157: 2.11 | N157: TimerButton | P157: search | Q157: 11036
B158: 6 | C158: 1445423859031 | D158: 711 | E158: 741 | F158: 346 | G158: 5Button | H158: NotActive | I158: tac | J158: f | K158: 50 | L158: brN | M158: 1.77 | N158: 5Button | P158: search | Q158: 711
B159: 7 | C159: 1445426331586 | D159: 1151 | E159: 755 | F159: 302 | G159: 2Button | H159: NotActive | I159: tac | J159: f | K159: 20 | L159: brN | M159: 1.85 | N159: 2Button | P159: search | Q159: 1151
B160: 7 | C160: 1445426365705 | D160: 1161 | E160: 828 | F160: 410 | G160: 9Button | H160: SetTime | I160: tac | J160: f | K160: 20 | L160: brN | M160: 1.85 | N160: 9Button | P160: search | Q160: 1161
B161: 7 | C161: 1445426371033 | D161: 1192 | E161: 799 | F161: 462 | G161: StartButton | H161: SetTime | I161: tac | J161: f | K161: 20 | L161: brN | M161: 1.85 | N161: StartButton | P161: search | Q161: 1192
B162: 8 | C162: 1445430238865 | D162: 361 | E162: 658 | F162: 251 | G162: TimerButton | H162: SetPower | I162: tac | J162: m | K162: 30 | L162: brY | M162: 2.25 | N162: TimerButton | P162: search | Q162: 1232
B163: 2 | C163: 1445372210428 | D163: 320 | E163: 741 | F163: 307 | G163: 2Button | H163: SetTime | I163: tac | J163: m | K163: 50 | L163: brN | M163: 2.57 | N163: 2Button | P163: search | Q163: 1402
B164: 8 | C164: 1445430261788 | D164: 421 | E164: 844 | F164: 414 | G164: 9Button | H164: SetPower | I164: tac | J164: m | K164: 30 | L164: brY | M164: 2.25 | N164: 9Button | P164: search | Q164: 1453
B165: 5 | C165: 1445368690447 | D165: 301 | E165: 658 | F165: 423 | G165: 7Button | H165: SetTime | I165: tac | J165: f | K165: 60 | L165: brY | M165: 2.06 | N165: 7Button | P165: search | Q165: 1543
B166: 5 | C166: 1445368695564 | D166: 1562 | E166: 634 | F166: 490 | G166: CancelButton | H166: SetTime | I166: tac | J166: f | K166: 60 | L166: brY | M166: 2.06 | N166: CancelButton | P166: search | Q166: 1562
B167: 2 | C167: 1445372215626 | D167: 571 | E167: 741 | F167: 379 | G167: 5Button | H167: SetTime | I167: tac | J167: m | K167: 50 | L167: brN | M167: 2.57 | N167: 5Button | P167: search | Q167: 1573
B168: 2 | C168: 1445372184220 | D168: 450 | E168: 821 | F168: 495 | G168: StartButton | H168: NotActive | I168: tac | J168: m | K168: 50 | L168: brN | M168: 2.57 | N168: StartButton | P168: search | Q168: 1582
B169: 5 | C169: 1445368685820 | D169: 1622 | E169: 655 | F169: 312 | G169: 1Button | H169: SetTime | I169: tac | J169: f | K169: 60 | L169: brY | M169: 2.06 | N169: 1Button | P169: search | Q169: 1622
B170: 3 | C170: 1445376144265 | D170: 1673 | E170: 828 | F170: 418 | G170: 9Button | H170: NotActive | I170: tac | J170: f | K170: 50 | L170: brY | M170: 2.04 | N170: 9Button | P170: search | Q170: 1673
B171: 6 | C171: 1445423863067 | D171: 1703 | E171: 813 | F171: 482 | G171: StartButton | H171: NotActive | I171: tac | J171: f | K171: 50 | L171: brN | M171: 1.77 | N171: StartButton | P171: search | Q171: 1703
B172: 3 | C172: 1445376156562 | D172: 1782 | E172: 835 | F172: 485 | G172: StartButton | H172: NotActive | I172: tac | J172: f | K172: 50 | L172: brY | M172: 2.04 | N172: StartButton | P172: search | Q172: 1782
B173: 2 | C173: 1445372221384 | D173: 751 | E173: 634 | F173: 221 | G173: TimerButton | H173: SetTime | I173: tac | J173: m | K173: 50 | L173: brN | M173: 2.57 | N173: TimerButton | P173: search | Q173: 1783
B174: 5 | C174: 1445368663788 | D174: 1912 | E174: 856 | F174: 478 | G174: StartButton | H174: SetPower | I174: tac | J174: f | K174: 60 | L174: brY | M174: 2.06 | N174: StartButton | P174: search | Q174: 1912
B175: 5 | C175: 1445368674874 | D175: 350 | E175: 634 | F175: 237 | G175: TimerButton | H175: SetTime | I175: tac | J175: f | K175: 60 | L175: brY | M175: 2.06 | N175: TimerButton | P175: search | Q175: 1933
B176: 7 | C176: 1445426355210 | D176: 1933 | E176: 616 | F176: 486 | G176: CancelButton | H176: SetTime | I176: tac | J176: f | K176: 20 | L176: brN | M176: 1.85 | N176: CancelButton | P176: search | Q176: 1933
B177: 9 | C177: 1445433184250 | D177: 1993 | E177: 642 | F177: 309 | G177: 1Button | H177: NotActive | I177: tac | J177: f | K177: 60 | L177: brY | M177: 1.77 | N177: 1Button | P177: search | Q177: 1993
B178: 4 | C178: 1445466680124 | D178: 2033 | E178: 655 | F178: 471 | G178: CancelButton | H178: SetTime | I178: tac | J178: f | K178: 60 | L178: brY | M178: 1.79 | N178: CancelButton | P178: search | Q178: 2033
B179: 4 | C179: 1445466703207 | D179: 2043 | E179: 648 | F179: 416 | G179: 7Button | H179: NotActive | I179: tac | J179: f | K179: 60 | L179: brY | M179: 1.79 | N179: 7Button | P179: search | Q179: 2043
B180: 4 | C180: 1445466691791 | D180: 2073 | E180: 822 | F180: 476 | G180: StartButton | H180: NotActive | I180: tac | J180: f | K180: 60 | L180: brY | M180: 1.79 | N180: StartButton | P180: search | Q180: 2073
B181: 11 | C181: 1445441096006 | D181: 2073 | E181: 666 | F181: 422 | G181: 7Button | H181: NotActive | I181: tac | J181: f | K181: 30 | L181: brY | M181: 1.77 | N181: 7Button | P181: search | Q181: 2073
B182: 6 | C182: 1445423868735 | D182: 2113 | E182: 646 | F182: 310 | G182: 1Button | H182: NotActive | I182: tac | J182: f | K182: 50 | L182: brN | M182: 1.77 | N182: 1Button | P182: search | Q182: 2113
B183: 2 | C183: 1445372178242 | D183: 321 | E183: 622 | F183: 464 | G183: CancelButton | H183: NotActive | I183: tac | J183: m | K183: 50 | L183: brN | M183: 2.57 | N183: CancelButton | P183: search | Q183: 2163
B184: 7 | C184: 1445426349993 | D184: 2163 | E184: 655 | F184: 414 | G184: 7Button | H184: SetTime | I184: tac | J184: f | K184: 20 | L184: brN | M184: 1.85 | N184: 7Button | P184: search | Q184: 2163
B185: 8 | C185: 1445430244743 | D185: 631 | E185: 633 | F185: 491 | G185: CancelButton | H185: SetTime | I185: tac | J185: m | K185: 30 | L185: brY | M185: 2.25 | N185: CancelButton | P185: search | Q185: 2163
B186: 7 | C186: 1445426344415 | D186: 2184 | E186: 632 | F186: 226 | G186: TimerButton | H186: NotActive | I186: tac | J186: f | K186: 20 | L186: brN | M186: 1.85 | N186: TimerButton | P186: search | Q186: 2184
B187: 9 | C187: 1445433156901 | D187: 1603 | E187: 818 | F187: 463 | G187: StartButton | H187: NotActive | I187: tac | J187: f | K187: 60 | L187: brY | M187: 1.77 | N187: StartButton | P187: search | Q187: 2214
B188: 8 | C188: 1445430275748 | D188: 371 | E188: 660 | F188: 304 | G188: 1Button | H188: SetTime | I188: tac | J188: m | K188: 30 | L188: brY | M188: 2.25 | N188: 1Button | P188: search | Q188: 2234
B189: 3 | C189: 1445376150864 | D189: 2243 | E189: 640 | F189: 314 | G189: 1Button | H189: NotActive | I189: tac | J189: f | K189: 50 | L189: brY | M189: 2.04 | N189: 1Button | P189: search | Q189: 2243
B190: 11 | C190: 1445441060706 | D190: 2244 | E190: 764 | F190: 311 | G190: 2Button | H190: NotActive | I190: tac | J190: f | K190: 30 | L190: brY | M190: 1.77 | N190: 2Button | P190: search | Q190: 2244
B191: 3 | C191: 1445376131817 | D191: 2314 | E191: 738 | F191: 312 | G191: 2Button | H191: NotActive | I191: tac | J191: f | K191: 50 | L191: brY | M191: 2.04 | N191: 2Button | P191: search | Q191: 2314
B192: 3 | C192: 1445376173477 | D192: 2344 | E192: 755 | F192: 364 | G192: 5Button | H192: SetTime | I192: tac | J192: f | K192: 50 | L192: brY | M192: 2.04 | N192: 5Button | P192: search | Q192: 2344
B193: 6 | C193: 1445423874473 | D193: 2353 | E193: 618 | F193: 475 | G193: CancelButton | H193: NotActive | I193: tac | J193: f | K193: 50 | L193: brN | M193: 1.77 | N193: CancelButton | P193: search | Q193: 2353
B194: 4 | C194: 1445466697789 | D194: 2393 | E194: 762 | F194: 359 | G194: 5Button | H194: NotActive | I194: tac | J194: f | K194: 60 | L194: brY | M194: 1.79 | N194: 5Button | P194: search | Q194: 2393
B195: 9 | C195: 1445433191090 | D195: 2394 | E195: 828 | F195: 410 | G195: 9Button | H195: NotActive | I195: tac | J195: f | K195: 60 | L195: brY | M195: 1.77 | N195: 9Button | P195: search | Q195: 2394
B196: 2 | C196: 1445372190950 | D196: 320 | E196: 846 | F196: 429 | G196: 9Button | H196: NotActive | I196: tac | J196: m | K196: 50 | L196: brN | M196: 2.57 | N196: 9Button | P196: search | Q196: 2433
B197: 11 | C197: 1445441102075 | D197: 2453 | E197: 848 | F197: 476 | G197: StartButton | H197: NotActive | I197: tac | J197: f | K197: 30 | L197: brY | M197: 1.77 | N197: StartButton | P197: search | Q197: 2453
B198: 2 | C198: 1445372197720 | D198: 170 | E198: 644 | F198: 435 | G198: 7Button | H198: NotActive | I198: tac | J198: m | K198: 50 | L198: brN | M198: 2.57 | N198: 7Button | P198: search | Q198: 2484
B199: 8 | C199: 1445430233246 | D199: 450 | E199: 757 | F199: 343 | G199: 5Button | H199: SetPower | I199: tac | J199: m | K199: 30 | L199: brY | M199: 2.25 | N199: 5Button | P199: search | Q199: 2503
B200: 4 | C200: 1445466686062 | D200: 2533 | E200: 648 | F200: 308 | G200: 1Button | H200: NotActive | I200: tac | J200: f | K200: 60 | L200: brY | M200: 1.79 | N200: 1Button | P200: search | Q200: 2533
... 113 more rows

Sheet searchError
B1: id | C1: time | D1: timegap | E1: x | F1: y | G1: buttonPressed | H1: state | I1: overlay | J1: mf | K1: age | L1: braille | M1: finger | N1: buttonExpected | O1: error | P1: mode | Q1: time | R1: altTime | S1: q1 | T1: q2 | U1: q3 | X1: but | Y1: dot | Z1: tac | AA1: tou | AB1: Grand Total
A2: micro: | B2: 2 | C2: 1445371522889 | D2: 761 | E2: 634 | F2: 459 | G2: CancelButton | H2: NotActive | I2: tou | J2: m | K2: 50 | L2: brN | M2: 2.57 | N2: CancelButton | O2: Correct! | P2: search | Q2: 8692 | V2: 1Button | W2: 1Button | X2: =COUNTIFS($I$2:$I$336,X$1,$N$2:$N$336,$V2) -> 11 | Y2: =COUNTIFS($I$2:$I$336,Y$1,$N$2:$N$336,$W$2) -> 10 | Z2: =COUNTIFS($I$2:$I$336,Z$1,$N$2:$N$336,$W$2) -> 10 | AA2: =COUNTIFS($I$2:$I$336,AA$1,$N$2:$N$336,$W$2) -> 11 | AB2: =SUM(X2:AA2) -> 42
A3: micro: | B3: 2 | C3: 1445371553734 | D3: 942 | E3: 758 | F3: 320 | G3: 2Button | H3: SetPower | I3: tou | J3: m | K3: 50 | L3: brN | M3: 2.57 | N3: 5Button | O3: x | P3: search | W3: error (x) | X3: =COUNTIFS($I$2:$I$336,X$1,$N$2:$N$336,$W$2,$O$2:$O$336,"x") -> 1 | Y3: =COUNTIFS($I$2:$I$336,Y$1,$N$2:$N$336,$W$2,$O$2:$O$336,"x") -> 0 | Z3: =COUNTIFS($I$2:$I$336,Z$1,$N$2:$N$336,$W$2,$O$2:$O$336,"x") -> 1 | AA3: =COUNTIFS($I$2:$I$336,AA$1,$N$2:$N$336,$W$2,$O$2:$O$336,"x") -> 2 | AB3: 4 | AD3: error | AE3: x
A4: micro: | B4: 2 | C4: 1445371561595 | D4: 140 | E4: 848 | F4: 428 | G4: 9Button | H4: SetPower | I4: tou | J4: m | K4: 50 | L4: brN | M4: 2.57 | N4: 9Button | O4: Correct! | P4: search | Q4: 3585 | W4: % error E(x) | X4: =X3/X2 -> 0.09090909091 | Y4: =Y3/Y2 -> 0 | Z4: =Z3/Z2 -> 0.1 | AA4: =AA3/AA2 -> 0.1818181818 | AB4: =AB3/AB2 -> 0.09523809524
A5: micro: | B5: 2 | C5: 1445371569997 | D5: 801 | E5: 644 | F5: 324 | G5: 1Button | H5: SetTime | I5: tou | J5: m | K5: 50 | L5: brN | M5: 2.57 | N5: 1Button | O5: Correct! | P5: search | Q5: 4196 | V5: 2Button | W5: 2Button | X5: =COUNTIFS($I$2:$I$336,X$1,$N$2:$N$336,$W$5) -> 11 | Y5: =COUNTIFS($I$2:$I$336,Y$1,$N$2:$N$336,$W$5) -> 10 | Z5: =COUNTIFS($I$2:$I$336,Z$1,$N$2:$N$336,$W$5) -> 10 | AA5: =COUNTIFS($I$2:$I$336,AA$1,$N$2:$N$336,$W$5) -> 11 | AB5: =SUM(X5:AA5) -> 42 | AD5: Count of error | AE5: Column Labels
A6: micro: | B6: 2 | C6: 1445371576326 | D6: 1592 | E6: 800 | F6: 473 | G6: StartButton | H6: SetTime | I6: tou | J6: m | K6: 50 | L6: brN | M6: 2.57 | N6: StartButton | O6: Correct! | P6: search | Q6: 1592 | W6: error | X6: =COUNTIFS($I$2:$I$336,X$1,$N$2:$N$336,$W$5,$O$2:$O$336,"x") -> 0 | Y6: =COUNTIFS($I$2:$I$336,Y$1,$N$2:$N$336,$W$5,$O$2:$O$336,"x") -> 2 | Z6: =COUNTIFS($I$2:$I$336,Z$1,$N$2:$N$336,$W$5,$O$2:$O$336,"x") -> 1 | AA6: =COUNTIFS($I$2:$I$336,AA$1,$N$2:$N$336,$W$5,$O$2:$O$336,"x") -> 2 | AB6: 5 | AD6: Row Labels | AE6: but | AF6: dot | AG6: tac | AH6: tou | AI6: Grand Total
A7: micro: | B7: 2 | C7: 1445371581964 | D7: 240 | E7: 634 | F7: 228 | G7: TimerButton | H7: Cooking | I7: tou | J7: m | K7: 50 | L7: brN | M7: 2.57 | N7: TimerButton | O7: Correct! | P7: search | Q7: 1862 | W7: % error | X7: =X6/X5 -> 0 | Y7: =Y6/Y5 -> 0.2 | Z7: =Z6/Z5 -> 0.1 | AA7: =AA6/AA5 -> 0.1818181818 | AB7: =AB6/AB5 -> 0.119047619 | AD7: 1Button | AE7: 1 | AG7: 1 | AH7: 2 | AI7: 4
A8: micro: | B8: 2 | C8: 1445371599740 | D8: 4036 | E8: 628 | F8: 417 | G8: 7Button | H8: NotActive | I8: tou | J8: m | K8: 50 | L8: brN | M8: 2.57 | N8: 7Button | O8: Correct! | P8: search | Q8: 6620 | V8: 5Button | W8: 5Button | X8: =COUNTIFS($I$2:$I$336,X$1,$N$2:$N$336,$W$8) -> 11 | Y8: =COUNTIFS($I$2:$I$336,Y$1,$N$2:$N$336,$W$8) -> 10 | Z8: =COUNTIFS($I$2:$I$336,Z$1,$N$2:$N$336,$W$8) -> 10 | AA8: =COUNTIFS($I$2:$I$336,AA$1,$N$2:$N$336,$W$8) -> 11 | AB8: =SUM(X8:AA8) -> 42 | AD8: 2Button | AF8: 2 | AG8: 1 | AH8: 2 | AI8: 5
A9: micro: | B9: 2 | C9: 1445371610646 | D9: 110 | E9: 662 | F9: 323 | G9: 1Button | H9: SetTime | I9: tou | J9: m | K9: 50 | L9: brN | M9: 2.57 | N9: 2Button | O9: x | P9: search | W9: error | X9: =COUNTIFS($I$2:$I$336,X$1,$N$2:$N$336,$W$8,$O$2:$O$336,"x") -> 0 | Y9: =COUNTIFS($I$2:$I$336,Y$1,$N$2:$N$336,$W$8,$O$2:$O$336,"x") -> 0 | Z9: =COUNTIFS($I$2:$I$336,Z$1,$N$2:$N$336,$W$8,$O$2:$O$336,"x") -> 0 | AA9: =COUNTIFS($I$2:$I$336,AA$1,$N$2:$N$336,$W$8,$O$2:$O$336,"x") -> 2 | AB9: 2 | AD9: 4Button | AE9: 1 | AI9: 1
A10: micro: | B10: 2 | C10: 1445371825525 | D10: 351 | E10: 741 | F10: 294 | G10: 2Button | H10: SetPower | I10: dot | J10: m | K10: 50 | L10: brN | M10: 2.57 | N10: 2Button | O10: Correct! | P10: search | Q10: 3165 | W10: % error | X10: =X9/X8 -> 0 | Y10: =Y9/Y8 -> 0 | Z10: =Z9/Z8 -> 0 | AA10: =AA9/AA8 -> 0.1818181818 | AB10: =AB9/AB8 -> 0.04761904762 | AD10: 5Button | AH10: 2 | AI10: 2
A11: micro: | B11: 2 | C11: 1445371830592 | D11: 200 | E11: 644 | F11: 321 | G11: 1Button | H11: SetPower | I11: dot | J11: m | K11: 50 | L11: brN | M11: 2.57 | N11: 7Button | O11: x | P11: search | V11: 7Button | W11: 7Button | X11: =COUNTIFS($I$2:$I$336,X$1,$N$2:$N$336,$W$11) -> 10 | Y11: =COUNTIFS($I$2:$I$336,Y$1,$N$2:$N$336,$W$11) -> 10 | Z11: =COUNTIFS($I$2:$I$336,Z$1,$N$2:$N$336,$W$11) -> 10 | AA11: =COUNTIFS($I$2:$I$336,AA$1,$N$2:$N$336,$W$11) -> 11 | AB11: =SUM(X11:AA11) -> 41 | AD11: 7Button | AF11: 3 | AH11: 1 | AI11: 4
A12: micro: | B12: 2 | C12: 1445371844352 | D12: 2554 | E12: 618 | F12: 229 | G12: TimerButton | H12: SetPower | I12: dot | J12: m | K12: 50 | L12: brN | M12: 2.57 | N12: TimerButton | O12: Correct! | P12: search | Q12: 3305 | W12: error | X12: =COUNTIFS($I$2:$I$336,X$1,$N$2:$N$336,$W$11,$O$2:$O$336,"x") -> 0 | Y12: =COUNTIFS($I$2:$I$336,Y$1,$N$2:$N$336,$W$11,$O$2:$O$336,"x") -> 3 | Z12: =COUNTIFS($I$2:$I$336,Z$1,$N$2:$N$336,$W$11,$O$2:$O$336,"x") -> 0 | AA12: =SUMIFS(ct2ButtonTimes, ct2Overlay,Y12,ct2Mode,"coffee", ct2Age,"60") ->  | AD12: 9Button | AF12: 2 | AI12: 2
A13: micro: | B13: 2 | C13: 1445371851422 | D13: 1693 | E13: 644 | F13: 303 | G13: 1Button | H13: SetTime | I13: dot | J13: m | K13: 50 | L13: brN | M13: 2.57 | N13: 1Button | O13: Correct! | P13: search | Q13: 1693 | W13: % error | X13: =X12/X11 -> 0 | Y13: =Y12/Y11 -> 0.3 | Z13: =Z12/Z11 -> 0 | AA13: =AA12/AA11 ->  | AB13: =AB12/AB11 ->  | AD13: StartButton | AF13: 2 | AI13: 2
A14: micro: | B14: 2 | C14: 1445371858001 | D14: 1392 | E14: 761 | F14: 364 | G14: 5Button | H14: SetTime | I14: dot | J14: m | K14: 50 | L14: brN | M14: 2.57 | N14: 5Button | O14: Correct! | P14: search | Q14: 1392 | V14: 9Button | W14: 9Button | X14: =COUNTIFS($I$2:$I$336,X$1,$N$2:$N$336,$W$14) -> 11 | Y14: =COUNTIFS($I$2:$I$336,Y$1,$N$2:$N$336,$W$14) -> 10 | Z14: =COUNTIFS($I$2:$I$336,Z$1,$N$2:$N$336,$W$14) -> 10 | AA14: =COUNTIFS($I$2:$I$336,AA$1,$N$2:$N$336,$W$14) -> 11 | AB14: =SUM(X14:AA14) -> 42 | AD14: TimerButton | AF14: 1 | AG14: 1 | AH14: 1 | AI14: 3
A15: micro: | B15: 2 | C15: 1445371871411 | D15: 7341 | E15: 821 | F15: 465 | G15: StartButton | H15: Cooking | I15: dot | J15: m | K15: 50 | L15: brN | M15: 2.57 | N15: CancelButton | O15: Correct! | P15: search | Q15: 9204 | W15: error | X15: =COUNTIFS($I$2:$I$336,X$1,$N$2:$N$336,$W$14,$O$2:$O$336,"x") -> 0 | Y15: =COUNTIFS($I$2:$I$336,Y$1,$N$2:$N$336,$W$14,$O$2:$O$336,"x") -> 2 | Z15: =COUNTIFS($I$2:$I$336,Z$1,$N$2:$N$336,$W$14,$O$2:$O$336,"x") -> 0 | AA15: =COUNTIFS($I$2:$I$336,AA$1,$N$2:$N$336,$W$14,$O$2:$O$336,"x") -> 0 | AB15: =SUM(X15:AA15) -> 2 | AD15: Grand Total | AE15: 2 | AF15: 10 | AG15: 3 | AH15: 8 | AI15: 23
A16: micro: | B16: 2 | C16: 1445371879883 | D16: 751 | E16: 810 | F16: 409 | G16: 9Button | H16: Cooking | I16: dot | J16: m | K16: 50 | L16: brN | M16: 2.57 | N16: 9Button | O16: Correct! | P16: search | Q16: 1793 | W16: % error | X16: =X15/X14 -> 0 | Y16: =Y15/Y14 -> 0.2 | Z16: =Z15/Z14 -> 0 | AA16: =AA15/AA14 -> 0 | AB16: =AB15/AB14 -> 0.04761904762
A17: micro: | B17: 2 | C17: 1445371887844 | D17: 1081 | E17: 670 | F17: 484 | G17: CancelButton | H17: Cooking | I17: dot | J17: m | K17: 50 | L17: brN | M17: 2.57 | N17: StartButton | O17: x | P17: search | V17: Cancel | W17: CancelButton | X17: =COUNTIFS($I$2:$I$336,X$1,$N$2:$N$336,$W$17) -> 11 | Y17: =COUNTIFS($I$2:$I$336,Y$1,$N$2:$N$336,$W$17) -> 10 | Z17: =COUNTIFS($I$2:$I$336,Z$1,$N$2:$N$336,$W$17) -> 10 | AA17: =COUNTIFS($I$2:$I$336,AA$1,$N$2:$N$336,$W$17) -> 11 | AB17: =SUM(X17:AA17) -> 42
A18: micro: | B18: 2 | C18: 1445372012904 | D18: 2103 | E18: 838 | F18: 469 | G18: StartButton | H18: NotActive | I18: but | J18: m | K18: 50 | L18: brN | M18: 2.57 | N18: StartButton | O18: Correct! | P18: search | Q18: 2103 | W18: error | X18: =COUNTIFS($I$2:$I$336,X$1,$N$2:$N$336,$W$17,$O$2:$O$336,"x") -> 0 | Y18: =COUNTIFS($I$2:$I$336,Y$1,$N$2:$N$336,$W$17,$O$2:$O$336,"x") -> 0 | Z18: =COUNTIFS($I$2:$I$336,Z$1,$N$2:$N$336,$W$17,$O$2:$O$336,"x") -> 0 | AA18: =COUNTIFS($I$2:$I$336,AA$1,$N$2:$N$336,$W$17,$O$2:$O$336,"x") -> 0 | AB18: =SUM(X18:AA18) -> 0
A19: micro: | B19: 2 | C19: 1445372022708 | D19: 3875 | E19: 848 | F19: 424 | G19: 9Button | H19: NotActive | I19: but | J19: m | K19: 50 | L19: brN | M19: 2.57 | N19: 9Button | O19: Correct! | P19: search | Q19: 5037 | W19: % error | X19: =X18/X17 -> 0 | Y19: =Y18/Y17 -> 0 | Z19: =Z18/Z17 -> 0 | AA19: =AA18/AA17 -> 0 | AB19: =AB18/AB17 -> 0
A20: micro: | B20: 2 | C20: 1445372032262 | D20: 3765 | E20: 649 | F20: 229 | G20: TimerButton | H20: NotActive | I20: but | J20: m | K20: 50 | L20: brN | M20: 2.57 | N20: TimerButton | O20: Correct! | P20: search | Q20: 5488 | V20: Start | W20: StartButton | X20: =COUNTIFS($I$2:$I$336,X$1,$N$2:$N$336,$W$20) -> 11 | Y20: =COUNTIFS($I$2:$I$336,Y$1,$N$2:$N$336,$W$20) -> 10 | Z20: =COUNTIFS($I$2:$I$336,Z$1,$N$2:$N$336,$W$20) -> 10 | AA20: =COUNTIFS($I$2:$I$336,AA$1,$N$2:$N$336,$W$20) -> 10 | AB20: =SUM(X20:AA20) -> 41
A21: micro: | B21: 2 | C21: 1445372038341 | D21: 581 | E21: 644 | F21: 417 | G21: 7Button | H21: SetTime | I21: but | J21: m | K21: 50 | L21: brN | M21: 2.57 | N21: 7Button | O21: Correct! | P21: search | Q21: 1833 | W21: error | X21: =COUNTIFS($I$2:$I$336,X$1,$N$2:$N$336,$W$20,$O$2:$O$336,"x") -> 0 | Y21: =COUNTIFS($I$2:$I$336,Y$1,$N$2:$N$336,$W$20,$O$2:$O$336,"x") -> 2 | Z21: =COUNTIFS($I$2:$I$336,Z$1,$N$2:$N$336,$W$20,$O$2:$O$336,"x") -> 0 | AA21: =COUNTIFS($I$2:$I$336,AA$1,$N$2:$N$336,$W$20,$O$2:$O$336,"x") -> 0 | AB21: =SUM(X21:AA21) -> 2
A22: micro: | B22: 2 | C22: 1445372047854 | D22: 661 | E22: 757 | F22: 293 | G22: 2Button | H22: SetPower | I22: but | J22: m | K22: 50 | L22: brN | M22: 2.57 | N22: 2Button | O22: Correct! | P22: search | Q22: 5568 | W22: % error | X22: =X21/X20 -> 0 | Y22: =Y21/Y20 -> 0.2 | Z22: =Z21/Z20 -> 0 | AA22: =AA21/AA20 -> 0 | AB22: =AB21/AB20 -> 0.0487804878
A23: micro: | B23: 2 | C23: 1445372055656 | D23: 151 | E23: 678 | F23: 307 | G23: 1Button | H23: SetPower | I23: but | J23: m | K23: 50 | L23: brN | M23: 2.57 | N23: 1Button | O23: Correct! | P23: search | Q23: 3546 | V23: Timer | W23: TimerButton | X23: =COUNTIFS($I$2:$I$336,X$1,$N$2:$N$336,$W$23) -> 11 | Y23: =COUNTIFS($I$2:$I$336,Y$1,$N$2:$N$336,$W$23) -> 10 | Z23: =COUNTIFS($I$2:$I$336,Z$1,$N$2:$N$336,$W$23) -> 10 | AA23: =COUNTIFS($I$2:$I$336,AA$1,$N$2:$N$336,$W$23) -> 11 | AB23: =SUM(X23:AA23) -> 42
A24: micro: | B24: 2 | C24: 1445372065430 | D24: 321 | E24: 741 | F24: 379 | G24: 5Button | H24: SetPower | I24: but | J24: m | K24: 50 | L24: brN | M24: 2.57 | N24: 5Button | O24: Correct! | P24: search | Q24: 3996 | W24: error | X24: =COUNTIFS($I$2:$I$336,X$1,$N$2:$N$336,$W$23,$O$2:$O$336,"x") -> 0 | Y24: =COUNTIFS($I$2:$I$336,Y$1,$N$2:$N$336,$W$23,$O$2:$O$336,"x") -> 1 | Z24: =COUNTIFS($I$2:$I$336,Z$1,$N$2:$N$336,$W$23,$O$2:$O$336,"x") -> 1 | AA24: =COUNTIFS($I$2:$I$336,AA$1,$N$2:$N$336,$W$23,$O$2:$O$336,"x") -> 1 | AB24: =SUM(X24:AA24) -> 3
A25: micro: | B25: 2 | C25: 1445372071518 | D25: 1452 | E25: 634 | F25: 489 | G25: CancelButton | H25: SetPower | I25: but | J25: m | K25: 50 | L25: brN | M25: 2.57 | N25: CancelButton | O25: Correct! | P25: search | Q25: 1452 | W25: % error | X25: =X24/X23 -> 0 | Y25: =Y24/Y23 -> 0.1 | Z25: =Z24/Z23 -> 0.1 | AA25: =AA24/AA23 -> 0.09090909091 | AB25: =AB24/AB23 -> 0.07142857143
A26: micro: | B26: 2 | C26: 1445372178242 | D26: 321 | E26: 622 | F26: 464 | G26: CancelButton | H26: NotActive | I26: tac | J26: m | K26: 50 | L26: brN | M26: 2.57 | N26: CancelButton | O26: Correct! | P26: search | Q26: 2163 | W26: Grand Total | X26: =X23+X20+X17+X14+X11+X8+X5+X2 -> 87 | Y26: 80 | Z26: 80 | AA26: 87
A27: micro: | B27: 2 | C27: 1445372184220 | D27: 450 | E27: 821 | F27: 495 | G27: StartButton | H27: NotActive | I27: tac | J27: m | K27: 50 | L27: brN | M27: 2.57 | N27: StartButton | O27: Correct! | P27: search | Q27: 1582 | W27: # of Errors (x) | X27: 1 | Y27: 10 | Z27: 3
A28: micro: | B28: 2 | C28: 1445372190950 | D28: 320 | E28: 846 | F28: 429 | G28: 9Button | H28: NotActive | I28: tac | J28: m | K28: 50 | L28: brN | M28: 2.57 | N28: 9Button | O28: Correct! | P28: search | Q28: 2433 | W28: p(x) | X28: =X27/X26 -> 0.01149425287 | Y28: =Y27/Y26 -> 0.125 | Z28: =Z27/Z26 -> 0.0375 | AA28: =AA27/AA26 -> 
A29: micro: | B29: 2 | C29: 1445372197720 | D29: 170 | E29: 644 | F29: 435 | G29: 7Button | H29: NotActive | I29: tac | J29: m | K29: 50 | L29: brN | M29: 2.57 | N29: 7Button | O29: Correct! | P29: search | Q29: 2484 | W29: Var (x) | X29: =X28*X26*(1-X28) -> 0.9885057471 | Y29: =Y28*Y26*(1-Y28) -> 8.75 | Z29: =Z28*Z26*(1-Z28) -> 2.8875 | AA29: =AA28*AA26*(1-AA28) -> 
A30: micro: | B30: 2 | C30: 1445372204920 | D30: 140 | E30: 644 | F30: 312 | G30: 1Button | H30: SetTime | I30: tac | J30: m | K30: 50 | L30: brN | M30: 2.57 | N30: 1Button | O30: Correct! | P30: search | Q30: 2754 | W30: SD(x) | X30: =(X29)^0.5 -> 0.9942362632 | Y30: =(Y29)^0.5 -> 2.958039892 | Z30: =(Z29)^0.5 -> 1.699264547 | AA30: =(AA29)^0.5 -> 
A31: micro: | B31: 2 | C31: 1445372210428 | D31: 320 | E31: 741 | F31: 307 | G31: 2Button | H31: SetTime | I31: tac | J31: m | K31: 50 | L31: brN | M31: 2.57 | N31: 2Button | O31: Correct! | P31: search | Q31: 1402
A32: micro: | B32: 2 | C32: 1445372215626 | D32: 571 | E32: 741 | F32: 379 | G32: 5Button | H32: SetTime | I32: tac | J32: m | K32: 50 | L32: brN | M32: 2.57 | N32: 5Button | O32: Correct! | P32: search | Q32: 1573 | Y32: null
A33: micro: | B33: 2 | C33: 1445372221384 | D33: 751 | E33: 634 | F33: 221 | G33: TimerButton | H33: SetTime | I33: tac | J33: m | K33: 50 | L33: brN | M33: 2.57 | N33: TimerButton | O33: Correct! | P33: search | Q33: 1783
A34: micro: | B34: 3 | C34: 1445375671715 | D34: 2964 | E34: 646 | F34: 223 | G34: TimerButton | H34: NotActive | I34: but | J34: f | K34: 50 | L34: brY | M34: 2.04 | N34: TimerButton | O34: Correct! | P34: search | Q34: 2964
A35: micro: | B35: 3 | C35: 1445375685615 | D35: 9373 | E35: 754 | F35: 285 | G35: 2Button | H35: SetTime | I35: but | J35: f | K35: 50 | L35: brY | M35: 2.04 | N35: 2Button | O35: Correct! | P35: search | Q35: 9373 | X35: Overall
A36: micro: | B36: 3 | C36: 1445375694478 | D36: 2203 | E36: 735 | F36: 370 | G36: 5Button | H36: SetTime | I36: but | J36: f | K36: 50 | L36: brY | M36: 2.04 | N36: 5Button | O36: Correct! | P36: search | Q36: 2203
A37: micro: | B37: 3 | C37: 1445375701348 | D37: 2504 | E37: 659 | F37: 403 | G37: 7Button | H37: SetTime | I37: but | J37: f | K37: 50 | L37: brY | M37: 2.04 | N37: 7Button | O37: Correct! | P37: search | Q37: 2504 | Y37: attempts | Z37: failures | AA37: p(error)
A38: micro: | B38: 3 | C38: 1445375708468 | D38: 3014 | E38: 820 | F38: 454 | G38: StartButton | H38: SetTime | I38: but | J38: f | K38: 50 | L38: brY | M38: 2.04 | N38: StartButton | O38: Correct! | P38: search | Q38: 3014 | X38: but | Y38: =COUNTIF($I$2:$I$336,X38) -> 88 | Z38: =COUNTIFS($I$2:$I$336,X38,$O$2:$O$336,"x") -> 2 | AA38: =Z38/Y38 -> 0.02272727273
A39: micro: | B39: 3 | C39: 1445375714807 | D39: 2173 | E39: 845 | F39: 403 | G39: 9Button | H39: Cooking | I39: but | J39: f | K39: 50 | L39: brY | M39: 2.04 | N39: 9Button | O39: Correct! | P39: search | Q39: 2173 | X39: dot | Y39: =COUNTIF($I$2:$I$336,X39) -> 80 | Z39: =COUNTIFS($I$2:$I$336,X39,$O$2:$O$336,"x") -> 10 | AA39: =Z39/Y39 -> 0.125
A40: micro: | B40: 3 | C40: 1445375720976 | D40: 2453 | E40: 633 | F40: 477 | G40: CancelButton | H40: Cooking | I40: but | J40: f | K40: 50 | L40: brY | M40: 2.04 | N40: CancelButton | O40: Correct! | P40: search | Q40: 2453 | X40: tac | Y40: 80 | Z40: =COUNTIFS($I$2:$I$336,X40,$O$2:$O$336,"x") -> 3 | AA40: 0.0375
A41: micro: | B41: 3 | C41: 1445375727025 | D41: 2243 | E41: 647 | F41: 306 | G41: 1Button | H41: NotActive | I41: but | J41: f | K41: 50 | L41: brY | M41: 2.04 | N41: 1Button | O41: Correct! | P41: search | Q41: 2243 | X41: tou | Y41: 87 | Z41: 8 | AA41: 0.09195402299
A42: micro: | B42: 3 | C42: 1445375943516 | D42: 2684 | E42: 738 | F42: 299 | G42: 2Button | H42: NotActive | I42: tou | J42: f | K42: 50 | L42: brY | M42: 2.04 | N42: 2Button | O42: Correct! | P42: search | Q42: 2684 | Y42: =SUM(Y38:Y41) -> 335 | Z42: 23 | AA42: 0.06865671642
A43: micro: | B43: 3 | C43: 1445375951067 | D43: 3405 | E43: 844 | F43: 409 | G43: 9Button | H43: NotActive | I43: tou | J43: f | K43: 50 | L43: brY | M43: 2.04 | N43: 9Button | O43: Correct! | P43: search | Q43: 3405
A44: micro: | B44: 3 | C44: 1445375957316 | D44: 2514 | E44: 830 | F44: 463 | G44: StartButton | H44: NotActive | I44: tou | J44: f | K44: 50 | L44: brY | M44: 2.04 | N44: StartButton | O44: Correct! | P44: search | Q44: 2514 | X44: older
A45: micro: | B45: 3 | C45: 1445375964296 | D45: 3325 | E45: 649 | F45: 412 | G45: 7Button | H45: NotActive | I45: tou | J45: f | K45: 50 | L45: brY | M45: 2.04 | N45: 7Button | O45: Correct! | P45: search | Q45: 3325 | X45: but | Y45: =COUNTIFS($I$2:$I$336,X45,$K$2:$K$336,">59") -> 32 | Z45: =COUNTIFS($I$2:$I$336,X45,$O$2:$O$336,"x",$K$2:$K$336,">59") -> 1 | AA45: =Z45/Y45 -> 0.03125
A46: micro: | B46: 3 | C46: 1445375970775 | D46: 2293 | E46: 631 | F46: 232 | G46: TimerButton | H46: NotActive | I46: tou | J46: f | K46: 50 | L46: brY | M46: 2.04 | N46: TimerButton | O46: Correct! | P46: search | Q46: 2293 | X46: dot | Y46: =COUNTIFS($I$2:$I$336,X46,$K$2:$K$336,">59") -> 24 | Z46: =COUNTIFS($I$2:$I$336,X46,$O$2:$O$336,"x",$K$2:$K$336,">59") -> 3 | AA46: =Z46/Y46 -> 0.125
A47: micro: | B47: 3 | C47: 1445375976924 | D47: 2073 | E47: 631 | F47: 462 | G47: CancelButton | H47: SetTime | I47: tou | J47: f | K47: 50 | L47: brY | M47: 2.04 | N47: CancelButton | O47: Correct! | P47: search | Q47: 2073 | X47: tac | Y47: 24 | Z47: 0 | AA47: 0
A48: micro: | B48: 3 | C48: 1445375984175 | D48: 3035 | E48: 640 | F48: 306 | G48: 1Button | H48: NotActive | I48: tou | J48: f | K48: 50 | L48: brY | M48: 2.04 | N48: 1Button | O48: Correct! | P48: search | Q48: 3035 | X48: tou | Y48: 32 | Z48: 3 | AA48: 0.09375
A49: micro: | B49: 3 | C49: 1445375990293 | D49: 2233 | E49: 737 | F49: 357 | G49: 5Button | H49: NotActive | I49: tou | J49: f | K49: 50 | L49: brY | M49: 2.04 | N49: 5Button | O49: Correct! | P49: search | Q49: 2233 | Y49: =SUM(Y45:Y48) -> 112 | Z49: =SUM(Z45:Z48) -> 7 | AA49: 0.0625
A50: micro: | B50: 3 | C50: 1445376125638 | D50: 2774 | E50: 634 | F50: 473 | G50: CancelButton | H50: NotActive | I50: tac | J50: f | K50: 50 | L50: brY | M50: 2.04 | N50: CancelButton | O50: Correct! | P50: search | Q50: 2774 | X50: younger
A51: micro: | B51: 3 | C51: 1445376131817 | D51: 2314 | E51: 738 | F51: 312 | G51: 2Button | H51: NotActive | I51: tac | J51: f | K51: 50 | L51: brY | M51: 2.04 | N51: 2Button | O51: Correct! | P51: search | Q51: 2314 | X51: but | Y51: =COUNTIFS($I$2:$I$336,X51,$K$2:$K$336,"<59") -> 56 | Z51: =COUNTIFS($I$2:$I$336,X51,$O$2:$O$336,"x",$K$2:$K$336,"<59") -> 1 | AA51: =Z51/Y51 -> 0.01785714286
A52: micro: | B52: 3 | C52: 1445376138396 | D52: 2654 | E52: 652 | F52: 425 | G52: 7Button | H52: NotActive | I52: tac | J52: f | K52: 50 | L52: brY | M52: 2.04 | N52: 7Button | O52: Correct! | P52: search | Q52: 2654 | X52: dot | Y52: =COUNTIFS($I$2:$I$336,X52,$K$2:$K$336,"<59") -> 56 | Z52: =COUNTIFS($I$2:$I$336,X52,$O$2:$O$336,"x",$K$2:$K$336,"<59") -> 7 | AA52: =Z52/Y52 -> 0.125
A53: micro: | B53: 3 | C53: 1445376144265 | D53: 1673 | E53: 828 | F53: 418 | G53: 9Button | H53: NotActive | I53: tac | J53: f | K53: 50 | L53: brY | M53: 2.04 | N53: 9Button | O53: Correct! | P53: search | Q53: 1673 | X53: tac | Y53: 56 | Z53: 3 | AA53: 0.05357142857
A54: micro: | B54: 3 | C54: 1445376150864 | D54: 2243 | E54: 640 | F54: 314 | G54: 1Button | H54: NotActive | I54: tac | J54: f | K54: 50 | L54: brY | M54: 2.04 | N54: 1Button | O54: Correct! | P54: search | Q54: 2243 | X54: tou | Y54: 55 | Z54: 5 | AA54: 0.09090909091
A55: micro: | B55: 3 | C55: 1445376156562 | D55: 1782 | E55: 835 | F55: 485 | G55: StartButton | H55: NotActive | I55: tac | J55: f | K55: 50 | L55: brY | M55: 2.04 | N55: StartButton | O55: Correct! | P55: search | Q55: 1782 | Y55: =SUM(Y51:Y54) -> 223 | Z55: 16 | AA55: 0.07174887892
A56: micro: | B56: 3 | C56: 1445376164243 | D56: 3334 | E56: 645 | F56: 256 | G56: TimerButton | H56: NotActive | I56: tac | J56: f | K56: 50 | L56: brY | M56: 2.04 | N56: TimerButton | O56: Correct! | P56: search | Q56: 3334 | Y56: =SUM(Y49,Y55) -> 335 | Z56: =SUM(Z49,Z55) -> 23
A57: micro: | B57: 3 | C57: 1445376173477 | D57: 2344 | E57: 755 | F57: 364 | G57: 5Button | H57: SetTime | I57: tac | J57: f | K57: 50 | L57: brY | M57: 2.04 | N57: 5Button | O57: Correct! | P57: search | Q57: 2344 | X57: finger >2
A58: micro: | B58: 3 | C58: 1445376396097 | D58: 7211 | E58: 315 | F58: 385 | G58: TestButton | H58: NotActive | I58: dot | J58: f | K58: 50 | L58: brY | M58: 2.04 | N58: 7Button | O58: x | P58: search | X58: but | Y58: =COUNTIFS($I$2:$I$336,X58,$M$2:$M$336,">2.05") -> 40 | Z58: =COUNTIFS($I$2:$I$336,X58,$O$2:$O$336,"x",$M$2:$M$336,">2.05") -> 1 | AA58: =Z58/Y58 -> 0.025
A59: micro: | B59: 3 | C59: 1445376400944 | D59: 3836 | E59: 633 | F59: 485 | G59: CancelButton | H59: NotActive | I59: dot | J59: f | K59: 50 | L59: brY | M59: 2.04 | N59: CancelButton | O59: Correct! | P59: search | Q59: 3836 | X59: dot | Y59: =COUNTIFS($I$2:$I$336,X59,$M$2:$M$336,">2.05") -> 32 | Z59: =COUNTIFS($I$2:$I$336,X59,$O$2:$O$336,"x",$M$2:$M$336,">2.05") -> 2 | AA59: =Z59/Y59 -> 0.0625
A60: micro: | B60: 3 | C60: 1445376409957 | D60: 3706 | E60: 754 | F60: 288 | G60: 2Button | H60: NotActive | I60: dot | J60: f | K60: 50 | L60: brY | M60: 2.04 | N60: 2Button | O60: Correct! | P60: search | Q60: 3706 | X60: tac | Y60: 32 | Z60: 1 | AA60: 0.03125
A61: micro: | B61: 3 | C61: 1445376418169 | D61: 3145 | E61: 614 | F61: 240 | G61: TimerButton | H61: NotActive | I61: dot | J61: f | K61: 50 | L61: brY | M61: 2.04 | N61: TimerButton | O61: Correct! | P61: search | Q61: 3145 | X61: tou | Y61: 40 | Z61: 3 | AA61: 0.075
A62: micro: | B62: 3 | C62: 1445376424968 | D62: 2984 | E62: 655 | F62: 315 | G62: 1Button | H62: SetTime | I62: dot | J62: f | K62: 50 | L62: brY | M62: 2.04 | N62: 1Button | O62: Correct! | P62: search | Q62: 2984 | Y62: =SUM(Y58:Y61) -> 144 | Z62: =SUM(Z58:Z61) -> 7 | AA62: 0.04861111111
A63: micro: | B63: 3 | C63: 1445376431358 | D63: 2724 | E63: 835 | F63: 456 | G63: StartButton | H63: SetTime | I63: dot | J63: f | K63: 50 | L63: brY | M63: 2.04 | N63: StartButton | O63: Correct! | P63: search | Q63: 2724 | X63: finger <2
A64: micro: | B64: 3 | C64: 1445376442524 | D64: 4877 | E64: 737 | F64: 361 | G64: 5Button | H64: NotActive | I64: dot | J64: f | K64: 50 | L64: brY | M64: 2.04 | N64: 5Button | O64: Correct! | P64: search | Q64: 4877 | X64: but | Y64: =COUNTIFS($I$2:$I$336,X64,$M$2:$M$336,"<2.05") -> 48 | Z64: =COUNTIFS($I$2:$I$336,X64,$O$2:$O$336,"x",$M$2:$M$336,"<2.05") -> 1 | AA64: =Z64/Y64 -> 0.02083333333
A65: micro: | B65: 3 | C65: 1445376449974 | D65: 2093 | E65: 845 | F65: 412 | G65: 9Button | H65: NotActive | I65: dot | J65: f | K65: 50 | L65: brY | M65: 2.04 | N65: 9Button | O65: Correct! | P65: search | Q65: 2093 | X65: dot | Y65: =COUNTIFS($I$2:$I$336,X65,$M$2:$M$336,"<2.05") -> 48 | Z65: =COUNTIFS($I$2:$I$336,X65,$O$2:$O$336,"x",$M$2:$M$336,"<2.05") -> 8 | AA65: =Z65/Y65 -> 0.1666666667
A66: micro: | B66: 4 | C66: 1445465951116 | D66: 3916 | E66: 831 | F66: 302 | G66: 3Button | H66: NotActive | I66: tou | J66: f | K66: 60 | L66: brY | M66: 1.79 | N66: 2Button | O66: x | P66: search | Q66: 0 | X66: tac | Y66: 48 | Z66: 2 | AA66: 0.04166666667
A67: micro: | B67: 4 | C67: 1445465963023 | D67: 3686 | E67: 642 | F67: 230 | G67: TimerButton | H67: NotActive | I67: tou | J67: f | K67: 60 | L67: brY | M67: 1.79 | N67: TimerButton | O67: Correct! | P67: search | Q67: 3686 | X67: tou | Y67: 47 | Z67: 5 | AA67: 0.1063829787
A68: micro: | B68: 4 | C68: 1445465970043 | D68: 2554 | E68: 648 | F68: 359 | G68: 4Button | H68: SetTime | I68: tou | J68: f | K68: 60 | L68: brY | M68: 1.79 | N68: 1Button | O68: x | P68: search | Q68: 0 | Y68: =SUM(Y64:Y67) -> 191 | Z68: 16 | AA68: 0.08376963351
A69: micro: | B69: 4 | C69: 1445465977694 | D69: 3716 | E69: 815 | F69: 428 | G69: 9Button | H69: SetTime | I69: tou | J69: f | K69: 60 | L69: brY | M69: 1.79 | N69: 9Button | O69: Correct! | P69: search | Q69: 3716 | Y69: =SUM(Y62,Y68) -> 335 | Z69: =SUM(Z62,Z68) -> 23
A70: micro: | B70: 4 | C70: 1445465986286 | D70: 661 | E70: 648 | F70: 412 | G70: 7Button | H70: NotActive | I70: tou | J70: f | K70: 60 | L70: brY | M70: 1.79 | N70: 7Button | O70: Correct! | P70: search | Q70: 3184 | X70: Braille Y
A71: micro: | B71: 4 | C71: 1445465994979 | D71: 3716 | E71: 744 | F71: 414 | G71: 8Button | H71: NotActive | I71: tou | J71: f | K71: 60 | L71: brY | M71: 1.79 | N71: 5Button | O71: x | P71: search | Q71: 0 | X71: but | Y71: =COUNTIFS(searchOverlay,X71,searchBraille,"brY") -> 48 | Z71: =COUNTIFS(searchOverlay,X71,searchError,"x",searchBraille,"brY") -> 1 | AA71: =Z71/Y71 -> 0.02083333333
A72: micro: | B72: 4 | C72: 1445466003952 | D72: 3836 | E72: 822 | F72: 478 | G72: StartButton | H72: NotActive | I72: tou | J72: f | K72: 60 | L72: brY | M72: 1.79 | N72: StartButton | O72: Correct! | P72: search | Q72: 3836 | X72: dot | Y72: =COUNTIFS(searchOverlay,X72,searchBraille,"brY") -> 48 | Z72: =COUNTIFS(searchOverlay,X72,searchError,"x",searchBraille,"brY") -> 7 | AA72: =Z72/Y72 -> 0.1458333333
A73: micro: | B73: 4 | C73: 1445466013625 | D73: 4166 | E73: 639 | F73: 484 | G73: CancelButton | H73: NotActive | I73: tou | J73: f | K73: 60 | L73: brY | M73: 1.79 | N73: CancelButton | O73: Correct! | P73: search | Q73: 4166 | R73: 3717.6 | X73: tac | Y73: =COUNTIFS(searchOverlay,X73,searchBraille,"brY") -> 48 | Z73: =COUNTIFS(searchOverlay,X73,searchError,"x",searchBraille,"brY") -> 1 | AA73: 0.02083333333
A74: micro: | B74: 4 | C74: 1445466388625 | D74: 3906 | E74: 621 | F74: 487 | G74: CancelButton | H74: NotActive | I74: dot | J74: f | K74: 60 | L74: brY | M74: 1.79 | N74: CancelButton | O74: Correct! | P74: search | Q74: 3906 | X74: tou | Y74: =COUNTIFS(searchOverlay,X74,searchBraille,"brY") -> 48 | Z74: =COUNTIFS(searchOverlay,X74,searchError,"x",searchBraille,"brY") -> 4 | AA74: 0.08333333333
A75: micro: | B75: 4 | C75: 1445466396196 | D75: 2835 | E75: 648 | F75: 399 | G75: 7Button | H75: NotActive | I75: dot | J75: f | K75: 60 | L75: brY | M75: 1.79 | N75: 7Button | O75: Correct! | P75: search | Q75: 2835 | Y75: =SUM(Y71:Y74) -> 192 | Z75: =SUM(Z71:Z74) -> 13 | AA75: 0.06770833333
A76: micro: | B76: 4 | C76: 1445466403566 | D76: 3545 | E76: 761 | F76: 285 | G76: 2Button | H76: NotActive | I76: dot | J76: f | K76: 60 | L76: brY | M76: 1.79 | N76: 2Button | O76: Correct! | P76: search | Q76: 3545 | X76: Braille N/P
A77: micro: | B77: 4 | C77: 1445466407702 | D77: 1011 | E77: 0 | F77: 0 | G77: BEEP | H77: NotActive | I77: dot | J77: f | K77: 60 | L77: brY | M77: 1.79 | N77: 9Button | O77: x | P77: search | Q77: 0 | X77: but | Y77: =COUNTIFS(searchOverlay,X77,searchBraille,"brN") + COUNTIFS(searchOverlay,X77,searchBraille,"brP") -> 40 | Z77: =COUNTIFS(searchOverlay,X77,searchError,"x",searchBraille,"brN") + COUNTIFS(searchOverlay,X77,searchError,"x",searchBraille,"brP") -> 1 | AA77: =Z77/Y77 -> 0.025
A78: micro: | B78: 4 | C78: 1445466422503 | D78: 3224 | E78: 671 | F78: 227 | G78: TimerButton | H78: NotActive | I78: dot | J78: f | K78: 60 | L78: brY | M78: 1.79 | N78: TimerButton | O78: Correct! | P78: search | Q78: 3224 | X78: dot | Y78: =COUNTIFS(searchOverlay,X78,searchBraille,"brN") + COUNTIFS(searchOverlay,X78,searchBraille,"brP") -> 32 | Z78: =COUNTIFS(searchOverlay,X78,searchError,"x",searchBraille,"brN") + COUNTIFS(searchOverlay,X78,searchError,"x",searchBraille,"brP") -> 3 | AA78: =Z78/Y78 -> 0.09375
A79: micro: | B79: 4 | C79: 1445466429133 | D79: 2404 | E79: 662 | F79: 313 | G79: 1Button | H79: SetTime | I79: dot | J79: f | K79: 60 | L79: brY | M79: 1.79 | N79: 1Button | O79: Correct! | P79: search | Q79: 2404 | X79: tac | Y79: =COUNTIFS(searchOverlay,X79,searchBraille,"brN") + COUNTIFS(searchOverlay,X79,searchBraille,"brP") -> 32 | Z79: =COUNTIFS(searchOverlay,X79,searchError,"x",searchBraille,"brN") + COUNTIFS(searchOverlay,X79,searchError,"x",searchBraille,"brP") -> 2 | AA79: 0.0625
A80: micro: | B80: 4 | C80: 1445466435282 | D80: 1933 | E80: 762 | F80: 372 | G80: 5Button | H80: SetTime | I80: dot | J80: f | K80: 60 | L80: brY | M80: 1.79 | N80: 5Button | O80: Correct! | P80: search | Q80: 1933 | X80: tou | Y80: =COUNTIFS(searchOverlay,X80,searchBraille,"brN") + COUNTIFS(searchOverlay,X80,searchBraille,"brP") -> 39 | Z80: =COUNTIFS(searchOverlay,X80,searchError,"x",searchBraille,"brN") + COUNTIFS(searchOverlay,X80,searchError,"x",searchBraille,"brP") -> 4 | AA80: 0.1025641026
A81: micro: | B81: 4 | C81: 1445466445997 | D81: 7050 | E81: 805 | F81: 490 | G81: StartButton | H81: SetTime | I81: dot | J81: f | K81: 60 | L81: brY | M81: 1.79 | N81: StartButton | O81: Correct! | P81: search | Q81: 7050 | R81: 3556.714286 | Y81: =SUM(Y77:Y80) -> 143 | Z81: 10 | AA81: 0.06993006993
A82: micro: | B82: 4 | C82: 1445466661817 | D82: 3625 | E82: 832 | F82: 416 | G82: 9Button | H82: NotActive | I82: tac | J82: f | K82: 60 | L82: brY | M82: 1.79 | N82: 9Button | O82: Correct! | P82: search | Q82: 3625 | Y82: =SUM(Y75,Y81) -> 335 | Z82: =SUM(Z75,Z81) -> 23
A83: micro: | B83: 4 | C83: 1445466668307 | D83: 2544 | E83: 653 | F83: 249 | G83: TimerButton | H83: NotActive | I83: tac | J83: f | K83: 60 | L83: brY | M83: 1.79 | N83: TimerButton | O83: Correct! | P83: search | Q83: 2544
A84: micro: | B84: 4 | C84: 1445466674546 | D84: 2754 | E84: 648 | F84: 308 | G84: 1Button | H84: SetTime | I84: tac | J84: f | K84: 60 | L84: brY | M84: 1.79 | N84: 2Button | O84: Correct! | P84: search | Q84: 2754
A85: micro: | B85: 4 | C85: 1445466680124 | D85: 2033 | E85: 655 | F85: 471 | G85: CancelButton | H85: SetTime | I85: tac | J85: f | K85: 60 | L85: brY | M85: 1.79 | N85: CancelButton | O85: Correct! | P85: search | Q85: 2033
A86: micro: | B86: 4 | C86: 1445466686062 | D86: 2533 | E86: 648 | F86: 308 | G86: 1Button | H86: NotActive | I86: tac | J86: f | K86: 60 | L86: brY | M86: 1.79 | N86: 1Button | O86: Correct! | P86: search | Q86: 2533
A87: micro: | B87: 4 | C87: 1445466691791 | D87: 2073 | E87: 822 | F87: 476 | G87: StartButton | H87: NotActive | I87: tac | J87: f | K87: 60 | L87: brY | M87: 1.79 | N87: StartButton | O87: Correct! | P87: search | Q87: 2073
A88: micro: | B88: 4 | C88: 1445466697789 | D88: 2393 | E88: 762 | F88: 359 | G88: 5Button | H88: NotActive | I88: tac | J88: f | K88: 60 | L88: brY | M88: 1.79 | N88: 5Button | O88: Correct! | P88: search | Q88: 2393
A89: micro: | B89: 4 | C89: 1445466703207 | D89: 2043 | E89: 648 | F89: 416 | G89: 7Button | H89: NotActive | I89: tac | J89: f | K89: 60 | L89: brY | M89: 1.79 | N89: 7Button | O89: Correct! | P89: search | Q89: 2043 | R89: 2499.75
A90: micro: | B90: 4 | C90: 1445466944564 | D90: 3124 | E90: 648 | F90: 295 | G90: 1Button | H90: NotActive | I90: but | J90: f | K90: 60 | L90: brY | M90: 1.79 | N90: 1Button | O90: Correct! | P90: search | Q90: 3124
A91: micro: | B91: 4 | C91: 1445466950973 | D91: 2373 | E91: 675 | F91: 225 | G91: TimerButton | H91: NotActive | I91: but | J91: f | K91: 60 | L91: brY | M91: 1.79 | N91: TimerButton | O91: Correct! | P91: search | Q91: 2373
A92: micro: | B92: 4 | C92: 1445466957753 | D92: 3175 | E92: 662 | F92: 417 | G92: 7Button | H92: SetTime | I92: but | J92: f | K92: 60 | L92: brY | M92: 1.79 | N92: 7Button | O92: Correct! | P92: search | Q92: 3175
A93: micro: | B93: 4 | C93: 1445466965514 | D93: 4046 | E93: 744 | F93: 379 | G93: 5Button | H93: SetTime | I93: but | J93: f | K93: 60 | L93: brY | M93: 1.79 | N93: 5Button | O93: Correct! | P93: search | Q93: 4046
A94: micro: | B94: 4 | C94: 1445466972034 | D94: 2063 | E94: 745 | F94: 325 | G94: 2Button | H94: SetTime | I94: but | J94: f | K94: 60 | L94: brY | M94: 1.79 | N94: 2Button | O94: Correct! | P94: search | Q94: 2063
A95: micro: | B95: 4 | C95: 1445466980896 | D95: 410 | E95: 803 | F95: 476 | G95: StartButton | H95: Cooking | I95: but | J95: f | K95: 60 | L95: brY | M95: 1.79 | N95: StartButton | O95: Correct! | P95: search | Q95: 5017
A96: micro: | B96: 4 | C96: 1445466988788 | D96: 611 | E96: 834 | F96: 428 | G96: 9Button | H96: Cooking | I96: but | J96: f | K96: 60 | L96: brY | M96: 1.79 | N96: 9Button | O96: Correct! | P96: search | Q96: 3025
A97: micro: | B97: 4 | C97: 1445466994997 | D97: 2394 | E97: 638 | F97: 484 | G97: CancelButton | H97: Cooking | I97: but | J97: f | K97: 60 | L97: brY | M97: 1.79 | N97: CancelButton | O97: Correct! | P97: search | Q97: 2394 | R97: 3152.125
A98: micro: | B98: 5 | C98: 1445368288399 | D98: 3696 | E98: 617 | F98: 468 | G98: CancelButton | H98: NotActive | I98: dot | J98: f | K98: 60 | L98: brY | M98: 2.06 | N98: CancelButton | O98: Correct! | P98: search | Q98: 3696
A99: micro: | B99: 5 | C99: 1445368300075 | D99: 40 | E99: 757 | F99: 312 | G99: 2Button | H99: NotActive | I99: dot | J99: f | K99: 60 | L99: brY | M99: 2.06 | N99: 2Button | O99: Correct! | P99: search | Q99: 5878
A100: micro: | B100: 5 | C100: 1445368305012 | D100: 550 | E100: 759 | F100: 384 | G100: 5Button | H100: NotActive | I100: dot | J100: f | K100: 60 | L100: brY | M100: 2.06 | N100: 5Button | O100: Correct! | P100: search | Q100: 1372
A101: micro: | B101: 5 | C101: 1445368311081 | D101: 2904 | E101: 617 | F101: 237 | G101: TimerButton | H101: NotActive | I101: dot | J101: f | K101: 60 | L101: brY | M101: 2.06 | N101: TimerButton | O101: Correct! | P101: search | Q101: 2904
A102: micro: | B102: 5 | C102: 1445368315838 | D102: 140 | E102: 659 | F102: 312 | G102: 1Button | H102: SetTime | I102: dot | J102: f | K102: 60 | L102: brY | M102: 2.06 | N102: 1Button | O102: Correct! | P102: search | Q102: 1482
A103: micro: | B103: 5 | C103: 1445368322257 | D103: 561 | E103: 810 | F103: 433 | G103: 9Button | H103: SetTime | I103: dot | J103: f | K103: 60 | L103: brY | M103: 2.06 | N103: 9Button | O103: Correct! | P103: search | Q103: 3305
A104: micro: | B104: 5 | C104: 1445368334945 | D104: 9223 | E104: 818 | F104: 461 | G104: StartButton | H104: SetTime | I104: dot | J104: f | K104: 60 | L104: brY | M104: 2.06 | N104: StartButton | O104: Correct! | P104: search | Q104: 9223
A105: micro: | B105: 5 | C105: 1445368340924 | D105: 150 | E105: 627 | F105: 423 | G105: 7Button | H105: NotActive | I105: dot | J105: f | K105: 60 | L105: brY | M105: 2.06 | N105: 7Button | O105: Correct! | P105: search | Q105: 1963 | R105: 29823
A106: micro: | B106: 5 | C106: 1445368510268 | D106: 611 | E106: 645 | F106: 329 | G106: 1Button | H106: SetPower | I106: but | J106: f | K106: 60 | L106: brY | M106: 2.06 | N106: 1Button | O106: Correct! | P106: search | Q106: 2825
A107: micro: | B107: 5 | C107: 1445368516276 | D107: 2243 | E107: 836 | F107: 486 | G107: StartButton | H107: SetPower | I107: but | J107: f | K107: 60 | L107: brY | M107: 2.06 | N107: StartButton | O107: Correct! | P107: search | Q107: 2243
A108: micro: | B108: 5 | C108: 1445368521043 | D108: 1873 | E108: 657 | F108: 420 | G108: 7Button | H108: SetPower | I108: but | J108: f | K108: 60 | L108: brY | M108: 2.06 | N108: 7Button | O108: Correct! | P108: search | Q108: 1873
A109: micro: | B109: 5 | C109: 1445368528063 | D109: 2133 | E109: 766 | F109: 253 | G109: PowerButton | H109: SetPower | I109: but | J109: f | K109: 60 | L109: brY | M109: 2.06 | N109: TimerButton | O109: Correct! | P109: search | Q109: 3855
A110: micro: | B110: 5 | C110: 1445368534002 | D110: 331 | E110: 828 | F110: 428 | G110: 9Button | H110: SetPower | I110: but | J110: f | K110: 60 | L110: brY | M110: 2.06 | N110: 9Button | O110: Correct! | P110: search | Q110: 2824
A111: micro: | B111: 5 | C111: 1445368539650 | D111: 90 | E111: 634 | F111: 490 | G111: CancelButton | H111: SetPower | I111: but | J111: f | K111: 60 | L111: brY | M111: 2.06 | N111: CancelButton | O111: Correct! | P111: search | Q111: 1843
A112: micro: | B112: 5 | C112: 1445368544857 | D112: 2193 | E112: 747 | F112: 315 | G112: 2Button | H112: NotActive | I112: but | J112: f | K112: 60 | L112: brY | M112: 2.06 | N112: 2Button | O112: Correct! | P112: search | Q112: 2193
A113: micro: | B113: 5 | C113: 1445368549574 | D113: 1662 | E113: 732 | F113: 384 | G113: 5Button | H113: NotActive | I113: but | J113: f | K113: 60 | L113: brY | M113: 2.06 | N113: 5Button | O113: Correct! | P113: search | Q113: 1662 | R113: 19318
A114: micro: | B114: 5 | C114: 1445368658901 | D114: 330 | E114: 741 | F114: 309 | G114: 2Button | H114: SetPower | I114: tac | J114: f | K114: 60 | L114: brY | M114: 2.06 | N114: 2Button | O114: Correct! | P114: search | Q114: 2994
A115: micro: | B115: 5 | C115: 1445368663788 | D115: 1912 | E115: 856 | F115: 478 | G115: StartButton | H115: SetPower | I115: tac | J115: f | K115: 60 | L115: brY | M115: 2.06 | N115: StartButton | O115: Correct! | P115: search | Q115: 1912
A116: micro: | B116: 5 | C116: 1445368669356 | D116: 2714 | E116: 739 | F116: 377 | G116: 5Button | H116: SetPower | I116: tac | J116: f | K116: 60 | L116: brY | M116: 2.06 | N116: 5Button | O116: Correct! | P116: search | Q116: 2714
A117: micro: | B117: 5 | C117: 1445368674874 | D117: 350 | E117: 634 | F117: 237 | G117: TimerButton | H117: SetTime | I117: tac | J117: f | K117: 60 | L117: brY | M117: 2.06 | N117: TimerButton | O117: Correct! | P117: search | Q117: 1933
A118: micro: | B118: 5 | C118: 1445368680703 | D118: 171 | E118: 830 | F118: 421 | G118: 9Button | H118: SetTime | I118: tac | J118: f | K118: 60 | L118: brY | M118: 2.06 | N118: 9Button | O118: Correct! | P118: search | Q118: 2794
A119: micro: | B119: 5 | C119: 1445368685820 | D119: 1622 | E119: 655 | F119: 312 | G119: 1Button | H119: SetTime | I119: tac | J119: f | K119: 60 | L119: brY | M119: 2.06 | N119: 1Button | O119: Correct! | P119: search | Q119: 1622
A120: micro: | B120: 5 | C120: 1445368690447 | D120: 301 | E120: 658 | F120: 423 | G120: 7Button | H120: SetTime | I120: tac | J120: f | K120: 60 | L120: brY | M120: 2.06 | N120: 7Button | O120: Correct! | P120: search | Q120: 1543
A121: micro: | B121: 5 | C121: 1445368695564 | D121: 1562 | E121: 634 | F121: 490 | G121: CancelButton | H121: SetTime | I121: tac | J121: f | K121: 60 | L121: brY | M121: 2.06 | N121: CancelButton | O121: Correct! | P121: search | Q121: 1562 | R121: 17074
A122: micro: | B122: 5 | C122: 1445368871647 | D122: 410 | E122: 616 | F122: 258 | G122: TimerButton | H122: SetPower | I122: tou | J122: f | K122: 60 | L122: brY | M122: 2.06 | N122: TimerButton | O122: Correct! | P122: search | Q122: 1973
A123: micro: | B123: 5 | C123: 1445368882333 | D123: 5018 | E123: 657 | F123: 417 | G123: 7Button | H123: SetTime | I123: tou | J123: f | K123: 60 | L123: brY | M123: 2.06 | N123: 7Button | O123: Correct! | P123: search | Q123: 7732
A124: micro: | B124: 5 | C124: 1445368888201 | D124: 2434 | E124: 660 | F124: 313 | G124: 1Button | H124: SetTime | I124: tou | J124: f | K124: 60 | L124: brY | M124: 2.06 | N124: 1Button | O124: Correct! | P124: search | Q124: 2434
A125: micro: | B125: 5 | C125: 1445368893208 | D125: 1812 | E125: 636 | F125: 483 | G125: CancelButton | H125: SetTime | I125: tou | J125: f | K125: 60 | L125: brY | M125: 2.06 | N125: CancelButton | O125: Correct! | P125: search | Q125: 1812
A126: micro: | B126: 5 | C126: 1445368902151 | D126: 3675 | E126: 740 | F126: 316 | G126: 2Button | H126: SetPower | I126: tou | J126: f | K126: 60 | L126: brY | M126: 2.06 | N126: 2Button | O126: Correct! | P126: search | Q126: 5518
A127: micro: | B127: 5 | C127: 1445368907969 | D127: 2273 | E127: 818 | F127: 416 | G127: 9Button | H127: SetPower | I127: tou | J127: f | K127: 60 | L127: brY | M127: 2.06 | N127: 9Button | O127: Correct! | P127: search | Q127: 2273
A128: micro: | B128: 5 | C128: 1445368915610 | D128: 1522 | E128: 757 | F128: 360 | G128: 5Button | H128: SetPower | I128: tou | J128: f | K128: 60 | L128: brY | M128: 2.06 | N128: 5Button | O128: Correct! | P128: search | Q128: 3935
A129: micro: | B129: 5 | C129: 1445368924744 | D129: 4066 | E129: 854 | F129: 482 | G129: StartButton | H129: SetPower | I129: tou | J129: f | K129: 60 | L129: brY | M129: 2.06 | N129: StartButton | O129: Correct! | P129: search | Q129: 5488 | R129: 31165
A130: micro: | B130: 6 | C130: 1445423163831 | D130: 1542 | E130: 667 | F130: 227 | G130: TimerButton | H130: SetTime | I130: but | J130: f | K130: 50 | L130: brN | M130: 1.77 | N130: TimerButton | O130: Correct! | P130: search | Q130: 1542
A131: micro: | B131: 6 | C131: 1445423174627 | D131: 4477 | E131: 739 | F131: 383 | G131: 5Button | H131: SetTime | I131: but | J131: f | K131: 50 | L131: brN | M131: 1.77 | N131: 5Button | O131: Correct! | P131: search | Q131: 4477
A132: micro: | B132: 6 | C132: 1445423181747 | D132: 3024 | E132: 629 | F132: 483 | G132: CancelButton | H132: SetTime | I132: but | J132: f | K132: 50 | L132: brN | M132: 1.77 | N132: CancelButton | O132: Correct! | P132: search | Q132: 3024
A133: micro: | B133: 6 | C133: 1445423190740 | D133: 3325 | E133: 800 | F133: 464 | G133: StartButton | H133: NotActive | I133: but | J133: f | K133: 50 | L133: brN | M133: 1.77 | N133: StartButton | O133: Correct! | P133: search | Q133: 4877
A134: micro: | B134: 6 | C134: 1445423203879 | D134: 3806 | E134: 741 | F134: 295 | G134: 2Button | H134: NotActive | I134: but | J134: f | K134: 50 | L134: brN | M134: 1.77 | N134: 2Button | O134: Correct! | P134: search | Q134: 3806
A135: micro: | B135: 6 | C135: 1445423212171 | D135: 3766 | E135: 828 | F135: 427 | G135: 9Button | H135: NotActive | I135: but | J135: f | K135: 50 | L135: brN | M135: 1.77 | N135: 9Button | O135: Correct! | P135: search | Q135: 3766
A136: micro: | B136: 6 | C136: 1445423231048 | D136: 2924 | E136: 644 | F136: 302 | G136: 1Button | H136: NotActive | I136: but | J136: f | K136: 50 | L136: brN | M136: 1.77 | N136: 1Button | O136: Correct! | P136: search | Q136: 2924
A137: micro: | B137: 6 | C137: 1445423238048 | D137: 2514 | E137: 644 | F137: 417 | G137: 7Button | H137: NotActive | I137: but | J137: f | K137: 50 | L137: brN | M137: 1.77 | N137: 7Button | O137: Correct! | P137: search | Q137: 2514
A138: micro: | B138: 6 | C138: 1445423403706 | D138: 4126 | E138: 617 | F138: 216 | G138: TimerButton | H138: NotActive | I138: dot | J138: f | K138: 50 | L138: brN | M138: 1.77 | N138: TimerButton | O138: Correct! | P138: search | Q138: 4126
A139: micro: | B139: 6 | C139: 1445423411457 | D139: 270 | E139: 847 | F139: 440 | G139: 9Button | H139: SetTime | I139: dot | J139: f | K139: 50 | L139: brN | M139: 1.77 | N139: StartButton | O139: x | P139: search | Q139: 1161
A140: micro: | B140: 6 | C140: 1445423425467 | D140: 2353 | E140: 628 | F140: 414 | G140: 7Button | H140: SetTime | I140: dot | J140: f | K140: 50 | L140: brN | M140: 1.77 | N140: 7Button | O140: Correct! | P140: search | Q140: 2353
A141: micro: | B141: 6 | C141: 1445423432908 | D141: 370 | E141: 631 | F141: 500 | G141: CancelButton | H141: SetTime | I141: dot | J141: f | K141: 50 | L141: brN | M141: 1.77 | N141: CancelButton | O141: Correct! | P141: search | Q141: 2994
A142: micro: | B142: 6 | C142: 1445423438146 | D142: 882 | E142: 658 | F142: 323 | G142: 1Button | H142: NotActive | I142: dot | J142: f | K142: 50 | L142: brN | M142: 1.77 | N142: 1Button | O142: Correct! | P142: search | Q142: 882
A143: micro: | B143: 6 | C143: 1445423444555 | D143: 1412 | E143: 716 | F143: 286 | G143: 2Button | H143: NotActive | I143: dot | J143: f | K143: 50 | L143: brN | M143: 1.77 | N143: 2Button | O143: Correct! | P143: search | Q143: 1412
A144: micro: | B144: 6 | C144: 1445423450383 | D144: 1582 | E144: 741 | F144: 352 | G144: 5Button | H144: NotActive | I144: dot | J144: f | K144: 50 | L144: brN | M144: 1.77 | N144: 5Button | O144: Correct! | P144: search | Q144: 1582
A145: micro: | B145: 6 | C145: 1445423468559 | D145: 2133 | E145: 830 | F145: 402 | G145: 9Button | H145: NotActive | I145: dot | J145: f | K145: 50 | L145: brN | M145: 1.77 | N145: 9Button | O145: Correct! | P145: search | Q145: 7150
A146: micro: | B146: 6 | C146: 1445423646425 | D146: 4306 | E146: 741 | F146: 294 | G146: 2Button | H146: NotActive | I146: tou | J146: f | K146: 50 | L146: brN | M146: 1.77 | N146: 2Button | O146: Correct! | P146: search | Q146: 4306
A147: micro: | B147: 6 | C147: 1445423655498 | D147: 551 | E147: 741 | F147: 357 | G147: 5Button | H147: NotActive | I147: tou | J147: f | K147: 50 | L147: brN | M147: 1.77 | N147: 5Button | O147: Correct! | P147: search | Q147: 4827
A148: micro: | B148: 6 | C148: 1445423662218 | D148: 2844 | E148: 647 | F148: 228 | G148: TimerButton | H148: NotActive | I148: tou | J148: f | K148: 50 | L148: brN | M148: 1.77 | N148: TimerButton | O148: Correct! | P148: search | Q148: 2844
A149: micro: | B149: 6 | C149: 1445423669769 | D149: 3295 | E149: 662 | F149: 415 | G149: 7Button | H149: SetTime | I149: tou | J149: f | K149: 50 | L149: brN | M149: 1.77 | N149: 7Button | O149: Correct! | P149: search | Q149: 3295
A150: micro: | B150: 6 | C150: 1445423686122 | D150: 3365 | E150: 830 | F150: 423 | G150: 9Button | H150: SetTime | I150: tou | J150: f | K150: 50 | L150: brN | M150: 1.77 | N150: 9Button | O150: Correct! | P150: search | Q150: 3365
A151: micro: | B151: 6 | C151: 1445423693293 | D151: 2374 | E151: 776 | F151: 304 | G151: 2Button | H151: SetTime | I151: tou | J151: f | K151: 50 | L151: brN | M151: 1.77 | N151: 1Button | O151: x | P151: search | Q151: 2374
A152: micro: | B152: 6 | C152: 1445423699221 | D152: 2143 | E152: 634 | F152: 463 | G152: CancelButton | H152: SetTime | I152: tou | J152: f | K152: 50 | L152: brN | M152: 1.77 | N152: CancelButton | O152: Correct! | P152: search | Q152: 2143
A153: micro: | B153: 6 | C153: 1445423859031 | D153: 711 | E153: 741 | F153: 346 | G153: 5Button | H153: NotActive | I153: tac | J153: f | K153: 50 | L153: brN | M153: 1.77 | N153: 5Button | O153: Correct! | P153: search | Q153: 711
A154: micro: | B154: 6 | C154: 1445423863067 | D154: 1703 | E154: 813 | F154: 482 | G154: StartButton | H154: NotActive | I154: tac | J154: f | K154: 50 | L154: brN | M154: 1.77 | N154: StartButton | O154: Correct! | P154: search | Q154: 1703
A155: micro: | B155: 6 | C155: 1445423868735 | D155: 2113 | E155: 646 | F155: 310 | G155: 1Button | H155: NotActive | I155: tac | J155: f | K155: 50 | L155: brN | M155: 1.77 | N155: 1Button | O155: Correct! | P155: search | Q155: 2113
A156: micro: | B156: 6 | C156: 1445423874473 | D156: 2353 | E156: 618 | F156: 475 | G156: CancelButton | H156: NotActive | I156: tac | J156: f | K156: 50 | L156: brN | M156: 1.77 | N156: CancelButton | O156: Correct! | P156: search | Q156: 2353
A157: micro: | B157: 6 | C157: 1445423880782 | D157: 1963 | E157: 634 | F157: 228 | G157: TimerButton | H157: NotActive | I157: tac | J157: f | K157: 50 | L157: brN | M157: 1.77 | N157: TimerButton | O157: Correct! | P157: search | Q157: 2694
A158: micro: | B158: 6 | C158: 1445423887091 | D158: 2964 | E158: 830 | F158: 411 | G158: 9Button | H158: SetTime | I158: tac | J158: f | K158: 50 | L158: brN | M158: 1.77 | N158: 9Button | O158: Correct! | P158: search | Q158: 2964
A159: micro: | B159: 6 | C159: 1445423899749 | D159: 520 | E159: 757 | F159: 307 | G159: 2Button | H159: SetTime | I159: tac | J159: f | K159: 50 | L159: brN | M159: 1.77 | N159: 2Button | O159: Correct! | P159: search | Q159: 6629
A160: micro: | B160: 6 | C160: 1445423918476 | D160: 901 | E160: 645 | F160: 414 | G160: 7Button | H160: NotActive | I160: tac | J160: f | K160: 50 | L160: brN | M160: 1.77 | N160: 7Button | O160: Correct! | P160: search | Q160: 3795
A161: micro: | B161: 7 | C161: 1445426331586 | D161: 1151 | E161: 755 | F161: 302 | G161: 2Button | H161: NotActive | I161: tac | J161: f | K161: 20 | L161: brN | M161: 1.85 | N161: 2Button | O161: Correct! | P161: search | Q161: 1151
A162: micro: | B162: 7 | C162: 1445426338436 | D162: 3445 | E162: 759 | F162: 358 | G162: 5Button | H162: NotActive | I162: tac | J162: f | K162: 20 | L162: brN | M162: 1.85 | N162: 5Button | O162: Correct! | P162: search | Q162: 3445
A163: micro: | B163: 7 | C163: 1445426344415 | D163: 2184 | E163: 632 | F163: 226 | G163: TimerButton | H163: NotActive | I163: tac | J163: f | K163: 20 | L163: brN | M163: 1.85 | N163: TimerButton | O163: Correct! | P163: search | Q163: 2184
A164: micro: | B164: 7 | C164: 1445426349993 | D164: 2163 | E164: 655 | F164: 414 | G164: 7Button | H164: SetTime | I164: tac | J164: f | K164: 20 | L164: brN | M164: 1.85 | N164: 7Button | O164: Correct! | P164: search | Q164: 2163
A165: micro: | B165: 7 | C165: 1445426355210 | D165: 1933 | E165: 616 | F165: 486 | G165: CancelButton | H165: SetTime | I165: tac | J165: f | K165: 20 | L165: brN | M165: 1.85 | N165: CancelButton | O165: Correct! | P165: search | Q165: 1933
A166: micro: | B166: 7 | C166: 1445426360338 | D166: 1092 | E166: 668 | F166: 235 | G166: TimerButton | H166: NotActive | I166: tac | J166: f | K166: 20 | L166: brN | M166: 1.85 | N166: 1Button | O166: x | P166: search
A167: micro: | B167: 7 | C167: 1445426365705 | D167: 1161 | E167: 828 | F167: 410 | G167: 9Button | H167: SetTime | I167: tac | J167: f | K167: 20 | L167: brN | M167: 1.85 | N167: 9Button | O167: Correct! | P167: search | Q167: 1161
A168: micro: | B168: 7 | C168: 1445426371033 | D168: 1192 | E168: 799 | F168: 462 | G168: StartButton | H168: SetTime | I168: tac | J168: f | K168: 20 | L168: brN | M168: 1.85 | N168: StartButton | O168: Correct! | P168: search | Q168: 1192
A169: micro: | B169: 7 | C169: 1445426529891 | D169: 1181 | E169: 739 | F169: 358 | G169: 5Button | H169: NotActive | I169: tou | J169: f | K169: 20 | L169: brN | M169: 1.85 | N169: 5Button | O169: Correct! | P169: search | Q169: 1181
A170: micro: | B170: 7 | C170: 1445426535209 | D170: 981 | E170: 642 | F170: 416 | G170: 7Button | H170: NotActive | I170: tou | J170: f | K170: 20 | L170: brN | M170: 1.85 | N170: 7Button | O170: Correct! | P170: search | Q170: 981
A171: micro: | B171: 7 | C171: 1445426539435 | D171: 1092 | E171: 649 | F171: 225 | G171: TimerButton | H171: NotActive | I171: tou | J171: f | K171: 20 | L171: brN | M171: 1.85 | N171: TimerButton | O171: Correct! | P171: search | Q171: 1092
A172: micro: | B172: 7 | C172: 1445426545193 | D172: 2824 | E172: 739 | F172: 292 | G172: 2Button | H172: SetTime | I172: tou | J172: f | K172: 20 | L172: brN | M172: 1.85 | N172: 2Button | O172: Correct! | P172: search | Q172: 2824
A173: micro: | B173: 7 | C173: 1445426554286 | D173: 2243 | E173: 799 | F173: 463 | G173: StartButton | H173: SetTime | I173: tou | J173: f | K173: 20 | L173: brN | M173: 1.85 | N173: StartButton | O173: Correct! | P173: search | Q173: 2243
A174: micro: | B174: 7 | C174: 1445426561126 | D174: 1572 | E174: 827 | F174: 410 | G174: 9Button | H174: Cooking | I174: tou | J174: f | K174: 20 | L174: brN | M174: 1.85 | N174: 9Button | O174: Correct! | P174: search | Q174: 1572
A175: micro: | B175: 7 | C175: 1445426570630 | D175: 1242 | E175: 633 | F175: 458 | G175: CancelButton | H175: Cooking | I175: tou | J175: f | K175: 20 | L175: brN | M175: 1.85 | N175: CancelButton | O175: Correct! | P175: search | Q175: 1242
A176: micro: | B176: 7 | C176: 1445426575557 | D176: 1031 | E176: 642 | F176: 305 | G176: 1Button | H176: NotActive | I176: tou | J176: f | K176: 20 | L176: brN | M176: 1.85 | N176: 1Button | O176: Correct! | P176: search | Q176: 1031
A177: micro: | B177: 7 | C177: 1445426768544 | D177: 4496 | E177: 836 | F177: 454 | G177: StartButton | H177: NotActive | I177: dot | J177: f | K177: 20 | L177: brN | M177: 1.85 | N177: StartButton | O177: Correct! | P177: search | Q177: 4496
A178: micro: | B178: 7 | C178: 1445426773081 | D178: 1262 | E178: 642 | F178: 407 | G178: 7Button | H178: NotActive | I178: dot | J178: f | K178: 20 | L178: brN | M178: 1.85 | N178: 7Button | O178: Correct! | P178: search | Q178: 1262
A179: micro: | B179: 7 | C179: 1445426777658 | D179: 1262 | E179: 615 | F179: 228 | G179: TimerButton | H179: NotActive | I179: dot | J179: f | K179: 20 | L179: brN | M179: 1.85 | N179: 1Button | O179: Correct! | P179: search | Q179: 1262
A180: micro: | B180: 7 | C180: 1445426782104 | D180: 1202 | E180: 615 | F180: 476 | G180: CancelButton | H180: SetTime | I180: dot | J180: f | K180: 20 | L180: brN | M180: 1.85 | N180: CancelButton | O180: Correct! | P180: search | Q180: 1202
A181: micro: | B181: 7 | C181: 1445426787111 | D181: 1472 | E181: 740 | F181: 354 | G181: 5Button | H181: NotActive | I181: dot | J181: f | K181: 20 | L181: brN | M181: 1.85 | N181: 5Button | O181: Correct! | P181: search | Q181: 1472
A182: micro: | B182: 7 | C182: 1445426794552 | D182: 4356 | E182: 827 | F182: 410 | G182: 9Button | H182: NotActive | I182: dot | J182: f | K182: 20 | L182: brN | M182: 1.85 | N182: 9Button | O182: Correct! | P182: search | Q182: 4356
A183: micro: | B183: 7 | C183: 1445426799359 | D183: 1022 | E183: 615 | F183: 228 | G183: TimerButton | H183: NotActive | I183: dot | J183: f | K183: 20 | L183: brN | M183: 1.85 | N183: TimerButton | O183: Correct! | P183: search | Q183: 1022
A184: micro: | B184: 7 | C184: 1445426808222 | D184: 5468 | E184: 739 | F184: 303 | G184: 2Button | H184: SetTime | I184: dot | J184: f | K184: 20 | L184: brN | M184: 1.85 | N184: 2Button | O184: Correct! | P184: search | Q184: 5468
A185: micro: | B185: 7 | C185: 1445426958728 | D185: 1322 | E185: 757 | F185: 299 | G185: 2Button | H185: NotActive | I185: but | J185: f | K185: 20 | L185: brN | M185: 1.85 | N185: 2Button | O185: Correct! | P185: search | Q185: 1322
A186: micro: | B186: 7 | C186: 1445426962804 | D186: 921 | E186: 825 | F186: 416 | G186: 9Button | H186: NotActive | I186: but | J186: f | K186: 20 | L186: brN | M186: 1.85 | N186: 9Button | O186: Correct! | P186: search | Q186: 921
A187: micro: | B187: 7 | C187: 1445426967010 | D187: 1142 | E187: 666 | F187: 225 | G187: TimerButton | H187: NotActive | I187: but | J187: f | K187: 20 | L187: brN | M187: 1.85 | N187: TimerButton | O187: Correct! | P187: search | Q187: 1142
A188: micro: | B188: 7 | C188: 1445426971396 | D188: 1121 | E188: 661 | F188: 411 | G188: 7Button | H188: SetTime | I188: but | J188: f | K188: 20 | L188: brN | M188: 1.85 | N188: 7Button | O188: Correct! | P188: search | Q188: 1121
A189: micro: | B189: 7 | C189: 1445426975622 | D189: 1161 | E189: 819 | F189: 463 | G189: StartButton | H189: SetTime | I189: but | J189: f | K189: 20 | L189: brN | M189: 1.85 | N189: StartButton | O189: Correct! | P189: search | Q189: 1161
A190: micro: | B190: 7 | C190: 1445426979608 | D190: 871 | E190: 657 | F190: 297 | G190: 1Button | H190: Cooking | I190: but | J190: f | K190: 20 | L190: brN | M190: 1.85 | N190: 1Button | O190: Correct! | P190: search | Q190: 871
A191: micro: | B191: 7 | C191: 1445426983704 | D191: 1042 | E191: 632 | F191: 476 | G191: CancelButton | H191: NotActive | I191: but | J191: f | K191: 20 | L191: brN | M191: 1.85 | N191: CancelButton | O191: Correct! | P191: search | Q191: 1042
A192: micro: | B192: 7 | C192: 1445426988901 | D192: 1281 | E192: 735 | F192: 384 | G192: 5Button | H192: NotActive | I192: but | J192: f | K192: 20 | L192: brN | M192: 1.85 | N192: 5Button | O192: Correct! | P192: search | Q192: 1281
A193: micro: | B193: 8 | C193: 1445429378277 | D193: 2443 | E193: 660 | F193: 293 | G193: 1Button | H193: SetTime | I193: tou | J193: m | K193: 30 | L193: brY | M193: 2.25 | N193: 1Button | O193: Correct! | P193: search | Q193: 2443
A194: micro: | B194: 8 | C194: 1445429386048 | D194: 2593 | E194: 838 | F194: 408 | G194: 9Button | H194: SetTime | I194: tou | J194: m | K194: 30 | L194: brY | M194: 2.25 | N194: 9Button | O194: Correct! | P194: search | Q194: 2593
A195: micro: | B195: 8 | C195: 1445429394611 | D195: 151 | E195: 650 | F195: 236 | G195: TimerButton | H195: SetTime | I195: tou | J195: m | K195: 30 | L195: brY | M195: 2.25 | N195: TimerButton | O195: Correct! | P195: search | Q195: 3916
A196: micro: | B196: 8 | C196: 1445429405106 | D196: 2955 | E196: 817 | F196: 468 | G196: StartButton | H196: SetTime | I196: tou | J196: m | K196: 30 | L196: brY | M196: 2.25 | N196: StartButton | O196: Correct! | P196: search | Q196: 2955
A197: micro: | B197: 8 | C197: 1445429412857 | D197: 1823 | E197: 731 | F197: 345 | G197: 5Button | H197: SetTime | I197: tou | J197: m | K197: 30 | L197: brY | M197: 2.25 | N197: 5Button | O197: Correct! | P197: search | Q197: 1823
A198: micro: | B198: 8 | C198: 1445429421760 | D198: 771 | E198: 660 | F198: 409 | G198: 7Button | H198: SetTime | I198: tou | J198: m | K198: 30 | L198: brY | M198: 2.25 | N198: 7Button | O198: Correct! | P198: search | Q198: 2784
A199: micro: | B199: 8 | C199: 1445429428549 | D199: 3094 | E199: 731 | F199: 299 | G199: 2Button | H199: SetTime | I199: tou | J199: m | K199: 30 | L199: brY | M199: 2.25 | N199: 2Button | O199: Correct! | P199: search | Q199: 3094
A200: micro: | B200: 8 | C200: 1445429435389 | D200: 1953 | E200: 633 | F200: 485 | G200: CancelButton | H200: SetTime | I200: tou | J200: m | K200: 30 | L200: brY | M200: 2.25 | N200: CancelButton | O200: Correct! | P200: search | Q200: 1953
... 136 more rows

Sheet searchChart
A4: Overlay | B4: attempts | C4: failures | D4: p(error)
A5: Bump Dots | B5: 12 | C5: 5 | D5: 0.4166666667
A6: Foam/Felt | B6: 12 | C6: 0 | D6: 0
A7: Shaped Bump Dots | B7: 12 | C7: 4 | D7: 0.3333333333
A8: Touchplate | B8: 12 | C8: 1 | D8: 0.08333333333
A12: Overlay | B12: attempts | C12: failures | D12: p(error) | AA12: =SUMIFS(ct2ButtonTimes, ct2Overlay,Y12,ct2Mode,"coffee", ct2Age,"60") -> 
A13: Bump Dots | B13: 80 | C13: 10 | D13: 0.125
A14: Foam/Felt | B14: 80 | C14: 3 | D14: 0.0375
A15: Shaped Bump Dots | B15: 88 | C15: 2 | D15: 0.02272727273
A16: Touchplate | B16: 87 | C16: 8 | D16: 0.09195402299
A17: Overlay | B17: attempts | C17: failures | D17: p(error)
A18: Touchplate | B18: =B13+C27 -> 176 | C18: =C13+D27 -> 12 | D18: =C18/B18 -> 0.06818181818
A19: Shaped Bump Dots | B19: =B14+C28 -> 176 | C19: 10 | D19: =C19/B19 -> 0.05681818182
A20: Foam/Felt | B20: 184 | C20: 2 | D20: =C20/B20 -> 0.01086956522
A21: Bump Dots | B21: 179 | C21: 16 | D21: =C21/B21 -> 0.08938547486
A26: overlay | B26: name | C26: count | D26: errors | E26: p(error)
A27: Touchplate | B27: tou | C27: 96 | D27: 2 | E27: 0.02083333333
A28: Shaped Bump Dots | B28: but | C28: 96 | D28: 7 | E28: 0.07291666667
A29: Foam/Felt | B29: tac | C29: 96 | D29: 0 | E29: 0
A30: Bump Dots | B30: dot | C30: 92 | D30: 8 | E30: 0.08695652174
B42: Overlay | C42: count | D42: total time | E42: Avg time
B43: Touchplate | C43: 79 | D43: 289462 | E43: 3.664075949 | F43: =E43*8 -> 29.31260759
B44: Shaped Bump Dots | C44: 86 | D44: 262038 | E44: 3.046953488 | F44: =E44*8 -> 24.37562791
B45: Foam/Felt | C45: 77 | D45: 201651 | E45: 2.618844156 | F45: =E45*8 -> 20.95075325
B46: Bump Dots | C46: 70 | D46: 229483 | E46: 3.278328571 | F46: =E46*8 -> 26.22662857
B48: overlay | C48: count | D48: total time | E48: Avg time
B49: Touchplate | C49: 11 | D49: 348152 | E49: 31.65018182
B50: Shaped Bump Dots | C50: 8 | D50: 182442 | E50: 22.80525
B51: Foam/Felt | C51: 12 | D51: 254356 | E51: 21.19633333
B52: Bump Dots | C52: 7 | D52: 225945 | E52: 32.27785714

Sheet coffeeError
C1: id | D1: time | E1: timegap | F1: x | G1: y | H1: buttonPressed | I1: state | J1: overlay | K1: mf | L1: age | M1: braille | N1: finger | O1: buttonExpected | P1: error | Q1: mode | R1: time | S1: altTime | T1: q1 | U1: q2 | V1: q3
B2: micro: | C2: 1 | D2: 1445365839988 | E2: 1222 | F2: 620 | G2: 464 | H2: CancelButton | I2: SetPower | J2: but | K2: f | L2: 60 | M2: brN | N2: 2.14 | O2: CancelButton | P2: x | Q2: coffee | R2: 37164 | S2: 36833
B3: micro: | C3: 6 | D3: 1445422973938 | E3: 2884 | F3: 719 | G3: 460 | H3: 0Button | I3: Cooking | J3: but | K3: f | L3: 50 | M3: brN | N3: 1.77 | O3: CancelButton | P3: x | Q3: coffee
B4: micro: | C4: 10 | D4: 1445438049195 | E4: 3445 | F4: 663 | G4: 459 | H4: CancelButton | I4: NotActive | J4: but | K4: f | L4: 60 | M4: brN | N4: 2.16 | O4: CancelButton | P4: x | Q4: coffee | R4: 50112 | S4: 46256
B5: micro: | C5: 12 | D5: 1445420197426 | E5: 631 | F5: 629 | G5: 485 | H5: CancelButton | I5: SetPower | J5: but | K5: f | L5: 40 | M5: brP | N5: 2.11 | O5: CancelButton | P5: x | Q5: coffee | R5: 23905 | U5: Overall
B6: micro: | C6: 2 | D6: 1445371999835 | E6: 5167 | F6: 653 | G6: 474 | H6: CancelButton | I6: NotActive | J6: but | K6: m | L6: 50 | M6: brN | N6: 2.57 | O6: CancelButton | Q6: coffee | R6: 25066 | S6: 22302
B7: micro: | C7: 3 | D7: 1445375638437 | E7: 1362 | F7: 670 | G7: 489 | H7: CancelButton | I7: Cooking | J7: but | K7: f | L7: 50 | M7: brY | N7: 2.04 | O7: CancelButton | Q7: coffee | R7: 24956 | S7: 22953 | V7: attempts | W7: failures | X7: p(error)
B8: micro: | C8: 4 | D8: 1445466920660 | E8: 541 | F8: 621 | G8: 455 | H8: CancelButton | I8: NotActive | J8: but | K8: f | L8: 60 | M8: brY | N8: 1.79 | O8: CancelButton | Q8: coffee | R8: 28281 | S8: 28281 | U8: but | V8: =COUNTIF($J$2:$J$50,U8) -> 12 | W8: =COUNTIFS($J$2:$J$50,U8,$P$2:$P$50,"x") -> 4 | X8: =W8/V8 -> 0.3333333333
B9: micro: | C9: 5 | D9: 1445368496748 | E9: 1212 | F9: 651 | G9: 469 | H9: CancelButton | I9: NotActive | J9: but | K9: f | L9: 60 | M9: brY | N9: 2.06 | O9: CancelButton | Q9: coffee | R9: 16554 | S9: 15532 | U9: dot | V9: =COUNTIF($J$2:$J$50,U9) -> 12 | W9: =COUNTIFS($J$2:$J$50,U9,$P$2:$P$50,"x") -> 5 | X9: =W9/V9 -> 0.4166666667
B10: micro: | C10: 7 | D10: 1445426950346 | E10: 871 | F10: 632 | G10: 471 | H10: CancelButton | I10: Cooking | J10: but | K10: f | L10: 20 | M10: brN | N10: 1.85 | O10: CancelButton | Q10: coffee | R10: 16594 | S10: 13340 | U10: tac | V10: 12 | W10: 0 | X10: 0
B11: micro: | C11: 8 | D11: 1445429986732 | E11: 250 | F11: 650 | G11: 470 | H11: CancelButton | I11: SetPower | J11: but | K11: m | L11: 30 | M11: brY | N11: 2.25 | O11: CancelButton | Q11: coffee | R11: 20429 | S11: 17104 | U11: tou | V11: 12 | W11: 1 | X11: 0.08333333333
B12: micro: | C12: 9 | D12: 1445433343419 | E12: 681 | F12: 616 | G12: 460 | H12: CancelButton | I12: Cooking | J12: but | K12: f | L12: 60 | M12: brY | N12: 1.77 | O12: CancelButton | Q12: coffee | R12: 31415 | S12: 29222 | V12: =SUM(V8:V11) -> 48 | W12: 10 | X12: 0.2083333333 | AA12: =SUMIFS(ct2ButtonTimes, ct2Overlay,Y12,ct2Mode,"coffee", ct2Age,"60") -> 
B13: micro: | C13: 11 | D13: 1445441376199 | E13: 2874 | F13: 642 | G13: 484 | H13: CancelButton | I13: Cooking | J13: but | K13: f | L13: 30 | M13: brY | N13: 1.77 | O13: CancelButton | Q13: coffee | R13: 19147 | S13: 19147
B14: micro: | C14: 1 | D14: 1445365561167 | E14: 1262 | F14: 636 | G14: 484 | H14: CancelButton | I14: Cooking | J14: dot | K14: f | L14: 60 | M14: brN | N14: 2.14 | O14: CancelButton | P14: x | Q14: coffee | R14: 37955 | S14: 34640
B15: micro: | C15: 2 | D15: 1445371796603 | E15: 791 | F15: 639 | G15: 463 | H15: CancelButton | I15: NotActive | J15: dot | K15: m | L15: 50 | M15: brN | N15: 2.57 | O15: CancelButton | P15: x | Q15: coffee | R15: 45225 | S15: 45085 | U15: but | V15: =COUNTIFS($J$2:$J$50,U15,$L$2:$L$50,">59") -> 5 | W15: =COUNTIFS($J$2:$J$50,U15,$P$2:$P$50,"x",$L$2:$L$50,">59") -> 2 | X15: =W15/V15 -> 0.4
B16: micro: | C16: 4 | D16: 1445466365582 | E16: 4307 | F16: 675 | G16: 484 | H16: CancelButton | I16: Cooking | J16: dot | K16: f | L16: 60 | M16: brY | N16: 1.79 | O16: CancelButton | P16: x | Q16: coffee | R16: 42672 | S16: 42212 | U16: dot | V16: =COUNTIFS($J$2:$J$50,U16,$L$2:$L$50,">59") -> 5 | W16: =COUNTIFS($J$2:$J$50,U16,$P$2:$P$50,"x",$L$2:$L$50,">59") -> 3 | X16: =W16/V16 -> 0.6
B17: micro: | C17: 9 | D17: 1445432843530 | E17: 1062 | F17: 617 | G17: 488 | H17: CancelButton | I17: Cooking | J17: dot | K17: f | L17: 60 | M17: brY | N17: 1.77 | O17: CancelButton | P17: x | Q17: coffee | R17: 35291 | S17: 34399 | U17: tac | V17: 5 | W17: 0 | X17: 0
B18: micro: | C18: 11 | D18: 1445441237780 | E18: 5488 | F18: 642 | G18: 477 | H18: CancelButton | I18: NotActive | J18: dot | K18: f | L18: 30 | M18: brY | N18: 1.77 | O18: CancelButton | P18: x | Q18: coffee | U18: tou | V18: 5 | W18: 0 | X18: 0
B19: micro: | C19: 3 | D19: 1445376348869 | E19: 1983 | F19: 630 | G19: 465 | H19: CancelButton | I19: Cooking | J19: dot | K19: f | L19: 50 | M19: brY | N19: 2.04 | O19: CancelButton | Q19: coffee | R19: 29543 | S19: 29393 | V19: =SUM(V15:V18) -> 20 | W19: =SUM(W15:W18) -> 5 | X19: 0.25
B20: micro: | C20: 5 | D20: 1445368272946 | E20: 470 | F20: 617 | G20: 468 | H20: CancelButton | I20: Cooking | J20: dot | K20: f | L20: 60 | M20: brY | N20: 2.06 | O20: CancelButton | Q20: coffee | R20: 28941 | S20: 28420 | U20: younger
B21: micro: | C21: 6 | D21: 1445423355867 | E21: 2283 | F21: 618 | G21: 453 | H21: CancelButton | I21: Cooking | J21: dot | K21: f | L21: 50 | M21: brN | N21: 1.77 | O21: CancelButton | Q21: coffee | R21: 26157 | S21: 21810 | U21: but | V21: =COUNTIFS($J$2:$J$50,U21,$L$2:$L$50,"<59") -> 7 | W21: =COUNTIFS($J$2:$J$50,U21,$P$2:$P$50,"x",$L$2:$L$50,"<59") -> 2 | X21: =W21/V21 -> 0.2857142857
B22: micro: | C22: 7 | D22: 1445426734355 | E22: 3334 | F22: 668 | G22: 485 | H22: CancelButton | I22: Cooking | J22: dot | K22: f | L22: 20 | M22: brN | N22: 1.85 | O22: CancelButton | Q22: coffee | R22: 24415 | S22: 22613 | U22: dot | V22: =COUNTIFS($J$2:$J$50,U22,$L$2:$L$50,"<59") -> 7 | W22: =COUNTIFS($J$2:$J$50,U22,$P$2:$P$50,"x",$L$2:$L$50,"<59") -> 2 | X22: =W22/V22 -> 0.2857142857
B23: micro: | C23: 8 | D23: 1445429656277 | E23: 781 | F23: 669 | G23: 485 | H23: CancelButton | I23: Cooking | J23: dot | K23: m | L23: 30 | M23: brY | N23: 2.25 | O23: CancelButton | Q23: coffee | R23: 23234 | S23: 19218 | U23: tac | V23: 7 | W23: 0 | X23: 0
B24: micro: | C24: 10 | D24: 1445438498441 | E24: 8151 | F24: 673 | G24: 471 | H24: CancelButton | I24: SetPower | J24: dot | K24: f | L24: 60 | M24: brN | N24: 2.16 | O24: CancelButton | Q24: coffee | R24: 69490 | S24: 63262 | U24: tou | V24: 7 | W24: 1 | X24: 0.1428571429
B25: micro: | C25: 12 | D25: 1445418760289 | E25: 1512 | F25: 612 | G25: 485 | H25: CancelButton | I25: SetPower | J25: dot | K25: f | L25: 40 | M25: brP | N25: 2.11 | O25: CancelButton | Q25: coffee | R25: 24165 | S25: 23744 | V25: =SUM(V21:V24) -> 28 | W25: 5 | X25: 0.1785714286
B26: micro: | C26: 1 | D26: 1445363136310 | E26: 931 | F26: 652 | G26: 484 | H26: CancelButton | I26: Cooking | J26: tac | K26: f | L26: 60 | M26: brN | N26: 2.14 | O26: CancelButton | Q26: coffee | R26: 12027 | S26: 12027
B27: micro: | C27: 2 | D27: 1445372167697 | E27: 2123 | F27: 634 | G27: 478 | H27: CancelButton | I27: SetPower | J27: tac | K27: m | L27: 50 | M27: brN | N27: 2.57 | O27: CancelButton | Q27: coffee | R27: 23134 | S27: 21172 | U27: finger >2
B28: micro: | C28: 3 | D28: 1445376109355 | E28: 1903 | F28: 630 | G28: 485 | H28: CancelButton | I28: Cooking | J28: tac | K28: f | L28: 50 | M28: brY | N28: 2.04 | O28: CancelButton | Q28: coffee | R28: 20620 | S28: 19908 | U28: but | V28: =COUNTIFS($J$2:$J$50,U28,$N$2:$N$50,">2.05") -> 6 | W28: =COUNTIFS($J$2:$J$50,U28,$P$2:$P$50,"x",$N$2:$N$50,">2.05") -> 3 | X28: =W28/V28 -> 0.5
B29: micro: | C29: 4 | D29: 1445466646415 | E29: 1161 | F29: 638 | G29: 476 | H29: CancelButton | I29: Cooking | J29: tac | K29: f | L29: 60 | M29: brY | N29: 1.79 | O29: CancelButton | Q29: coffee | R29: 21360 | S29: 20258 | U29: dot | V29: =COUNTIFS($J$2:$J$50,U29,$N$2:$N$50,">2.05") -> 6 | W29: =COUNTIFS($J$2:$J$50,U29,$P$2:$P$50,"x",$N$2:$N$50,">2.05") -> 2 | X29: =W29/V29 -> 0.3333333333
B30: micro: | C30: 5 | D30: 1445368646363 | E30: 601 | F30: 617 | G30: 496 | H30: CancelButton | I30: NotActive | J30: tac | K30: f | L30: 60 | M30: brY | N30: 2.06 | O30: CancelButton | Q30: coffee | R30: 18536 | S30: 18156 | U30: tac | V30: 6 | W30: 0 | X30: 0
B31: micro: | C31: 6 | D31: 1445423842707 | E31: 1021 | F31: 618 | G31: 486 | H31: CancelButton | I31: SetPower | J31: tac | K31: f | L31: 50 | M31: brN | N31: 1.77 | O31: CancelButton | Q31: coffee | R31: 21951 | S31: 21951 | U31: tou | V31: 6 | W31: 1 | X31: 0.1666666667
B32: micro: | C32: 7 | D32: 1445426304728 | E32: 1262 | F32: 651 | G32: 477 | H32: CancelButton | I32: Cooking | J32: tac | K32: f | L32: 20 | M32: brN | N32: 1.85 | O32: CancelButton | Q32: coffee | R32: 13340 | S32: 13340 | V32: =SUM(V28:V31) -> 24 | W32: =SUM(W28:W31) -> 6 | X32: 0.25
B33: micro: | C33: 8 | D33: 1445430218355 | E33: 1963 | F33: 633 | G33: 491 | H33: CancelButton | I33: NotActive | J33: tac | K33: m | L33: 30 | M33: brY | N33: 2.25 | O33: CancelButton | Q33: coffee | R33: 16804 | S33: 15952 | U33: finger <2
B34: micro: | C34: 9 | D34: 1445433142330 | E34: 842 | F34: 616 | G34: 456 | H34: CancelButton | I34: Cooking | J34: tac | K34: f | L34: 60 | M34: brY | N34: 1.77 | O34: CancelButton | Q34: coffee | R34: 24546 | S34: 24316 | U34: but | V34: =COUNTIFS($J$2:$J$50,U34,$N$2:$N$50,"<2.05") -> 6 | W34: =COUNTIFS($J$2:$J$50,U34,$P$2:$P$50,"x",$N$2:$N$50,"<2.05") -> 1 | X34: =W34/V34 -> 0.1666666667
B35: micro: | C35: 10 | D35: 1445438717496 | E35: 991 | F35: 651 | G35: 481 | H35: CancelButton | I35: NotActive | J35: tac | K35: f | L35: 60 | M35: brN | N35: 2.16 | O35: CancelButton | Q35: coffee | R35: 36332 | S35: 34991 | U35: dot | V35: =COUNTIFS($J$2:$J$50,U35,$N$2:$N$50,"<2.05") -> 6 | W35: =COUNTIFS($J$2:$J$50,U35,$P$2:$P$50,"x",$N$2:$N$50,"<2.05") -> 3 | X35: =W35/V35 -> 0.5
B36: micro: | C36: 11 | D36: 1445441048899 | E36: 2364 | F36: 642 | G36: 485 | H36: CancelButton | I36: Cooking | J36: tac | K36: f | L36: 30 | M36: brY | N36: 1.77 | O36: CancelButton | Q36: coffee | R36: 26068 | S36: 26068 | U36: tac | V36: 6 | W36: 0 | X36: 0
B37: micro: | C37: 12 | D37: 1445419555803 | E37: 751 | F37: 629 | G37: 495 | H37: CancelButton | I37: Cooking | J37: tac | K37: f | L37: 40 | M37: brP | N37: 2.11 | O37: CancelButton | Q37: coffee | R37: 19638 | S37: 18957 | U37: tou | V37: 6 | W37: 0 | X37: 0
B38: micro: | C38: 12 | D38: 1445419066159 | E38: 1412 | F38: 647 | G38: 488 | H38: CancelButton | I38: Cooking | J38: tou | K38: f | L38: 40 | M38: brP | N38: 2.11 | O38: CancelButton | P38: x | Q38: coffee | R38: 30093 | S38: 29292 | V38: =SUM(V34:V37) -> 24 | W38: =SUM(W34:W37) -> 4 | X38: 0.1666666667
B39: micro: | C39: 1 | D39: 1445365149825 | E39: 1562 | F39: 620 | G39: 466 | H39: CancelButton | I39: Cooking | J39: tou | K39: f | L39: 60 | M39: brN | N39: 2.14 | O39: CancelButton | Q39: coffee | R39: 45255 | S39: 39866
B40: micro: | C40: 2 | D40: 1445371489251 | E40: 340 | F40: 672 | G40: 484 | H40: CancelButton | I40: SetPower | J40: tou | K40: m | L40: 50 | M40: brN | N40: 2.57 | O40: CancelButton | Q40: coffee | R40: 20680 | S40: 19239 | U40: Braille Y
B41: micro: | C41: 3 | D41: 1445375924589 | E41: 1843 | F41: 630 | G41: 484 | H41: CancelButton | I41: Cooking | J41: tou | K41: f | L41: 50 | M41: brY | N41: 2.04 | O41: CancelButton | Q41: coffee | R41: 24946 | S41: 24265 | U41: but | V41: =COUNTIFS($J$2:$J$50,U41,$M$2:$M$50,"brY") -> 6 | W41: =COUNTIFS($J$2:$J$50,U41,$P$2:$P$50,"x",$M$2:$M$50,"brY") -> 0 | X41: =W41/V41 -> 0
B42: micro: | C42: 4 | D42: 1445465896868 | E42: 2194 | F42: 638 | G42: 456 | H42: CancelButton | I42: Cooking | J42: tou | K42: f | L42: 60 | M42: brY | N42: 1.79 | O42: CancelButton | Q42: coffee | R42: 25517 | S42: 25517 | U42: dot | V42: =COUNTIFS($J$2:$J$50,U42,$M$2:$M$50,"brY") -> 6 | W42: =COUNTIFS($J$2:$J$50,U42,$P$2:$P$50,"x",$M$2:$M$50,"brY") -> 3 | X42: =W42/V42 -> 0.5
B43: micro: | C43: 5 | D43: 1445368854563 | E43: 1132 | F43: 635 | G43: 468 | H43: CancelButton | I43: Cooking | J43: tou | K43: f | L43: 60 | M43: brY | N43: 2.06 | O43: CancelButton | Q43: coffee | R43: 24506 | S43: 24336 | U43: tac | V43: 6 | W43: 0 | X43: 0
B44: micro: | C44: 6 | D44: 1445423626877 | E44: 911 | F44: 617 | G44: 463 | H44: CancelButton | I44: Cooking | J44: tou | K44: f | L44: 50 | M44: brN | N44: 1.77 | O44: CancelButton | Q44: coffee | R44: 27740 | S44: 27740 | U44: tou | V44: 6 | W44: 0 | X44: 0
B45: micro: | C45: 7 | D45: 1445426518745 | E45: 2253 | F45: 670 | G45: 461 | H45: CancelButton | I45: Cooking | J45: tou | K45: f | L45: 20 | M45: brN | N45: 1.85 | O45: CancelButton | Q45: coffee | R45: 21270 | S45: 15552 | V45: =SUM(V41:V44) -> 24 | W45: =SUM(W41:W44) -> 3 | X45: 0.125
B46: micro: | C46: 8 | D46: 1445429345590 | E46: 2343 | F46: 617 | G46: 478 | H46: CancelButton | I46: Cooking | J46: tou | K46: m | L46: 30 | M46: brY | N46: 2.25 | O46: CancelButton | Q46: coffee | R46: 28982 | S46: 21141 | U46: Braille N/P
B47: micro: | C47: 9 | D47: 1445433619355 | E47: 1962 | F47: 632 | G47: 461 | H47: CancelButton | I47: Cooking | J47: tou | K47: f | L47: 60 | M47: brY | N47: 1.77 | O47: CancelButton | Q47: coffee | R47: 32196 | S47: 32196 | U47: but | V47: =COUNTIFS($J$2:$J$50,U47,$M$2:$M$50,"brN") + COUNTIFS($J$2:$J$50,U47,$M$2:$M$50,"brP") -> 6 | W47: =COUNTIFS($J$2:$J$50,U47,$P$2:$P$50,"x",$M$2:$M$50,"brN") + COUNTIFS($J$2:$J$50,U47,$P$2:$P$50,"x",$M$2:$M$50,"brP") -> 4 | X47: =W47/V47 -> 0.6666666667
B48: micro: | C48: 10 | D48: 1445437651323 | E48: 1131 | F48: 625 | G48: 477 | H48: CancelButton | I48: SetPower | J48: tou | K48: f | L48: 60 | M48: brN | N48: 2.16 | O48: CancelButton | Q48: coffee | R48: 64693 | S48: 61208 | U48: dot | V48: =COUNTIFS($J$2:$J$50,U48,$M$2:$M$50,"brN") + COUNTIFS($J$2:$J$50,U48,$M$2:$M$50,"brP") -> 6 | W48: =COUNTIFS($J$2:$J$50,U48,$P$2:$P$50,"x",$M$2:$M$50,"brN") + COUNTIFS($J$2:$J$50,U48,$P$2:$P$50,"x",$M$2:$M$50,"brP") -> 2 | X48: =W48/V48 -> 0.3333333333
B49: micro: | C49: 11 | D49: 1445440803496 | E49: 2584 | F49: 659 | G49: 477 | H49: CancelButton | I49: Cooking | J49: tou | K49: f | L49: 30 | M49: brY | N49: 1.77 | O49: CancelButton | Q49: coffee | R49: 32367 | S49: 26619 | U49: tac | V49: 6 | W49: 0 | X49: 0
U50: tou | V50: 6 | W50: 1 | X50: 0.1666666667
N51: =MEDIAN(N2:N49) -> 2.05 | V51: =SUM(V47:V50) -> 24 | W51: =SUM(W47:W50) -> 7 | X51: 0.2916666667

Sheet searchTime Finger
B1: id | C1: time | D1: timegap | E1: x | F1: y | G1: buttonPressed | H1: state | I1: overlay | J1: mf | K1: age | L1: braille | M1: finger | N1: buttonExpected | O1: error | P1: mode | Q1: time
B2: 6 | C2: 1445423163831 | D2: 1542 | E2: 667 | F2: 227 | G2: TimerButton | H2: SetTime | I2: but | J2: f | K2: 50 | L2: brN | M2: 1.77 | N2: TimerButton | P2: search | Q2: 1542 | S2: overlay | T2: count | U2: sum | V2: mean | X2: tac time vs dot time | AD2: tou time vs tac time
B3: 6 | C3: 1445423238048 | D3: 2514 | E3: 644 | F3: 417 | G3: 7Button | H3: NotActive | I3: but | J3: f | K3: 50 | L3: brN | M3: 1.77 | N3: 7Button | P3: search | Q3: 2514 | S3: tac | T3: =COUNTIF($I$1:$I$313,S3) -> 77 | U3: =SUMIF($I$1:$I$313,S3,$Q$2:$Q$313) -> 205194 | V3: =U3/T3 -> 2664.857143 | Y3: t-Test: Two-Sample Assuming Equal Variances | AD3: t-Test: Two-Sample Assuming Equal Variances
B4: 6 | C4: 1445423231048 | D4: 2924 | E4: 644 | F4: 302 | G4: 1Button | H4: NotActive | I4: but | J4: f | K4: 50 | L4: brN | M4: 1.77 | N4: 1Button | P4: search | Q4: 2924 | S4: but | T4: =COUNTIF($I$1:$I$313,S4) -> 86 | U4: =SUMIF($I$1:$I$313,S4,$Q$2:$Q$313) -> 261269 | V4: =U4/T4 -> 3038.011628
B5: 6 | C5: 1445423181747 | D5: 3024 | E5: 629 | F5: 483 | G5: CancelButton | H5: SetTime | I5: but | J5: f | K5: 50 | L5: brN | M5: 1.77 | N5: CancelButton | P5: search | Q5: 3024 | S5: dot | T5: =COUNTIF($I$1:$I$313,S5) -> 70 | U5: =SUMIF($I$1:$I$313,S5,$Q$2:$Q$313) -> 230674 | V5: =U5/T5 -> 3295.342857 | Z5: Variable 1 | AA5: Variable 2 | AE5: Variable 1 | AF5: Variable 2
B6: 6 | C6: 1445423212171 | D6: 3766 | E6: 828 | F6: 427 | G6: 9Button | H6: NotActive | I6: but | J6: f | K6: 50 | L6: brN | M6: 1.77 | N6: 9Button | P6: search | Q6: 3766 | S6: tou | T6: =COUNTIF($I$1:$I$313,S6) -> 79 | U6: =SUMIF($I$1:$I$313,S6,$Q$2:$Q$313) -> 283955 | V6: =U6/T6 -> 3594.367089 | Y6: Mean | Z6: 3278.328571 | AA6: 2618.844156 | AD6: Mean | AE6: 2618.844156 | AF6: 3664.075949
B7: 6 | C7: 1445423203879 | D7: 3806 | E7: 741 | F7: 295 | G7: 2Button | H7: NotActive | I7: but | J7: f | K7: 50 | L7: brN | M7: 1.77 | N7: 2Button | P7: search | Q7: 3806 | Y7: Variance | Z7: 4319994.34 | AA7: 1208195.291 | AD7: Variance | AE7: 1208195.291 | AF7: 3860853.558
B8: 6 | C8: 1445423174627 | D8: 4477 | E8: 739 | F8: 383 | G8: 5Button | H8: SetTime | I8: but | J8: f | K8: 50 | L8: brN | M8: 1.77 | N8: 5Button | P8: search | Q8: 4477 | Y8: Observations | Z8: 70 | AA8: 77 | AD8: Observations | AE8: 77 | AF8: 79
B9: 6 | C9: 1445423190740 | D9: 3325 | E9: 800 | F9: 464 | G9: StartButton | H9: NotActive | I9: but | J9: f | K9: 50 | L9: brN | M9: 1.77 | N9: StartButton | P9: search | Q9: 4877 | S9: Overall | Y9: Pooled Variance | Z9: 2688982.425 | AD9: Pooled Variance | AE9: 2551749.478
B10: 6 | C10: 1445423438146 | D10: 882 | E10: 658 | F10: 323 | G10: 1Button | H10: NotActive | I10: dot | J10: f | K10: 50 | L10: brN | M10: 1.77 | N10: 1Button | P10: search | Q10: 882 | Y10: Hypothesized Mean Difference | Z10: 0 | AD10: Hypothesized Mean Difference | AE10: 0
B11: 6 | C11: 1445423444555 | D11: 1412 | E11: 716 | F11: 286 | G11: 2Button | H11: NotActive | I11: dot | J11: f | K11: 50 | L11: brN | M11: 1.77 | N11: 2Button | P11: search | Q11: 1412 | T11: count | U11: total time | V11: Avg time | Y11: df | Z11: 145 | AD11: df | AE11: 154
B12: 6 | C12: 1445423450383 | D12: 1582 | E12: 741 | F12: 352 | G12: 5Button | H12: NotActive | I12: dot | J12: f | K12: 50 | L12: brN | M12: 1.77 | N12: 5Button | P12: search | Q12: 1582 | S12: but | T12: =COUNTIF(searchTimeOverlay,S12) -> 86 | U12: =SUMIFS(searchTimeTime, searchTimeOverlay,S12) -> 262038 | V12: =(U12/T12)/1000 -> 3.046953488 | Y12: t Stat | Z12: 2.435265244 | AA12: =SUMIFS(ct2ButtonTimes, ct2Overlay,Y12,ct2Mode,"coffee", ct2Age,"60") ->  | AD12: t Stat | AE12: -4.085923237
B13: 6 | C13: 1445423425467 | D13: 2353 | E13: 628 | F13: 414 | G13: 7Button | H13: SetTime | I13: dot | J13: f | K13: 50 | L13: brN | M13: 1.77 | N13: 7Button | P13: search | Q13: 2353 | S13: dot | T13: =COUNTIF(searchTimeOverlay,S13) -> 70 | U13: =SUMIFS(searchTimeTime, searchTimeOverlay,S13) -> 229483 | V13: =(U13/T13)/1000 -> 3.278328571 | Y13: P(T<=t) one-tail | Z13: 0.008047320596 | AD13: P(T<=t) one-tail | AE13: 3.521209099e-05
B14: 6 | C14: 1445423432908 | D14: 370 | E14: 631 | F14: 500 | G14: CancelButton | H14: SetTime | I14: dot | J14: f | K14: 50 | L14: brN | M14: 1.77 | N14: CancelButton | P14: search | Q14: 2994 | S14: tac | T14: =COUNTIF(searchTimeOverlay,S14) -> 77 | V14: 0 | Y14: t Critical one-tail | Z14: 1.655430252 | AD14: t Critical one-tail | AE14: 1.654808386
B15: 6 | C15: 1445423403706 | D15: 4126 | E15: 617 | F15: 216 | G15: TimerButton | H15: NotActive | I15: dot | J15: f | K15: 50 | L15: brN | M15: 1.77 | N15: TimerButton | P15: search | Q15: 4126 | S15: tou | T15: =COUNTIF(searchTimeOverlay,S15) -> 79 | U15: =SUMIFS(searchTimeTime, searchTimeOverlay,S15) -> 289462 | V15: 3.664075949 | Y15: P(T<=t) two-tail | Z15: 0.01609464119 | AD15: P(T<=t) two-tail | AE15: 7.042418199e-05
B16: 6 | C16: 1445423468559 | D16: 2133 | E16: 830 | F16: 402 | G16: 9Button | H16: NotActive | I16: dot | J16: f | K16: 50 | L16: brN | M16: 1.77 | N16: 9Button | P16: search | Q16: 7150 | T16: =SUM(T12:T15) -> 312 | U16: 780983 | V16: 2.503150641 | Y16: t Critical two-tail | Z16: 1.976459531 | AD16: t Critical two-tail | AE16: 1.975488024
B17: 6 | C17: 1445423859031 | D17: 711 | E17: 741 | F17: 346 | G17: 5Button | H17: NotActive | I17: tac | J17: f | K17: 50 | L17: brN | M17: 1.77 | N17: 5Button | P17: search | Q17: 711
B18: 6 | C18: 1445423863067 | D18: 1703 | E18: 813 | F18: 482 | G18: StartButton | H18: NotActive | I18: tac | J18: f | K18: 50 | L18: brN | M18: 1.77 | N18: StartButton | P18: search | Q18: 1703 | S18: older
B19: 6 | C19: 1445423868735 | D19: 2113 | E19: 646 | F19: 310 | G19: 1Button | H19: NotActive | I19: tac | J19: f | K19: 50 | L19: brN | M19: 1.77 | N19: 1Button | P19: search | Q19: 2113 | S19: but | T19: =COUNTIFS(searchTimeOverlay,S19,searchTimeAge,">59") -> 31 | U19: =SUMIFS(searchTimeTime,searchTimeOverlay,S19,searchTimeAge,">59") -> 109718 | V19: =(U19/T19)/1000 -> 3.539290323 | X19: but time vs. dot time
B20: 6 | C20: 1445423874473 | D20: 2353 | E20: 618 | F20: 475 | G20: CancelButton | H20: NotActive | I20: tac | J20: f | K20: 50 | L20: brN | M20: 1.77 | N20: CancelButton | P20: search | Q20: 2353 | S20: dot | T20: =COUNTIFS(searchTimeOverlay,S20,searchTimeAge,">59") -> 21 | U20: =SUMIFS(searchTimeTime,searchTimeOverlay,S20,searchTimeAge,">59") -> 69962 | V20: 3.33152381 | Y20: t-Test: Two-Sample Assuming Equal Variances
B21: 6 | C21: 1445423880782 | D21: 1963 | E21: 634 | F21: 228 | G21: TimerButton | H21: NotActive | I21: tac | J21: f | K21: 50 | L21: brN | M21: 1.77 | N21: TimerButton | P21: search | Q21: 2694 | S21: tac | T21: =COUNTIFS(searchTimeOverlay,S21,searchTimeAge,">59") -> 24 | U21: =SUMIFS(searchTimeTime,searchTimeOverlay,S21,searchTimeAge,">59") -> 62650 | V21: 2.610416667
B22: 6 | C22: 1445423887091 | D22: 2964 | E22: 830 | F22: 411 | G22: 9Button | H22: SetTime | I22: tac | J22: f | K22: 50 | L22: brN | M22: 1.77 | N22: 9Button | P22: search | Q22: 2964 | S22: tou | T22: =COUNTIFS(searchTimeOverlay,S22,searchTimeAge,">59") -> 29 | U22: =SUMIFS(searchTimeTime,searchTimeOverlay,S22,searchTimeAge,">59") -> 123312 | V22: 4.252137931 | Z22: Variable 1 | AA22: Variable 2
B23: 6 | C23: 1445423918476 | D23: 901 | E23: 645 | F23: 414 | G23: 7Button | H23: NotActive | I23: tac | J23: f | K23: 50 | L23: brN | M23: 1.77 | N23: 7Button | P23: search | Q23: 3795 | T23: =SUM(T19:T22) -> 105 | U23: =SUM(U19:U22) -> 365642 | V23: 3.482304762 | W23: =ABS(V23-$V$16) -> 0.9791541209 | Y23: Mean | Z23: 3278.328571 | AA23: 3046.953488
B24: 6 | C24: 1445423899749 | D24: 520 | E24: 757 | F24: 307 | G24: 2Button | H24: SetTime | I24: tac | J24: f | K24: 50 | L24: brN | M24: 1.77 | N24: 2Button | P24: search | Q24: 6629 | S24: younger | Y24: Variance | Z24: 4319994.34 | AA24: 2978448.398
B25: 6 | C25: 1445423699221 | D25: 2143 | E25: 634 | F25: 463 | G25: CancelButton | H25: SetTime | I25: tou | J25: f | K25: 50 | L25: brN | M25: 1.77 | N25: CancelButton | P25: search | Q25: 2143 | S25: but | T25: =COUNTIFS(searchTimeOverlay,S25,searchTimeAge,"<59") -> 55 | U25: =SUMIFS(searchTimeTime,searchTimeOverlay,S25,searchTimeAge,"<59") -> 152320 | V25: =(U25/T25)/1000 -> 2.769454545 | Y25: Observations | Z25: 70 | AA25: 86
B26: 6 | C26: 1445423662218 | D26: 2844 | E26: 647 | F26: 228 | G26: TimerButton | H26: NotActive | I26: tou | J26: f | K26: 50 | L26: brN | M26: 1.77 | N26: TimerButton | P26: search | Q26: 2844 | S26: dot | T26: =COUNTIFS(searchTimeOverlay,S26,searchTimeAge,"<59") -> 49 | U26: =SUMIFS(searchTimeTime,searchTimeOverlay,S26,searchTimeAge,"<59") -> 159521 | V26: 3.255530612 | Y26: Pooled Variance | Z26: 3579530.67
B27: 6 | C27: 1445423669769 | D27: 3295 | E27: 662 | F27: 415 | G27: 7Button | H27: SetTime | I27: tou | J27: f | K27: 50 | L27: brN | M27: 1.77 | N27: 7Button | P27: search | Q27: 3295 | S27: tac | T27: =COUNTIFS(searchTimeOverlay,S27,searchTimeAge,"<59") -> 53 | U27: =SUMIFS(searchTimeTime,searchTimeOverlay,S27,searchTimeAge,"<59") -> 139001 | V27: 2.622660377 | Y27: Hypothesized Mean Difference | Z27: 0
B28: 6 | C28: 1445423686122 | D28: 3365 | E28: 830 | F28: 423 | G28: 9Button | H28: SetTime | I28: tou | J28: f | K28: 50 | L28: brN | M28: 1.77 | N28: 9Button | P28: search | Q28: 3365 | S28: tou | T28: =COUNTIFS(searchTimeOverlay,S28,searchTimeAge,"<59") -> 50 | U28: =SUMIFS(searchTimeTime,searchTimeOverlay,S28,searchTimeAge,"<59") -> 166150 | V28: 3.323 | Y28: df | Z28: 154
B29: 6 | C29: 1445423646425 | D29: 4306 | E29: 741 | F29: 294 | G29: 2Button | H29: NotActive | I29: tou | J29: f | K29: 50 | L29: brN | M29: 1.77 | N29: 2Button | P29: search | Q29: 4306 | T29: =SUM(T25:T28) -> 207 | U29: 616992 | V29: 2.980637681 | W29: =ABS(V29-$V$16) -> 0.4774870401 | Y29: t Stat | Z29: 0.7596953885
B30: 6 | C30: 1445423655498 | D30: 551 | E30: 741 | F30: 357 | G30: 5Button | H30: NotActive | I30: tou | J30: f | K30: 50 | L30: brN | M30: 1.77 | N30: 5Button | P30: search | Q30: 4827 | Y30: P(T<=t) one-tail | Z30: 0.2242990316
B31: 11 | C31: 1445441404420 | D31: 1753 | E31: 756 | F31: 323 | G31: 2Button | H31: NotActive | I31: but | J31: f | K31: 30 | L31: brY | M31: 1.77 | N31: 2Button | P31: search | Q31: 1753 | R31: overlay | S31: finger >2 | T31: count | U31: sum | V31: average | Y31: t Critical one-tail | Z31: 1.654808386
B32: 11 | C32: 1445441435565 | D32: 611 | E32: 750 | F32: 378 | G32: 5Button | H32: SetTime | I32: but | J32: f | K32: 30 | L32: brY | M32: 1.77 | N32: 5Button | P32: search | Q32: 1813 | R32: Touchplate | S32: tou | T32: =COUNTIFS(searchTimeOverlay,S32,searchTimeFinger,">2.05") -> 37 | U32: =SUMIFS(searchTimeTime,searchTimeOverlay,S32,searchTimeFinger,">2.05") -> 161664 | V32: =(U32/T32)/1000 -> 4.369297297 | Y32: P(T<=t) two-tail | Z32: 0.4485980632
B33: 11 | C33: 1445441399493 | D33: 1983 | E33: 848 | F33: 477 | G33: StartButton | H33: NotActive | I33: but | J33: f | K33: 30 | L33: brY | M33: 1.77 | N33: StartButton | P33: search | Q33: 1983 | R33: Shaped Bump Dot | S33: but | T33: =COUNTIFS(searchTimeOverlay,S33,searchTimeFinger,">2.05") -> 39 | U33: =SUMIFS(searchTimeTime,searchTimeOverlay,S33,searchTimeFinger,">2.05") -> 129086 | V33: =(U33/T33)/1000 -> 3.309897436 | Y33: t Critical two-tail | Z33: 1.975488024
B34: 11 | C34: 1445441388477 | D34: 80 | E34: 661 | F34: 474 | G34: CancelButton | H34: NotActive | I34: but | J34: f | K34: 30 | L34: brY | M34: 1.77 | N34: CancelButton | P34: search | Q34: 1993 | R34: Foam/Felt | S34: tac | T34: =COUNTIFS(searchTimeOverlay,S34,searchTimeFinger,">2.05") -> 31 | U34: =SUMIFS(searchTimeTime,searchTimeOverlay,S34,searchTimeFinger,">2.05") -> 82039 | V34: =(U34/T34)/1000 -> 2.646419355
B35: 11 | C35: 1445441409758 | D35: 2003 | E35: 837 | F35: 414 | G35: 9Button | H35: NotActive | I35: but | J35: f | K35: 30 | L35: brY | M35: 1.77 | N35: 9Button | P35: search | Q35: 2003 | R35: Bump Dot | S35: dot | T35: =COUNTIFS(searchTimeOverlay,S35,searchTimeFinger,">2.05") -> 30 | U35: =SUMIFS(searchTimeTime,searchTimeOverlay,S35,searchTimeFinger,">2.05") -> 115928 | V35: =(U35/T35)/1000 -> 3.864266667
B36: 11 | C36: 1445441394456 | D36: 2204 | E36: 666 | F36: 415 | G36: 7Button | H36: NotActive | I36: but | J36: f | K36: 30 | L36: brY | M36: 1.77 | N36: 7Button | P36: search | Q36: 2204 | T36: =SUM(T32:T35) -> 137 | U36: =SUM(U32:U35) -> 488717 | V36: =(U36/T36)/1000 -> 3.567277372 | W36: =ABS(V36-$V$16) -> 1.064126731 | X36: tou time vs dot time
B37: 11 | C37: 1445441417489 | D37: 4517 | E37: 656 | F37: 229 | G37: TimerButton | H37: NotActive | I37: but | J37: f | K37: 30 | L37: brY | M37: 1.77 | N37: TimerButton | P37: search | Q37: 4517 | R37: overlay | S37: finger <2 | T37: count | U37: sum | V37: average | Y37: t-Test: Two-Sample Assuming Equal Variances
B38: 9 | C38: 1445433374694 | D38: 2183 | E38: 632 | F38: 483 | G38: CancelButton | H38: SetTime | I38: but | J38: f | K38: 60 | L38: brY | M38: 1.77 | N38: CancelButton | P38: search | Q38: 2183 | R38: Touchplate | S38: tou | T38: =COUNTIFS(searchTimeOverlay,S38,searchTimeFinger,"<2.05") -> 42 | U38: =SUMIFS(searchTimeTime,searchTimeOverlay,S38,searchTimeFinger,"<2.05") -> 127798 | V38: =(U38/T38)/1000 -> 3.042809524 | W38: =((ABS(V38-V32))/V38) -> 0.4359417713
B39: 9 | C39: 1445433368585 | D39: 2544 | E39: 642 | F39: 328 | G39: 1Button | H39: SetTime | I39: but | J39: f | K39: 60 | L39: brY | M39: 1.77 | N39: 1Button | P39: search | Q39: 2544 | R39: Shaped Bump Dot | S39: but | T39: =COUNTIFS(searchTimeOverlay,S39,searchTimeFinger,"<2.05") -> 47 | U39: =SUMIFS(searchTimeTime,searchTimeOverlay,S39,searchTimeFinger,"<2.05") -> 132952 | V39: =(U39/T39)/1000 -> 2.828765957 | W39: =((ABS(V39-V33))/V39) -> 0.1700852901 | Z39: Variable 1 | AA39: Variable 2
B40: 9 | C40: 1445433355877 | D40: 2834 | E40: 642 | F40: 410 | G40: 7Button | H40: NotActive | I40: but | J40: f | K40: 60 | L40: brY | M40: 1.77 | N40: 7Button | P40: search | Q40: 2834 | R40: Foam/Felt | S40: tac | T40: =COUNTIFS(searchTimeOverlay,S40,searchTimeFinger,"<2.05") -> 46 | U40: =SUMIFS(searchTimeTime,searchTimeOverlay,S40,searchTimeFinger,"<2.05") -> 119612 | V40: =(U40/T40)/1000 -> 2.60026087 | W40: =((ABS(V40-V34))/V40) -> 0.01775148248 | Y40: Mean | Z40: 3278.328571 | AA40: 3626.820513
B41: 9 | C41: 1445433362236 | D41: 261 | E41: 715 | F41: 309 | G41: 2Button | H41: SetTime | I41: but | J41: f | K41: 60 | L41: brY | M41: 1.77 | N41: 2Button | P41: search | Q41: 2995 | R41: Bump Dot | S41: dot | T41: =COUNTIFS(searchTimeOverlay,S41,searchTimeFinger,"<2.05") -> 40 | U41: =SUMIFS(searchTimeTime,searchTimeOverlay,S41,searchTimeFinger,"<2.05") -> 113555 | V41: =(U41/T41)/1000 -> 2.838875 | W41: =((ABS(V41-V35))/V41) -> 0.3611964833 | Y41: Variance | Z41: 4319994.34 | AA41: 3799921.058
B42: 9 | C42: 1445433395233 | D42: 3144 | E42: 828 | F42: 426 | G42: 9Button | H42: NotActive | I42: but | J42: f | K42: 60 | L42: brY | M42: 1.77 | N42: 9Button | P42: search | Q42: 3144 | T42: =SUM(T38:T41) -> 175 | U42: 493917 | V42: =(U42/T42)/1000 -> 2.822382857 | W42: =ABS(V42-$V$16) -> 0.3192322161 | Y42: Observations | Z42: 70 | AA42: 78
B43: 9 | C43: 1445433415172 | D43: 3395 | E43: 749 | F43: 371 | G43: 5Button | H43: NotActive | I43: but | J43: f | K43: 60 | L43: brY | M43: 1.77 | N43: 5Button | P43: search | Q43: 3395 | Y43: Pooled Variance | Z43: 4045709.116
B44: 9 | C44: 1445433422773 | D44: 2143 | E44: 632 | F44: 263 | G44: TimerButton | H44: NotActive | I44: but | J44: f | K44: 60 | L44: brY | M44: 1.77 | N44: TimerButton | P44: search | Q44: 3635 | R44: overlay | S44: Braille Y | T44: count | U44: sum | V44: average | Y44: Hypothesized Mean Difference | Z44: 0
B45: 9 | C45: 1445433386340 | D45: 160 | E45: 798 | F45: 460 | G45: StartButton | H45: NotActive | I45: but | J45: f | K45: 60 | L45: brY | M45: 1.77 | N45: StartButton | P45: search | Q45: 8021 | R45: Touchplate | S45: tou | T45: =COUNTIFS(searchTimeOverlay,S45,searchTimeBraille,"brY") -> 44 | U45: =SUMIFS(searchTimeTime,searchTimeOverlay,S45,searchTimeBraille,"brY") -> 147578 | V45: =(U45/T45)/1000 -> 3.354045455 | Y45: df | Z45: 146
B46: 11 | C46: 1445441282985 | D46: 1362 | E46: 769 | F46: 373 | G46: 5Button | H46: SetPower | I46: dot | J46: f | K46: 30 | L46: brY | M46: 1.77 | N46: 5Button | P46: search | Q46: 1362 | R46: Shaped Bump Dot | S46: but | T46: =COUNTIFS(searchTimeOverlay,S46,searchTimeBraille,"brY") -> 47 | U46: =SUMIFS(searchTimeTime,searchTimeOverlay,S46,searchTimeBraille,"brY") -> 134624 | V46: =(U46/T46)/1000 -> 2.864340426 | Y46: t Stat | Z46: -1.052351626
B47: 11 | C47: 1445441266712 | D47: 1482 | E47: 661 | F47: 499 | G47: CancelButton | H47: NotActive | I47: dot | J47: f | K47: 30 | L47: brY | M47: 1.77 | N47: CancelButton | P47: search | Q47: 1482 | R47: Foam/Felt | S47: tac | T47: =COUNTIFS(searchTimeOverlay,S47,searchTimeBraille,"brY") -> 47 | U47: =SUMIFS(searchTimeTime,searchTimeOverlay,S47,searchTimeBraille,"brY") -> 119954 | V47: =(U47/T47)/1000 -> 2.552212766 | Y47: P(T<=t) one-tail | Z47: 0.1471884216
B48: 11 | C48: 1445441294612 | D48: 1692 | E48: 671 | F48: 317 | G48: 1Button | H48: SetPower | I48: dot | J48: f | K48: 30 | L48: brY | M48: 1.77 | N48: 1Button | P48: search | Q48: 1692 | R48: Bump Dot | S48: dot | T48: =COUNTIFS(searchTimeOverlay,S48,searchTimeBraille,"brY") -> 41 | U48: =SUMIFS(searchTimeTime,searchTimeOverlay,S48,searchTimeBraille,"brY") -> 125140 | V48: =(U48/T48)/1000 -> 3.052195122 | Y48: t Critical one-tail | Z48: 1.655357345
B49: 11 | C49: 1445441272310 | D49: 2093 | E49: 848 | F49: 493 | G49: StartButton | H49: NotActive | I49: dot | J49: f | K49: 30 | L49: brY | M49: 1.77 | N49: StartButton | P49: search | Q49: 2093 | T49: =SUM(T45:T48) -> 179 | U49: =SUM(U45:U48) -> 527296 | V49: =(U49/T49)/1000 -> 2.945787709 | W49: =ABS(V49-$V$16) -> 0.4426370685 | Y49: P(T<=t) two-tail | Z49: 0.2943768432
B50: 11 | C50: 1445441289074 | D50: 2383 | E50: 839 | F50: 407 | G50: 9Button | H50: SetPower | I50: dot | J50: f | K50: 30 | L50: brY | M50: 1.77 | N50: 9Button | P50: search | Q50: 2383 | R50: overlay | S50: Braille N/P | T50: count | U50: sum | V50: average | Y50: t Critical two-tail | Z50: 1.976345623
B51: 9 | C51: 1445432896456 | D51: 661 | E51: 656 | F51: 309 | G51: 1Button | H51: NotActive | I51: dot | J51: f | K51: 60 | L51: brY | M51: 1.77 | N51: 1Button | P51: search | Q51: 661 | R51: Touchplate | S51: tou | T51: =COUNTIFS(searchTimeOverlay,S51,searchTimeBraille,"brN") + COUNTIFS(searchTimeOverlay,S51,searchTimeBraille,"brP") -> 35 | U51: =SUMIFS(searchTimeTime,searchTimeOverlay,S51,searchTimeBraille,"brN") + SUMIFS(searchTimeTime,searchTimeOverlay,S51,searchTimeBraille,"brP") -> 141884 | V51: =(U51/T51)/1000 -> 4.053828571 | W51: =(V51-V45)/V45 -> 0.2086385311
B52: 9 | C52: 1445432938026 | D52: 471 | E52: 615 | F52: 483 | G52: CancelButton | H52: SetTime | I52: dot | J52: f | K52: 60 | L52: brY | M52: 1.77 | N52: CancelButton | P52: search | Q52: 2133 | R52: Shaped Bump Dot | S52: but | T52: =COUNTIFS(searchTimeOverlay,S52,searchTimeBraille,"brN") + COUNTIFS(searchTimeOverlay,S52,searchTimeBraille,"brP") -> 39 | U52: =SUMIFS(searchTimeTime,searchTimeOverlay,S52,searchTimeBraille,"brN") + SUMIFS(searchTimeTime,searchTimeOverlay,S52,searchTimeBraille,"brP") -> 127414 | V52: =(U52/T52)/1000 -> 3.267025641 | W52: =(V52-V46)/V46 -> 0.1405856692
B53: 9 | C53: 1445432932097 | D53: 2323 | E53: 819 | F53: 482 | G53: StartButton | H53: SetTime | I53: dot | J53: f | K53: 60 | L53: brY | M53: 1.77 | N53: StartButton | P53: search | Q53: 2323 | R53: Foam/Felt | S53: tac | T53: =COUNTIFS(searchTimeOverlay,S53,searchTimeBraille,"brN") + COUNTIFS(searchTimeOverlay,S53,searchTimeBraille,"brP") -> 30 | U53: =SUMIFS(searchTimeTime,searchTimeOverlay,S53,searchTimeBraille,"brN") + SUMIFS(searchTimeTime,searchTimeOverlay,S53,searchTimeBraille,"brP") -> 81697 | V53: =(U53/T53)/1000 -> 2.723233333 | W53: =(V53-V47)/V47 -> 0.06700874224
B54: 9 | C54: 1445432956813 | D54: 2674 | E54: 739 | F54: 361 | G54: 5Button | H54: NotActive | I54: dot | J54: f | K54: 60 | L54: brY | M54: 1.77 | N54: 5Button | P54: search | Q54: 2674 | R54: Bump Dot | S54: dot | T54: =COUNTIFS(searchTimeOverlay,S54,searchTimeBraille,"brN") + COUNTIFS(searchTimeOverlay,S54,searchTimeBraille,"brP") -> 29 | U54: =SUMIFS(searchTimeTime,searchTimeOverlay,S54,searchTimeBraille,"brN") + SUMIFS(searchTimeTime,searchTimeOverlay,S54,searchTimeBraille,"brP") -> 104343 | V54: =(U54/T54)/1000 -> 3.598034483 | W54: =(V54-V48)/V48 -> 0.1788350151
B55: 9 | C55: 1445432911538 | D55: 3666 | E55: 642 | F55: 408 | G55: 7Button | H55: NotActive | I55: dot | J55: f | K55: 60 | L55: brY | M55: 1.77 | N55: 7Button | P55: search | Q55: 3666 | T55: =SUM(T51:T54) -> 133 | U55: 455338 | V55: =(U55/T55)/1000 -> 3.423593985 | W55: =ABS(V55-$V$16) -> 0.9204433439 | X55: finger size
B56: 9 | C56: 1445432924476 | D56: 3785 | E56: 616 | F56: 228 | G56: TimerButton | H56: NotActive | I56: dot | J56: f | K56: 60 | L56: brY | M56: 1.77 | N56: TimerButton | P56: search | Q56: 3785 | V56: =MAX(V12:V55) -> 4.369297297 | Y56: t-Test: Two-Sample Assuming Equal Variances
B57: 11 | C57: 1445441096006 | D57: 2073 | E57: 666 | F57: 422 | G57: 7Button | H57: NotActive | I57: tac | J57: f | K57: 30 | L57: brY | M57: 1.77 | N57: 7Button | P57: search | Q57: 2073 | V57: =MIN(V12:V55) -> 0
B58: 11 | C58: 1445441060706 | D58: 2244 | E58: 764 | F58: 311 | G58: 2Button | H58: NotActive | I58: tac | J58: f | K58: 30 | L58: brY | M58: 1.77 | N58: 2Button | P58: search | Q58: 2244 | Z58: Variable 1 | AA58: Variable 2
B59: 11 | C59: 1445441102075 | D59: 2453 | E59: 848 | F59: 476 | G59: StartButton | H59: NotActive | I59: tac | J59: f | K59: 30 | L59: brY | M59: 1.77 | N59: StartButton | P59: search | Q59: 2453 | Y59: Mean | Z59: 2822.382857 | AA59: 3567.277372
B60: 11 | C60: 1445441088926 | D60: 621 | E60: 662 | F60: 482 | G60: CancelButton | H60: NotActive | I60: tac | J60: f | K60: 30 | L60: brY | M60: 1.77 | N60: CancelButton | P60: search | Q60: 2594 | W60: small SD | X60: =STDEV(Q2:Q176)/1000 -> 1.408995667 | Y60: Variance | Z60: 1985268.789 | AA60: 4417720.393
B61: 11 | C61: 1445441080915 | D61: 2654 | E61: 769 | F61: 361 | G61: 5Button | H61: NotActive | I61: tac | J61: f | K61: 30 | L61: brY | M61: 1.77 | N61: 5Button | P61: search | Q61: 2654 | W61: larger SD | X61: =STDEV(Q177:Q313)/1000 -> 2.101837385 | Y61: Observations | Z61: 175 | AA61: 137
B62: 11 | C62: 1445441067365 | D62: 3244 | E62: 841 | F62: 410 | G62: 9Button | H62: NotActive | I62: tac | J62: f | K62: 30 | L62: brY | M62: 1.77 | N62: 9Button | P62: search | Q62: 3244 | Y62: Pooled Variance | Z62: 3052408.848
B63: 11 | C63: 1445441074626 | D63: 3465 | E63: 654 | F63: 310 | G63: 1Button | H63: NotActive | I63: tac | J63: f | K63: 30 | L63: brY | M63: 1.77 | N63: 1Button | P63: search | Q63: 3465 | Y63: Hypothesized Mean Difference | Z63: 0
B64: 9 | C64: 1445433184250 | D64: 1993 | E64: 642 | F64: 309 | G64: 1Button | H64: NotActive | I64: tac | J64: f | K64: 60 | L64: brY | M64: 1.77 | N64: 1Button | P64: search | Q64: 1993 | Y64: df | Z64: 310
B65: 9 | C65: 1445433156901 | D65: 1603 | E65: 818 | F65: 463 | G65: StartButton | H65: NotActive | I65: tac | J65: f | K65: 60 | L65: brY | M65: 1.77 | N65: StartButton | P65: search | Q65: 2214 | Y65: t Stat | Z65: -3.73745038
B66: 9 | C66: 1445433191090 | D66: 2394 | E66: 828 | F66: 410 | G66: 9Button | H66: NotActive | I66: tac | J66: f | K66: 60 | L66: brY | M66: 1.77 | N66: 9Button | P66: search | Q66: 2394 | Y66: P(T<=t) one-tail | Z66: 0.0001106478343
B67: 9 | C67: 1445433178271 | D67: 2664 | E67: 616 | F67: 489 | G67: CancelButton | H67: NotActive | I67: tac | J67: f | K67: 60 | L67: brY | M67: 1.77 | N67: CancelButton | P67: search | Q67: 2664 | Y67: t Critical one-tail | Z67: 1.649783823
B68: 9 | C68: 1445433164772 | D68: 2874 | E68: 651 | F68: 415 | G68: 7Button | H68: NotActive | I68: tac | J68: f | K68: 60 | L68: brY | M68: 1.77 | N68: 7Button | P68: search | Q68: 2874 | Y68: P(T<=t) two-tail | Z68: 0.0002212956687
B69: 9 | C69: 1445433171932 | D69: 1913 | E69: 736 | F69: 377 | G69: 5Button | H69: NotActive | I69: tac | J69: f | K69: 60 | L69: brY | M69: 1.77 | N69: 5Button | P69: search | Q69: 3034 | Y69: t Critical two-tail | Z69: 1.967645863
B70: 9 | C70: 1445433210227 | D70: 3405 | E70: 632 | F70: 235 | G70: TimerButton | H70: NotActive | I70: tac | J70: f | K70: 60 | L70: brY | M70: 1.77 | N70: TimerButton | P70: search | Q70: 3405
B71: 9 | C71: 1445433202386 | D71: 7000 | E71: 752 | F71: 302 | G71: 2Button | H71: NotActive | I71: tac | J71: f | K71: 60 | L71: brY | M71: 1.77 | N71: 2Button | P71: search | Q71: 7000
B72: 11 | C72: 1445440898512 | D72: 1021 | E72: 848 | F72: 459 | G72: StartButton | H72: SetPower | I72: tou | J72: f | K72: 30 | L72: brY | M72: 1.77 | N72: StartButton | P72: search | Q72: 2043 | X72: braille
B73: 11 | C73: 1445440844585 | D73: 2614 | E73: 642 | F73: 476 | G73: CancelButton | H73: NotActive | I73: tou | J73: f | K73: 30 | L73: brY | M73: 1.77 | N73: CancelButton | P73: search | Q73: 2614 | Y73: t-Test: Two-Sample Assuming Equal Variances
B74: 11 | C74: 1445440861489 | D74: 2954 | E74: 757 | F74: 306 | G74: 2Button | H74: NotActive | I74: tou | J74: f | K74: 30 | L74: brY | M74: 1.77 | N74: 2Button | P74: search | Q74: 2954
B75: 11 | C75: 1445440852737 | D75: 3355 | E75: 669 | F75: 306 | G75: 1Button | H75: NotActive | I75: tou | J75: f | K75: 30 | L75: brY | M75: 1.77 | N75: 1Button | P75: search | Q75: 3355 | Z75: Variable 1 | AA75: Variable 2
B76: 11 | C76: 1445440892374 | D76: 3586 | E76: 852 | F76: 415 | G76: 9Button | H76: SetPower | I76: tou | J76: f | K76: 30 | L76: brY | M76: 1.77 | N76: 9Button | P76: search | Q76: 3586 | W76: Yes SD | X76: =STDEV(Q135:Q313)/1000 -> 1.985087968 | Y76: Mean | Z76: 3423.593985 | AA76: 2945.787709
B77: 11 | C77: 1445440884893 | D77: 3665 | E77: 671 | F77: 409 | G77: 7Button | H77: SetPower | I77: tou | J77: f | K77: 30 | L77: brY | M77: 1.77 | N77: 7Button | P77: search | Q77: 3665 | W77: No SD | X77: =STDEV(Q2:Q134)/1000 -> 1.431726961 | Y77: Variance | Z77: 4801122.182 | AA77: 1897281.292
B78: 11 | C78: 1445440877162 | D78: 4577 | E78: 768 | F78: 360 | G78: 5Button | H78: SetPower | I78: tou | J78: f | K78: 30 | L78: brY | M78: 1.77 | N78: 5Button | P78: search | Q78: 4577 | Y78: Observations | Z78: 133 | AA78: 179
B79: 9 | C79: 1445433646795 | D79: 2584 | E79: 642 | F79: 407 | G79: 7Button | H79: NotActive | I79: tou | J79: f | K79: 60 | L79: brY | M79: 1.77 | N79: 7Button | P79: search | Q79: 2584 | Y79: Pooled Variance | Z79: 3133755.477
B80: 9 | C80: 1445433708394 | D80: 181 | E80: 640 | F80: 462 | G80: CancelButton | H80: Cooking | I80: tou | J80: f | K80: 60 | L80: brY | M80: 1.77 | N80: CancelButton | P80: search | Q80: 2825 | Y80: Hypothesized Mean Difference | Z80: 0
B81: 9 | C81: 1445433682867 | D81: 2894 | E81: 818 | F81: 478 | G81: StartButton | H81: SetTime | I81: tou | J81: f | K81: 60 | L81: brY | M81: 1.77 | N81: StartButton | P81: search | Q81: 2894 | Y81: df | Z81: 310
B82: 9 | C82: 1445433653545 | D82: 3105 | E82: 739 | F82: 291 | G82: 2Button | H82: NotActive | I82: tou | J82: f | K82: 60 | L82: brY | M82: 1.77 | N82: 2Button | P82: search | Q82: 3105 | Y82: t Stat | Z82: 2.357731443
B83: 9 | C83: 1445433640997 | D83: 3606 | E83: 642 | F83: 289 | G83: 1Button | H83: NotActive | I83: tou | J83: f | K83: 60 | L83: brY | M83: 1.77 | N83: 1Button | P83: search | Q83: 3606 | Y83: P(T<=t) one-tail | Z83: 0.009504004467
B84: 9 | C84: 1445433667625 | D84: 3655 | E84: 616 | F84: 252 | G84: TimerButton | H84: NotActive | I84: tou | J84: f | K84: 60 | L84: brY | M84: 1.77 | N84: TimerButton | P84: search | Q84: 3655 | Y84: t Critical one-tail | Z84: 1.649783823
B85: 9 | C85: 1445433676518 | D85: 411 | E85: 829 | F85: 396 | G85: 9Button | H85: SetTime | I85: tou | J85: f | K85: 60 | L85: brY | M85: 1.77 | N85: 9Button | P85: search | Q85: 5058 | Y85: P(T<=t) two-tail | Z85: 0.01900800893
B86: 9 | C86: 1445433701313 | D86: 3234 | E86: 739 | F86: 350 | G86: 5Button | H86: Cooking | I86: tou | J86: f | K86: 60 | L86: brY | M86: 1.77 | N86: 5Button | P86: search | Q86: 8181 | Y86: t Critical two-tail | Z86: 1.967645863
B87: 4 | C87: 1445466972034 | D87: 2063 | E87: 745 | F87: 325 | G87: 2Button | H87: SetTime | I87: but | J87: f | K87: 60 | L87: brY | M87: 1.79 | N87: 2Button | P87: search | Q87: 2063
B88: 4 | C88: 1445466950973 | D88: 2373 | E88: 675 | F88: 225 | G88: TimerButton | H88: NotActive | I88: but | J88: f | K88: 60 | L88: brY | M88: 1.79 | N88: TimerButton | P88: search | Q88: 2373
B89: 4 | C89: 1445466994997 | D89: 2394 | E89: 638 | F89: 484 | G89: CancelButton | H89: Cooking | I89: but | J89: f | K89: 60 | L89: brY | M89: 1.79 | N89: CancelButton | P89: search | Q89: 2394 | X89: age
B90: 4 | C90: 1445466988788 | D90: 611 | E90: 834 | F90: 428 | G90: 9Button | H90: Cooking | I90: but | J90: f | K90: 60 | L90: brY | M90: 1.79 | N90: 9Button | P90: search | Q90: 3025 | Y90: t-Test: Two-Sample Assuming Equal Variances
B91: 4 | C91: 1445466944564 | D91: 3124 | E91: 648 | F91: 295 | G91: 1Button | H91: NotActive | I91: but | J91: f | K91: 60 | L91: brY | M91: 1.79 | N91: 1Button | P91: search | Q91: 3124
B92: 4 | C92: 1445466957753 | D92: 3175 | E92: 662 | F92: 417 | G92: 7Button | H92: SetTime | I92: but | J92: f | K92: 60 | L92: brY | M92: 1.79 | N92: 7Button | P92: search | Q92: 3175 | Z92: Variable 1 | AA92: Variable 2
B93: 4 | C93: 1445466965514 | D93: 4046 | E93: 744 | F93: 379 | G93: 5Button | H93: SetTime | I93: but | J93: f | K93: 60 | L93: brY | M93: 1.79 | N93: 5Button | P93: search | Q93: 4046 | Y93: Mean | Z93: 2980.637681 | AA93: 3482.304762
B94: 4 | C94: 1445466980896 | D94: 410 | E94: 803 | F94: 476 | G94: StartButton | H94: Cooking | I94: but | J94: f | K94: 60 | L94: brY | M94: 1.79 | N94: StartButton | P94: search | Q94: 5017 | Y94: Variance | Z94: 3018823.116 | AA94: 3360333.349
B95: 4 | C95: 1445466435282 | D95: 1933 | E95: 762 | F95: 372 | G95: 5Button | H95: SetTime | I95: dot | J95: f | K95: 60 | L95: brY | M95: 1.79 | N95: 5Button | P95: search | Q95: 1933 | Y95: Observations | Z95: 207 | AA95: 105
B96: 4 | C96: 1445466429133 | D96: 2404 | E96: 662 | F96: 313 | G96: 1Button | H96: SetTime | I96: dot | J96: f | K96: 60 | L96: brY | M96: 1.79 | N96: 1Button | P96: search | Q96: 2404 | Y96: Pooled Variance | Z96: 3133394.291
B97: 4 | C97: 1445466396196 | D97: 2835 | E97: 648 | F97: 399 | G97: 7Button | H97: NotActive | I97: dot | J97: f | K97: 60 | L97: brY | M97: 1.79 | N97: 7Button | P97: search | Q97: 2835 | Y97: Hypothesized Mean Difference | Z97: 0
B98: 4 | C98: 1445466422503 | D98: 3224 | E98: 671 | F98: 227 | G98: TimerButton | H98: NotActive | I98: dot | J98: f | K98: 60 | L98: brY | M98: 1.79 | N98: TimerButton | P98: search | Q98: 3224 | Y98: df | Z98: 310
B99: 4 | C99: 1445466403566 | D99: 3545 | E99: 761 | F99: 285 | G99: 2Button | H99: NotActive | I99: dot | J99: f | K99: 60 | L99: brY | M99: 1.79 | N99: 2Button | P99: search | Q99: 3545 | Y99: t Stat | Z99: -2.365432748
B100: 4 | C100: 1445466388625 | D100: 3906 | E100: 621 | F100: 487 | G100: CancelButton | H100: NotActive | I100: dot | J100: f | K100: 60 | L100: brY | M100: 1.79 | N100: CancelButton | P100: search | Q100: 3906 | Y100: P(T<=t) one-tail | Z100: 0.009312148039
B101: 4 | C101: 1445466445997 | D101: 7050 | E101: 805 | F101: 490 | G101: StartButton | H101: SetTime | I101: dot | J101: f | K101: 60 | L101: brY | M101: 1.79 | N101: StartButton | P101: search | Q101: 7050 | Y101: t Critical one-tail | Z101: 1.649783823
B102: 4 | C102: 1445466680124 | D102: 2033 | E102: 655 | F102: 471 | G102: CancelButton | H102: SetTime | I102: tac | J102: f | K102: 60 | L102: brY | M102: 1.79 | N102: CancelButton | P102: search | Q102: 2033 | Y102: P(T<=t) two-tail | Z102: 0.01862429608
B103: 4 | C103: 1445466703207 | D103: 2043 | E103: 648 | F103: 416 | G103: 7Button | H103: NotActive | I103: tac | J103: f | K103: 60 | L103: brY | M103: 1.79 | N103: 7Button | P103: search | Q103: 2043 | Y103: t Critical two-tail | Z103: 1.967645863
B104: 4 | C104: 1445466691791 | D104: 2073 | E104: 822 | F104: 476 | G104: StartButton | H104: NotActive | I104: tac | J104: f | K104: 60 | L104: brY | M104: 1.79 | N104: StartButton | P104: search | Q104: 2073
B105: 4 | C105: 1445466697789 | D105: 2393 | E105: 762 | F105: 359 | G105: 5Button | H105: NotActive | I105: tac | J105: f | K105: 60 | L105: brY | M105: 1.79 | N105: 5Button | P105: search | Q105: 2393
B106: 4 | C106: 1445466686062 | D106: 2533 | E106: 648 | F106: 308 | G106: 1Button | H106: NotActive | I106: tac | J106: f | K106: 60 | L106: brY | M106: 1.79 | N106: 1Button | P106: search | Q106: 2533
B107: 4 | C107: 1445466668307 | D107: 2544 | E107: 653 | F107: 249 | G107: TimerButton | H107: NotActive | I107: tac | J107: f | K107: 60 | L107: brY | M107: 1.79 | N107: TimerButton | P107: search | Q107: 2544
B108: 4 | C108: 1445466674546 | D108: 2754 | E108: 648 | F108: 308 | G108: 1Button | H108: SetTime | I108: tac | J108: f | K108: 60 | L108: brY | M108: 1.79 | N108: 2Button | P108: search | Q108: 2754
B109: 4 | C109: 1445466661817 | D109: 3625 | E109: 832 | F109: 416 | G109: 9Button | H109: NotActive | I109: tac | J109: f | K109: 60 | L109: brY | M109: 1.79 | N109: 9Button | P109: search | Q109: 3625
B110: 4 | C110: 1445465986286 | D110: 661 | E110: 648 | F110: 412 | G110: 7Button | H110: NotActive | I110: tou | J110: f | K110: 60 | L110: brY | M110: 1.79 | N110: 7Button | P110: search | Q110: 3184
B111: 4 | C111: 1445465963023 | D111: 3686 | E111: 642 | F111: 230 | G111: TimerButton | H111: NotActive | I111: tou | J111: f | K111: 60 | L111: brY | M111: 1.79 | N111: TimerButton | P111: search | Q111: 3686
B112: 4 | C112: 1445465977694 | D112: 3716 | E112: 815 | F112: 428 | G112: 9Button | H112: SetTime | I112: tou | J112: f | K112: 60 | L112: brY | M112: 1.79 | N112: 9Button | P112: search | Q112: 3716
B113: 4 | C113: 1445466003952 | D113: 3836 | E113: 822 | F113: 478 | G113: StartButton | H113: NotActive | I113: tou | J113: f | K113: 60 | L113: brY | M113: 1.79 | N113: StartButton | P113: search | Q113: 3836
B114: 4 | C114: 1445466013625 | D114: 4166 | E114: 639 | F114: 484 | G114: CancelButton | H114: NotActive | I114: tou | J114: f | K114: 60 | L114: brY | M114: 1.79 | N114: CancelButton | P114: search | Q114: 4166
B115: 7 | C115: 1445426979608 | D115: 871 | E115: 657 | F115: 297 | G115: 1Button | H115: Cooking | I115: but | J115: f | K115: 20 | L115: brN | M115: 1.85 | N115: 1Button | P115: search | Q115: 871
B116: 7 | C116: 1445426962804 | D116: 921 | E116: 825 | F116: 416 | G116: 9Button | H116: NotActive | I116: but | J116: f | K116: 20 | L116: brN | M116: 1.85 | N116: 9Button | P116: search | Q116: 921
B117: 7 | C117: 1445426983704 | D117: 1042 | E117: 632 | F117: 476 | G117: CancelButton | H117: NotActive | I117: but | J117: f | K117: 20 | L117: brN | M117: 1.85 | N117: CancelButton | P117: search | Q117: 1042
B118: 7 | C118: 1445426971396 | D118: 1121 | E118: 661 | F118: 411 | G118: 7Button | H118: SetTime | I118: but | J118: f | K118: 20 | L118: brN | M118: 1.85 | N118: 7Button | P118: search | Q118: 1121
B119: 7 | C119: 1445426967010 | D119: 1142 | E119: 666 | F119: 225 | G119: TimerButton | H119: NotActive | I119: but | J119: f | K119: 20 | L119: brN | M119: 1.85 | N119: TimerButton | P119: search | Q119: 1142
B120: 7 | C120: 1445426975622 | D120: 1161 | E120: 819 | F120: 463 | G120: StartButton | H120: SetTime | I120: but | J120: f | K120: 20 | L120: brN | M120: 1.85 | N120: StartButton | P120: search | Q120: 1161
B121: 7 | C121: 1445426988901 | D121: 1281 | E121: 735 | F121: 384 | G121: 5Button | H121: NotActive | I121: but | J121: f | K121: 20 | L121: brN | M121: 1.85 | N121: 5Button | P121: search | Q121: 1281
B122: 7 | C122: 1445426958728 | D122: 1322 | E122: 757 | F122: 299 | G122: 2Button | H122: NotActive | I122: but | J122: f | K122: 20 | L122: brN | M122: 1.85 | N122: 2Button | P122: search | Q122: 1322
B123: 7 | C123: 1445426799359 | D123: 1022 | E123: 615 | F123: 228 | G123: TimerButton | H123: NotActive | I123: dot | J123: f | K123: 20 | L123: brN | M123: 1.85 | N123: TimerButton | P123: search | Q123: 1022
B124: 7 | C124: 1445426782104 | D124: 1202 | E124: 615 | F124: 476 | G124: CancelButton | H124: SetTime | I124: dot | J124: f | K124: 20 | L124: brN | M124: 1.85 | N124: CancelButton | P124: search | Q124: 1202
B125: 7 | C125: 1445426773081 | D125: 1262 | E125: 642 | F125: 407 | G125: 7Button | H125: NotActive | I125: dot | J125: f | K125: 20 | L125: brN | M125: 1.85 | N125: 7Button | P125: search | Q125: 1262
B126: 7 | C126: 1445426777658 | D126: 1262 | E126: 615 | F126: 228 | G126: TimerButton | H126: NotActive | I126: dot | J126: f | K126: 20 | L126: brN | M126: 1.85 | N126: 1Button | P126: search | Q126: 1262
B127: 7 | C127: 1445426787111 | D127: 1472 | E127: 740 | F127: 354 | G127: 5Button | H127: NotActive | I127: dot | J127: f | K127: 20 | L127: brN | M127: 1.85 | N127: 5Button | P127: search | Q127: 1472
B128: 7 | C128: 1445426794552 | D128: 4356 | E128: 827 | F128: 410 | G128: 9Button | H128: NotActive | I128: dot | J128: f | K128: 20 | L128: brN | M128: 1.85 | N128: 9Button | P128: search | Q128: 4356
B129: 7 | C129: 1445426768544 | D129: 4496 | E129: 836 | F129: 454 | G129: StartButton | H129: NotActive | I129: dot | J129: f | K129: 20 | L129: brN | M129: 1.85 | N129: StartButton | P129: search | Q129: 4496
B130: 7 | C130: 1445426808222 | D130: 5468 | E130: 739 | F130: 303 | G130: 2Button | H130: SetTime | I130: dot | J130: f | K130: 20 | L130: brN | M130: 1.85 | N130: 2Button | P130: search | Q130: 5468
B131: 7 | C131: 1445426331586 | D131: 1151 | E131: 755 | F131: 302 | G131: 2Button | H131: NotActive | I131: tac | J131: f | K131: 20 | L131: brN | M131: 1.85 | N131: 2Button | P131: search | Q131: 1151
B132: 7 | C132: 1445426365705 | D132: 1161 | E132: 828 | F132: 410 | G132: 9Button | H132: SetTime | I132: tac | J132: f | K132: 20 | L132: brN | M132: 1.85 | N132: 9Button | P132: search | Q132: 1161
B133: 7 | C133: 1445426371033 | D133: 1192 | E133: 799 | F133: 462 | G133: StartButton | H133: SetTime | I133: tac | J133: f | K133: 20 | L133: brN | M133: 1.85 | N133: StartButton | P133: search | Q133: 1192
B134: 7 | C134: 1445426355210 | D134: 1933 | E134: 616 | F134: 486 | G134: CancelButton | H134: SetTime | I134: tac | J134: f | K134: 20 | L134: brN | M134: 1.85 | N134: CancelButton | P134: search | Q134: 1933
B135: 7 | C135: 1445426349993 | D135: 2163 | E135: 655 | F135: 414 | G135: 7Button | H135: SetTime | I135: tac | J135: f | K135: 20 | L135: brN | M135: 1.85 | N135: 7Button | P135: search | Q135: 2163
B136: 7 | C136: 1445426344415 | D136: 2184 | E136: 632 | F136: 226 | G136: TimerButton | H136: NotActive | I136: tac | J136: f | K136: 20 | L136: brN | M136: 1.85 | N136: TimerButton | P136: search | Q136: 2184
B137: 7 | C137: 1445426338436 | D137: 3445 | E137: 759 | F137: 358 | G137: 5Button | H137: NotActive | I137: tac | J137: f | K137: 20 | L137: brN | M137: 1.85 | N137: 5Button | P137: search | Q137: 3445
B138: 7 | C138: 1445426535209 | D138: 981 | E138: 642 | F138: 416 | G138: 7Button | H138: NotActive | I138: tou | J138: f | K138: 20 | L138: brN | M138: 1.85 | N138: 7Button | P138: search | Q138: 981
B139: 7 | C139: 1445426575557 | D139: 1031 | E139: 642 | F139: 305 | G139: 1Button | H139: NotActive | I139: tou | J139: f | K139: 20 | L139: brN | M139: 1.85 | N139: 1Button | P139: search | Q139: 1031
B140: 7 | C140: 1445426539435 | D140: 1092 | E140: 649 | F140: 225 | G140: TimerButton | H140: NotActive | I140: tou | J140: f | K140: 20 | L140: brN | M140: 1.85 | N140: TimerButton | P140: search | Q140: 1092
B141: 7 | C141: 1445426529891 | D141: 1181 | E141: 739 | F141: 358 | G141: 5Button | H141: NotActive | I141: tou | J141: f | K141: 20 | L141: brN | M141: 1.85 | N141: 5Button | P141: search | Q141: 1181
B142: 7 | C142: 1445426570630 | D142: 1242 | E142: 633 | F142: 458 | G142: CancelButton | H142: Cooking | I142: tou | J142: f | K142: 20 | L142: brN | M142: 1.85 | N142: CancelButton | P142: search | Q142: 1242
B143: 7 | C143: 1445426561126 | D143: 1572 | E143: 827 | F143: 410 | G143: 9Button | H143: Cooking | I143: tou | J143: f | K143: 20 | L143: brN | M143: 1.85 | N143: 9Button | P143: search | Q143: 1572
B144: 7 | C144: 1445426554286 | D144: 2243 | E144: 799 | F144: 463 | G144: StartButton | H144: SetTime | I144: tou | J144: f | K144: 20 | L144: brN | M144: 1.85 | N144: StartButton | P144: search | Q144: 2243
B145: 7 | C145: 1445426545193 | D145: 2824 | E145: 739 | F145: 292 | G145: 2Button | H145: SetTime | I145: tou | J145: f | K145: 20 | L145: brN | M145: 1.85 | N145: 2Button | P145: search | Q145: 2824
B146: 3 | C146: 1445375714807 | D146: 2173 | E146: 845 | F146: 403 | G146: 9Button | H146: Cooking | I146: but | J146: f | K146: 50 | L146: brY | M146: 2.04 | N146: 9Button | P146: search | Q146: 2173
B147: 3 | C147: 1445375694478 | D147: 2203 | E147: 735 | F147: 370 | G147: 5Button | H147: SetTime | I147: but | J147: f | K147: 50 | L147: brY | M147: 2.04 | N147: 5Button | P147: search | Q147: 2203
B148: 3 | C148: 1445375727025 | D148: 2243 | E148: 647 | F148: 306 | G148: 1Button | H148: NotActive | I148: but | J148: f | K148: 50 | L148: brY | M148: 2.04 | N148: 1Button | P148: search | Q148: 2243
B149: 3 | C149: 1445375720976 | D149: 2453 | E149: 633 | F149: 477 | G149: CancelButton | H149: Cooking | I149: but | J149: f | K149: 50 | L149: brY | M149: 2.04 | N149: CancelButton | P149: search | Q149: 2453
B150: 3 | C150: 1445375701348 | D150: 2504 | E150: 659 | F150: 403 | G150: 7Button | H150: SetTime | I150: but | J150: f | K150: 50 | L150: brY | M150: 2.04 | N150: 7Button | P150: search | Q150: 2504
B151: 3 | C151: 1445375671715 | D151: 2964 | E151: 646 | F151: 223 | G151: TimerButton | H151: NotActive | I151: but | J151: f | K151: 50 | L151: brY | M151: 2.04 | N151: TimerButton | P151: search | Q151: 2964
B152: 3 | C152: 1445375708468 | D152: 3014 | E152: 820 | F152: 454 | G152: StartButton | H152: SetTime | I152: but | J152: f | K152: 50 | L152: brY | M152: 2.04 | N152: StartButton | P152: search | Q152: 3014
B153: 3 | C153: 1445375685615 | D153: 9373 | E153: 754 | F153: 285 | G153: 2Button | H153: SetTime | I153: but | J153: f | K153: 50 | L153: brY | M153: 2.04 | N153: 2Button | P153: search | Q153: 9373
B154: 3 | C154: 1445376449974 | D154: 2093 | E154: 845 | F154: 412 | G154: 9Button | H154: NotActive | I154: dot | J154: f | K154: 50 | L154: brY | M154: 2.04 | N154: 9Button | P154: search | Q154: 2093
B155: 3 | C155: 1445376431358 | D155: 2724 | E155: 835 | F155: 456 | G155: StartButton | H155: SetTime | I155: dot | J155: f | K155: 50 | L155: brY | M155: 2.04 | N155: StartButton | P155: search | Q155: 2724
B156: 3 | C156: 1445376424968 | D156: 2984 | E156: 655 | F156: 315 | G156: 1Button | H156: SetTime | I156: dot | J156: f | K156: 50 | L156: brY | M156: 2.04 | N156: 1Button | P156: search | Q156: 2984
B157: 3 | C157: 1445376418169 | D157: 3145 | E157: 614 | F157: 240 | G157: TimerButton | H157: NotActive | I157: dot | J157: f | K157: 50 | L157: brY | M157: 2.04 | N157: TimerButton | P157: search | Q157: 3145
B158: 3 | C158: 1445376409957 | D158: 3706 | E158: 754 | F158: 288 | G158: 2Button | H158: NotActive | I158: dot | J158: f | K158: 50 | L158: brY | M158: 2.04 | N158: 2Button | P158: search | Q158: 3706
B159: 3 | C159: 1445376400944 | D159: 3836 | E159: 633 | F159: 485 | G159: CancelButton | H159: NotActive | I159: dot | J159: f | K159: 50 | L159: brY | M159: 2.04 | N159: CancelButton | P159: search | Q159: 3836
B160: 3 | C160: 1445376442524 | D160: 4877 | E160: 737 | F160: 361 | G160: 5Button | H160: NotActive | I160: dot | J160: f | K160: 50 | L160: brY | M160: 2.04 | N160: 5Button | P160: search | Q160: 4877
B161: 3 | C161: 1445376144265 | D161: 1673 | E161: 828 | F161: 418 | G161: 9Button | H161: NotActive | I161: tac | J161: f | K161: 50 | L161: brY | M161: 2.04 | N161: 9Button | P161: search | Q161: 1673
B162: 3 | C162: 1445376156562 | D162: 1782 | E162: 835 | F162: 485 | G162: StartButton | H162: NotActive | I162: tac | J162: f | K162: 50 | L162: brY | M162: 2.04 | N162: StartButton | P162: search | Q162: 1782
B163: 3 | C163: 1445376150864 | D163: 2243 | E163: 640 | F163: 314 | G163: 1Button | H163: NotActive | I163: tac | J163: f | K163: 50 | L163: brY | M163: 2.04 | N163: 1Button | P163: search | Q163: 2243
B164: 3 | C164: 1445376131817 | D164: 2314 | E164: 738 | F164: 312 | G164: 2Button | H164: NotActive | I164: tac | J164: f | K164: 50 | L164: brY | M164: 2.04 | N164: 2Button | P164: search | Q164: 2314
B165: 3 | C165: 1445376173477 | D165: 2344 | E165: 755 | F165: 364 | G165: 5Button | H165: SetTime | I165: tac | J165: f | K165: 50 | L165: brY | M165: 2.04 | N165: 5Button | P165: search | Q165: 2344
B166: 3 | C166: 1445376138396 | D166: 2654 | E166: 652 | F166: 425 | G166: 7Button | H166: NotActive | I166: tac | J166: f | K166: 50 | L166: brY | M166: 2.04 | N166: 7Button | P166: search | Q166: 2654
B167: 3 | C167: 1445376125638 | D167: 2774 | E167: 634 | F167: 473 | G167: CancelButton | H167: NotActive | I167: tac | J167: f | K167: 50 | L167: brY | M167: 2.04 | N167: CancelButton | P167: search | Q167: 2774
B168: 3 | C168: 1445376164243 | D168: 3334 | E168: 645 | F168: 256 | G168: TimerButton | H168: NotActive | I168: tac | J168: f | K168: 50 | L168: brY | M168: 2.04 | N168: TimerButton | P168: search | Q168: 3334
B169: 3 | C169: 1445375976924 | D169: 2073 | E169: 631 | F169: 462 | G169: CancelButton | H169: SetTime | I169: tou | J169: f | K169: 50 | L169: brY | M169: 2.04 | N169: CancelButton | P169: search | Q169: 2073
B170: 3 | C170: 1445375990293 | D170: 2233 | E170: 737 | F170: 357 | G170: 5Button | H170: NotActive | I170: tou | J170: f | K170: 50 | L170: brY | M170: 2.04 | N170: 5Button | P170: search | Q170: 2233
B171: 3 | C171: 1445375970775 | D171: 2293 | E171: 631 | F171: 232 | G171: TimerButton | H171: NotActive | I171: tou | J171: f | K171: 50 | L171: brY | M171: 2.04 | N171: TimerButton | P171: search | Q171: 2293
B172: 3 | C172: 1445375957316 | D172: 2514 | E172: 830 | F172: 463 | G172: StartButton | H172: NotActive | I172: tou | J172: f | K172: 50 | L172: brY | M172: 2.04 | N172: StartButton | P172: search | Q172: 2514
B173: 3 | C173: 1445375943516 | D173: 2684 | E173: 738 | F173: 299 | G173: 2Button | H173: NotActive | I173: tou | J173: f | K173: 50 | L173: brY | M173: 2.04 | N173: 2Button | P173: search | Q173: 2684
B174: 3 | C174: 1445375984175 | D174: 3035 | E174: 640 | F174: 306 | G174: 1Button | H174: NotActive | I174: tou | J174: f | K174: 50 | L174: brY | M174: 2.04 | N174: 1Button | P174: search | Q174: 3035
B175: 3 | C175: 1445375964296 | D175: 3325 | E175: 649 | F175: 412 | G175: 7Button | H175: NotActive | I175: tou | J175: f | K175: 50 | L175: brY | M175: 2.04 | N175: 7Button | P175: search | Q175: 3325
B176: 3 | C176: 1445375951067 | D176: 3405 | E176: 844 | F176: 409 | G176: 9Button | H176: NotActive | I176: tou | J176: f | K176: 50 | L176: brY | M176: 2.04 | N176: 9Button | P176: search | Q176: 3405
B177: 5 | C177: 1445368549574 | D177: 1662 | E177: 732 | F177: 384 | G177: 5Button | H177: NotActive | I177: but | J177: f | K177: 60 | L177: brY | M177: 2.06 | N177: 5Button | P177: search | Q177: 1662
B178: 5 | C178: 1445368539650 | D178: 90 | E178: 634 | F178: 490 | G178: CancelButton | H178: SetPower | I178: but | J178: f | K178: 60 | L178: brY | M178: 2.06 | N178: CancelButton | P178: search | Q178: 1843
B179: 5 | C179: 1445368521043 | D179: 1873 | E179: 657 | F179: 420 | G179: 7Button | H179: SetPower | I179: but | J179: f | K179: 60 | L179: brY | M179: 2.06 | N179: 7Button | P179: search | Q179: 1873
B180: 5 | C180: 1445368544857 | D180: 2193 | E180: 747 | F180: 315 | G180: 2Button | H180: NotActive | I180: but | J180: f | K180: 60 | L180: brY | M180: 2.06 | N180: 2Button | P180: search | Q180: 2193
B181: 5 | C181: 1445368516276 | D181: 2243 | E181: 836 | F181: 486 | G181: StartButton | H181: SetPower | I181: but | J181: f | K181: 60 | L181: brY | M181: 2.06 | N181: StartButton | P181: search | Q181: 2243
B182: 5 | C182: 1445368534002 | D182: 331 | E182: 828 | F182: 428 | G182: 9Button | H182: SetPower | I182: but | J182: f | K182: 60 | L182: brY | M182: 2.06 | N182: 9Button | P182: search | Q182: 2824
B183: 5 | C183: 1445368510268 | D183: 611 | E183: 645 | F183: 329 | G183: 1Button | H183: SetPower | I183: but | J183: f | K183: 60 | L183: brY | M183: 2.06 | N183: 1Button | P183: search | Q183: 2825
B184: 5 | C184: 1445368528063 | D184: 2133 | E184: 766 | F184: 253 | G184: PowerButton | H184: SetPower | I184: but | J184: f | K184: 60 | L184: brY | M184: 2.06 | N184: TimerButton | P184: search | Q184: 3855
B185: 5 | C185: 1445368305012 | D185: 550 | E185: 759 | F185: 384 | G185: 5Button | H185: NotActive | I185: dot | J185: f | K185: 60 | L185: brY | M185: 2.06 | N185: 5Button | P185: search | Q185: 1372
B186: 5 | C186: 1445368315838 | D186: 140 | E186: 659 | F186: 312 | G186: 1Button | H186: SetTime | I186: dot | J186: f | K186: 60 | L186: brY | M186: 2.06 | N186: 1Button | P186: search | Q186: 1482
B187: 5 | C187: 1445368340924 | D187: 150 | E187: 627 | F187: 423 | G187: 7Button | H187: NotActive | I187: dot | J187: f | K187: 60 | L187: brY | M187: 2.06 | N187: 7Button | P187: search | Q187: 1963
B188: 5 | C188: 1445368311081 | D188: 2904 | E188: 617 | F188: 237 | G188: TimerButton | H188: NotActive | I188: dot | J188: f | K188: 60 | L188: brY | M188: 2.06 | N188: TimerButton | P188: search | Q188: 2904
B189: 5 | C189: 1445368322257 | D189: 561 | E189: 810 | F189: 433 | G189: 9Button | H189: SetTime | I189: dot | J189: f | K189: 60 | L189: brY | M189: 2.06 | N189: 9Button | P189: search | Q189: 3305
B190: 5 | C190: 1445368288399 | D190: 3696 | E190: 617 | F190: 468 | G190: CancelButton | H190: NotActive | I190: dot | J190: f | K190: 60 | L190: brY | M190: 2.06 | N190: CancelButton | P190: search | Q190: 3696
B191: 5 | C191: 1445368300075 | D191: 40 | E191: 757 | F191: 312 | G191: 2Button | H191: NotActive | I191: dot | J191: f | K191: 60 | L191: brY | M191: 2.06 | N191: 2Button | P191: search | Q191: 5878
B192: 5 | C192: 1445368334945 | D192: 9223 | E192: 818 | F192: 461 | G192: StartButton | H192: SetTime | I192: dot | J192: f | K192: 60 | L192: brY | M192: 2.06 | N192: StartButton | P192: search | Q192: 9223
B193: 5 | C193: 1445368690447 | D193: 301 | E193: 658 | F193: 423 | G193: 7Button | H193: SetTime | I193: tac | J193: f | K193: 60 | L193: brY | M193: 2.06 | N193: 7Button | P193: search | Q193: 1543
B194: 5 | C194: 1445368695564 | D194: 1562 | E194: 634 | F194: 490 | G194: CancelButton | H194: SetTime | I194: tac | J194: f | K194: 60 | L194: brY | M194: 2.06 | N194: CancelButton | P194: search | Q194: 1562
B195: 5 | C195: 1445368685820 | D195: 1622 | E195: 655 | F195: 312 | G195: 1Button | H195: SetTime | I195: tac | J195: f | K195: 60 | L195: brY | M195: 2.06 | N195: 1Button | P195: search | Q195: 1622
B196: 5 | C196: 1445368663788 | D196: 1912 | E196: 856 | F196: 478 | G196: StartButton | H196: SetPower | I196: tac | J196: f | K196: 60 | L196: brY | M196: 2.06 | N196: StartButton | P196: search | Q196: 1912
B197: 5 | C197: 1445368674874 | D197: 350 | E197: 634 | F197: 237 | G197: TimerButton | H197: SetTime | I197: tac | J197: f | K197: 60 | L197: brY | M197: 2.06 | N197: TimerButton | P197: search | Q197: 1933
B198: 5 | C198: 1445368669356 | D198: 2714 | E198: 739 | F198: 377 | G198: 5Button | H198: SetPower | I198: tac | J198: f | K198: 60 | L198: brY | M198: 2.06 | N198: 5Button | P198: search | Q198: 2714
B199: 5 | C199: 1445368680703 | D199: 171 | E199: 830 | F199: 421 | G199: 9Button | H199: SetTime | I199: tac | J199: f | K199: 60 | L199: brY | M199: 2.06 | N199: 9Button | P199: search | Q199: 2794
B200: 5 | C200: 1445368658901 | D200: 330 | E200: 741 | F200: 309 | G200: 2Button | H200: SetPower | I200: tac | J200: f | K200: 60 | L200: brY | M200: 2.06 | N200: 2Button | P200: search | Q200: 2994
... 113 more rows

Sheet Sheet3
B1: id | C1: time | D1: timegap | E1: x | F1: y | G1: buttonPressed | H1: state | I1: overlay | J1: mf | K1: age | L1: braille | M1: finger | N1: buttonExpected | O1: error | P1: mode | Q1: time | R1: altTime | S1: q1 | T1: q2 | U1: q3 | V1: press
A2: micro: | B2: 1 | C2: 1445363124283 | D2: 2464 | E2: 654 | F2: 231 | G2: TimerButton | H2: NotActive | I2: tac | J2: f | K2: 60 | L2: brN | M2: 2.14 | N2: TimerButton | P2: coffee | S2: 4 | T2: 4 | U2: 2
A3: micro: | B3: 1 | C3: 1445363126156 | D3: 862 | E3: 647 | F3: 314 | G3: 1Button | H3: SetTime | I3: tac | J3: f | K3: 60 | L3: brN | M3: 2.14 | N3: 1Button | P3: coffee | V3: =C3-C2 -> 1873 | X3: overlay | Y3: name | Z3: count | AA3: sum | AB3: sum Q2 | AC3: avg Q2 | AD3: sum Q3 | AE3: avg Q3
A4: micro: | B4: 1 | C4: 1445363127938 | D4: 100 | E4: 865 | F4: 314 | G4: 3Button | H4: SetTime | I4: tac | J4: f | K4: 60 | L4: brN | M4: 2.14 | N4: 3Button | P4: coffee | V4: =C4-C3 -> 1782 | X4: Touchplate | Y4: tou | Z4: =SUMIFS(likeQ1,likeOverlay,X4) -> 0 | AA4: =Z4/Y4 ->  | AB4: =SUMIFS(likeQ2,likeOverlay,X4) -> 0 | AC4: =AB4/Y4 ->  | AD4: =SUMIFS(likeQ3,likeOverlay,X4) -> 0 | AE4: =AD4/Y4 -> 
A5: micro: | B5: 1 | C5: 1445363129520 | D5: 230 | E5: 759 | F5: 474 | G5: 0Button | H5: SetTime | I5: tac | J5: f | K5: 60 | L5: brN | M5: 2.14 | N5: 0Button | P5: coffee | V5: 1582 | X5: Shaped Bump Dots | Y5: but | Z5: =SUMIFS(likeQ1,likeOverlay,X5) -> 0 | AA5: =Z5/Y5 ->  | AB5: =SUMIFS(likeQ2,likeOverlay,X5) -> 0 | AC5: =AB5/Y5 ->  | AD5: =SUMIFS(likeQ3,likeOverlay,X5) -> 0 | AE5: =AD5/Y5 -> 
A6: micro: | B6: 1 | C6: 1445363131003 | D6: 471 | E6: 769 | F6: 254 | G6: PowerButton | H6: SetTime | I6: tac | J6: f | K6: 60 | L6: brN | M6: 2.14 | N6: PowerButton | P6: coffee | V6: 1483 | X6: Foam/Felt | Y6: tac | Z6: =SUMIFS(likeQ1,likeOverlay,X6) -> 0 | AB6: =SUMIFS(likeQ2,likeOverlay,X6) -> 0 | AD6: =SUMIFS(likeQ3,likeOverlay,X6) -> 0
A7: micro: | B7: 1 | C7: 1445363132525 | D7: 140 | E7: 681 | F7: 418 | G7: 7Button | H7: SetPower | I7: tac | J7: f | K7: 60 | L7: brN | M7: 2.14 | N7: 7Button | P7: coffee | V7: 1522 | X7: Bump Dots | Y7: dot | Z7: =SUMIFS(likeQ1,likeOverlay,X7) -> 0 | AB7: =SUMIFS(likeQ2,likeOverlay,X7) -> 0 | AD7: =SUMIFS(likeQ3,likeOverlay,X7) -> 0
A8: micro: | B8: 1 | C8: 1445363134367 | D8: 831 | E8: 835 | F8: 494 | G8: StartButton | H8: SetPower | I8: tac | J8: f | K8: 60 | L8: brN | M8: 2.14 | N8: StartButton | P8: coffee | V8: 1842
A9: micro: | B9: 1 | C9: 1445363136310 | D9: 931 | E9: 652 | F9: 484 | G9: CancelButton | H9: Cooking | I9: tac | J9: f | K9: 60 | L9: brN | M9: 2.14 | N9: CancelButton | P9: coffee | Q9: 12027 | R9: 12027 | V9: 1943
A10: micro: | B10: 1 | C10: 1445365104570 | D10: 15782 | E10: 637 | F10: 228 | G10: TimerButton | H10: NotActive | I10: tou | J10: f | K10: 60 | L10: brN | M10: 2.14 | N10: TimerButton | P10: coffee | S10: 1 | T10: 1 | U10: 1 | V10: 1968260
A11: micro: | B11: 1 | C11: 1445365107414 | D11: 1832 | E11: 649 | F11: 317 | G11: 1Button | H11: SetTime | I11: tou | J11: f | K11: 60 | L11: brN | M11: 2.14 | N11: 1Button | P11: coffee | V11: 2844
A12: micro: | B12: 1 | C12: 1445365111701 | D12: 541 | E12: 844 | F12: 314 | G12: 3Button | H12: SetTime | I12: tou | J12: f | K12: 60 | L12: brN | M12: 2.14 | N12: 3Button | P12: coffee | V12: 4287
A13: micro: | B13: 1 | C13: 1445365115847 | D13: 922 | E13: 753 | F13: 486 | G13: 0Button | H13: SetTime | I13: tou | J13: f | K13: 60 | L13: brN | M13: 2.14 | N13: 0Button | P13: coffee | V13: 4146
A14: micro: | B14: 1 | C14: 1445365120593 | D14: 3735 | E14: 749 | F14: 254 | G14: PowerButton | H14: SetTime | I14: tou | J14: f | K14: 60 | L14: brN | M14: 2.14 | N14: PowerButton | P14: coffee | V14: 4746
A15: micro: | B15: 1 | C15: 1445365137388 | D15: 4367 | E15: 660 | F15: 423 | G15: 7Button | H15: SetPower | I15: tou | J15: f | K15: 60 | L15: brN | M15: 2.14 | N15: 7Button | P15: coffee | V15: 16795
A16: micro: | B16: 1 | C16: 1445365142435 | D16: 2464 | E16: 839 | F16: 477 | G16: StartButton | H16: SetPower | I16: tou | J16: f | K16: 60 | L16: brN | M16: 2.14 | N16: StartButton | P16: coffee | V16: 5047
A17: micro: | B17: 1 | C17: 1445365149825 | D17: 1562 | E17: 620 | F17: 466 | G17: CancelButton | H17: Cooking | I17: tou | J17: f | K17: 60 | L17: brN | M17: 2.14 | N17: CancelButton | P17: coffee | Q17: 45255 | R17: 39866 | V17: 7390
A18: micro: | B18: 1 | C18: 1445365523212 | D18: 1502 | E18: 637 | F18: 216 | G18: TimerButton | H18: SetTime | I18: dot | J18: f | K18: 60 | L18: brN | M18: 2.14 | N18: TimerButton | P18: coffee | S18: 3 | T18: 2 | U18: 2 | V18: 373387
A19: micro: | B19: 1 | C19: 1445365526157 | D19: 1933 | E19: 658 | F19: 330 | G19: 1Button | H19: SetTime | I19: dot | J19: f | K19: 60 | L19: brN | M19: 2.14 | N19: 1Button | P19: coffee | V19: 2945
A20: micro: | B20: 1 | C20: 1445365531544 | D20: 2063 | E20: 778 | F20: 314 | G20: 2Button | H20: SetTime | I20: dot | J20: f | K20: 60 | L20: brN | M20: 2.14 | N20: 3Button | O20: x | P20: coffee | V20: 5387
A21: micro: | B21: 1 | C21: 1445365535821 | D21: 3265 | E21: 743 | F21: 496 | G21: 0Button | H21: SetTime | I21: dot | J21: f | K21: 60 | L21: brN | M21: 2.14 | N21: 0Button | P21: coffee | V21: 4277
A22: micro: | B22: 1 | C22: 1445365541829 | D22: 1873 | E22: 753 | F22: 218 | G22: PowerButton | H22: SetTime | I22: dot | J22: f | K22: 60 | L22: brN | M22: 2.14 | N22: PowerButton | P22: coffee | V22: 6008
A23: micro: | B23: 1 | C23: 1445365546606 | D23: 621 | E23: 682 | F23: 418 | G23: 7Button | H23: SetPower | I23: dot | J23: f | K23: 60 | L23: brN | M23: 2.14 | N23: 7Button | P23: coffee | V23: 4777
A24: micro: | B24: 1 | C24: 1445365555148 | D24: 7521 | E24: 818 | F24: 458 | G24: StartButton | H24: SetPower | I24: dot | J24: f | K24: 60 | L24: brN | M24: 2.14 | N24: StartButton | P24: coffee | V24: 8542
A25: micro: | B25: 1 | C25: 1445365561167 | D25: 1262 | E25: 636 | F25: 484 | G25: CancelButton | H25: Cooking | I25: dot | J25: f | K25: 60 | L25: brN | M25: 2.14 | N25: CancelButton | P25: coffee | Q25: 37955 | R25: 34640 | V25: 6019
A26: micro: | B26: 1 | C26: 1445365802824 | D26: 1211 | E26: 620 | F26: 236 | G26: TimerButton | H26: NotActive | I26: but | J26: f | K26: 60 | L26: brN | M26: 2.14 | N26: TimerButton | P26: coffee | S26: 4 | T26: 3 | U26: 2 | V26: 241657
A27: micro: | B27: 1 | C27: 1445365805588 | D27: 1201 | E27: 647 | F27: 301 | G27: 1Button | H27: SetTime | I27: but | J27: f | K27: 60 | L27: brN | M27: 2.14 | N27: 1Button | P27: coffee | V27: 2764
A28: micro: | B28: 1 | C28: 1445365812578 | D28: 1492 | E28: 849 | F28: 374 | G28: 6Button | H28: SetTime | I28: but | J28: f | K28: 60 | L28: brN | M28: 2.14 | N28: 3Button | O28: x | P28: coffee | V28: 6990
A29: micro: | B29: 1 | C29: 1445365816484 | D29: 1011 | E29: 0 | F29: 0 | G29: BEEP | H29: SetTime | I29: but | J29: f | K29: 60 | L29: brN | M29: 2.14 | N29: 0Button | O29: x | P29: coffee | V29: 3906
A30: micro: | B30: 1 | C30: 1445365819749 | D30: 1482 | E30: 749 | F30: 254 | G30: PowerButton | H30: SetTime | I30: but | J30: f | K30: 60 | L30: brN | M30: 2.14 | N30: PowerButton | P30: coffee | V30: 3265
A31: micro: | B31: 1 | C31: 1445365828992 | D31: 340 | E31: 830 | F31: 379 | G31: 6Button | H31: SetPower | I31: but | J31: f | K31: 60 | L31: brN | M31: 2.14 | N31: 7Button | O31: x | P31: coffee | V31: 9243
A32: micro: | B32: 1 | C32: 1445365834710 | D32: 4706 | E32: 830 | F32: 423 | G32: 9Button | H32: SetPower | I32: but | J32: f | K32: 60 | L32: brN | M32: 2.14 | N32: StartButton | O32: x | P32: coffee | V32: 5718
A33: micro: | B33: 1 | C33: 1445365839988 | D33: 1222 | E33: 620 | F33: 464 | G33: CancelButton | H33: SetPower | I33: but | J33: f | K33: 60 | L33: brN | M33: 2.14 | N33: CancelButton | P33: coffee | Q33: 37164 | R33: 36833 | V33: 5278 | X33: overlay | Y33: name | Z33: count | AA33: errors | AB33: p(error)
A34: micro: | B34: 2 | C34: 1445371468571 | D34: 681 | E34: 618 | F34: 254 | G34: TimerButton | H34: SetTime | I34: tou | J34: m | K34: 50 | L34: brN | M34: 2.57 | N34: TimerButton | P34: coffee | S34: 4 | T34: 2 | U34: 3 | V34: 5628583 | X34: Touchplate | Y34: tou | Z34: =COUNTIFS(sleepOverlay,Y34) -> 96 | AA34: =COUNTIFS(sleepOverlay,Y34,sleepError,"x") -> 2 | AB34: =AA34/Z34 -> 0.02083333333
A35: micro: | B35: 2 | C35: 1445371470194 | D35: 611 | E35: 628 | F35: 304 | G35: 1Button | H35: SetTime | I35: tou | J35: m | K35: 50 | L35: brN | M35: 2.57 | N35: 1Button | P35: coffee | V35: 1623 | X35: Shaped Bump Dots | Y35: but | Z35: =COUNTIFS(sleepOverlay,Y35) -> 96 | AA35: =COUNTIFS(sleepOverlay,Y35,sleepError,"x") -> 7 | AB35: =AA35/Z35 -> 0.07291666667
A36: micro: | B36: 2 | C36: 1445371472767 | D36: 540 | E36: 810 | F36: 286 | G36: 3Button | H36: SetTime | I36: tou | J36: m | K36: 50 | L36: brN | M36: 2.57 | N36: 3Button | P36: coffee | V36: 2573 | X36: Foam/Felt | Y36: tac | Z36: =COUNTIFS(sleepOverlay,Y36) -> 96 | AA36: =COUNTIFS(sleepOverlay,Y36,sleepError,"x") -> 0 | AB36: 0
A37: micro: | B37: 2 | C37: 1445371476323 | D37: 261 | E37: 757 | F37: 494 | G37: 0Button | H37: NotActive | I37: tou | J37: m | K37: 50 | L37: brN | M37: 2.57 | N37: 0Button | P37: coffee | V37: 3556 | X37: Bump Dots | Y37: dot | Z37: =COUNTIFS(sleepOverlay,Y37) -> 92 | AA37: =COUNTIFS(sleepOverlay,Y37,sleepError,"x") -> 8 | AB37: 0.08695652174
A38: micro: | B38: 2 | C38: 1445371480969 | D38: 310 | E38: 731 | F38: 217 | G38: PowerButton | H38: SetTime | I38: tou | J38: m | K38: 50 | L38: brN | M38: 2.57 | N38: PowerButton | P38: coffee | V38: 4646
A39: micro: | B39: 2 | C39: 1445371483663 | D39: 921 | E39: 628 | F39: 412 | G39: 7Button | H39: SetPower | I39: tou | J39: m | K39: 50 | L39: brN | M39: 2.57 | N39: 7Button | P39: coffee | V39: 2694
A40: micro: | B40: 2 | C40: 1445371486788 | D40: 782 | E40: 819 | F40: 498 | G40: StartButton | H40: SetPower | I40: tou | J40: m | K40: 50 | L40: brN | M40: 2.57 | N40: StartButton | P40: coffee | V40: 3125
A41: micro: | B41: 2 | C41: 1445371489251 | D41: 340 | E41: 672 | F41: 484 | G41: CancelButton | H41: SetPower | I41: tou | J41: m | K41: 50 | L41: brN | M41: 2.57 | N41: CancelButton | P41: coffee | Q41: 20680 | R41: 19239 | V41: 2463
A42: micro: | B42: 2 | C42: 1445371751378 | D42: 1933 | E42: 634 | F42: 263 | G42: TimerButton | H42: SetTime | I42: dot | J42: m | K42: 50 | L42: brN | M42: 2.57 | N42: TimerButton | P42: coffee | S42: 2 | T42: 2 | U42: 3 | V42: 262127
A43: micro: | B43: 2 | C43: 1445371756375 | D43: 2954 | E43: 660 | F43: 312 | G43: 1Button | H43: SetTime | I43: dot | J43: m | K43: 50 | L43: brN | M43: 2.57 | N43: 1Button | P43: coffee | V43: 4997
A44: micro: | B44: 2 | C44: 1445371761162 | D44: 3765 | E44: 741 | F44: 356 | G44: 5Button | H44: SetTime | I44: dot | J44: m | K44: 50 | L44: brN | M44: 2.57 | N44: 3Button | O44: x | P44: coffee | V44: 4787
A45: micro: | B45: 2 | C45: 1445371769484 | D45: 400 | E45: 758 | F45: 414 | G45: 8Button | H45: SetTime | I45: dot | J45: m | K45: 50 | L45: brN | M45: 2.57 | N45: 0Button | O45: x | P45: coffee | V45: 8322
A46: micro: | B46: 2 | C46: 1445371780700 | D46: 340 | E46: 707 | F46: 246 | G46: PowerButton | H46: SetTime | I46: dot | J46: m | K46: 50 | L46: brN | M46: 2.57 | N46: PowerButton | P46: coffee | V46: 11216
A47: micro: | B47: 2 | C47: 1445371784496 | D47: 261 | E47: 644 | F47: 303 | G47: 1Button | H47: SetPower | I47: dot | J47: m | K47: 50 | L47: brN | M47: 2.57 | N47: 7Button | O47: x | P47: coffee | V47: 3796
A48: micro: | B48: 2 | C48: 1445371793929 | D48: 9433 | E48: 818 | F48: 480 | G48: StartButton | H48: SetPower | I48: dot | J48: m | K48: 50 | L48: brN | M48: 2.57 | N48: StartButton | P48: coffee | V48: 9433
A49: micro: | B49: 2 | C49: 1445371796603 | D49: 791 | E49: 639 | F49: 463 | G49: CancelButton | H49: NotActive | I49: dot | J49: m | K49: 50 | L49: brN | M49: 2.57 | N49: CancelButton | P49: coffee | Q49: 45225 | R49: 45085 | V49: 2674
A50: micro: | B50: 2 | C50: 1445371974769 | D50: 611 | E50: 672 | F50: 224 | G50: TimerButton | H50: SetTime | I50: but | J50: m | K50: 50 | L50: brN | M50: 2.57 | N50: TimerButton | P50: coffee | S50: 5 | T50: 4 | U50: 4 | V50: 178166
A51: micro: | B51: 2 | C51: 1445371976662 | D51: 881 | E51: 679 | F51: 310 | G51: 1Button | H51: SetTime | I51: but | J51: m | K51: 50 | L51: brN | M51: 2.57 | N51: 1Button | P51: coffee | V51: 1893
A52: micro: | B52: 2 | C52: 1445371978645 | D52: 771 | E52: 826 | F52: 310 | G52: 3Button | H52: SetTime | I52: but | J52: m | K52: 50 | L52: brN | M52: 2.57 | N52: 3Button | P52: coffee | V52: 1983
A53: micro: | B53: 2 | C53: 1445371980137 | D53: 481 | E53: 761 | F53: 467 | G53: 0Button | H53: SetTime | I53: but | J53: m | K53: 50 | L53: brN | M53: 2.57 | N53: 0Button | P53: coffee | V53: 1492
A54: micro: | B54: 2 | C54: 1445371985935 | D54: 821 | E54: 775 | F54: 224 | G54: PowerButton | H54: SetTime | I54: but | J54: m | K54: 50 | L54: brN | M54: 2.57 | N54: PowerButton | P54: coffee | V54: 5798
A55: micro: | B55: 2 | C55: 1445371989080 | D55: 371 | E55: 661 | F55: 417 | G55: 7Button | H55: SetPower | I55: but | J55: m | K55: 50 | L55: brN | M55: 2.57 | N55: 7Button | P55: coffee | V55: 3145
A56: micro: | B56: 2 | C56: 1445371993516 | D56: 721 | E56: 800 | F56: 458 | G56: StartButton | H56: NotActive | I56: but | J56: m | K56: 50 | L56: brN | M56: 2.57 | N56: StartButton | P56: coffee | V56: 4436
A57: micro: | B57: 2 | C57: 1445371999835 | D57: 5167 | E57: 653 | F57: 474 | G57: CancelButton | H57: NotActive | I57: but | J57: m | K57: 50 | L57: brN | M57: 2.57 | N57: CancelButton | P57: coffee | Q57: 25066 | R57: 22302 | V57: 6319
A58: micro: | B58: 2 | C58: 1445372144563 | D58: 641 | E58: 634 | F58: 229 | G58: TimerButton | H58: SetTime | I58: tac | J58: m | K58: 50 | L58: brN | M58: 2.57 | N58: TimerButton | P58: coffee | S58: 5 | T58: 5 | U58: 4 | V58: 144728
A59: micro: | B59: 2 | C59: 1445372147097 | D59: 631 | E59: 680 | F59: 289 | G59: 1Button | H59: SetTime | I59: tac | J59: m | K59: 50 | L59: brN | M59: 2.57 | N59: 1Button | P59: coffee | V59: 2534
A60: micro: | B60: 2 | C60: 1445372150452 | D60: 591 | E60: 831 | F60: 310 | G60: 3Button | H60: SetTime | I60: tac | J60: m | K60: 50 | L60: brN | M60: 2.57 | N60: 3Button | P60: coffee | V60: 3355
A61: micro: | B61: 2 | C61: 1445372151944 | D61: 481 | E61: 742 | F61: 319 | G61: 2Button | H61: SetTime | I61: tac | J61: m | K61: 50 | L61: brN | M61: 2.57 | N61: 2Button | P61: coffee | V61: 1492
A62: micro: | B62: 2 | C62: 1445372156390 | D62: 380 | E62: 747 | F62: 224 | G62: PowerButton | H62: SetTime | I62: tac | J62: m | K62: 50 | L62: brN | M62: 2.57 | N62: PowerButton | P62: coffee | V62: 4446
A63: micro: | B63: 2 | C63: 1445372159325 | D63: 221 | E63: 656 | F63: 428 | G63: 7Button | H63: SetPower | I63: tac | J63: m | K63: 50 | L63: brN | M63: 2.57 | N63: 7Button | P63: coffee | V63: 2935
A64: micro: | B64: 2 | C64: 1445372164122 | D64: 772 | E64: 838 | F64: 487 | G64: StartButton | H64: SetPower | I64: tac | J64: m | K64: 50 | L64: brN | M64: 2.57 | N64: StartButton | P64: coffee | V64: 4797
A65: micro: | B65: 2 | C65: 1445372167697 | D65: 2123 | E65: 634 | F65: 478 | G65: CancelButton | H65: SetPower | I65: tac | J65: m | K65: 50 | L65: brN | M65: 2.57 | N65: CancelButton | P65: coffee | Q65: 23134 | R65: 21172 | V65: 3575
A66: micro: | B66: 3 | C66: 1445375613481 | D66: 2153 | E66: 646 | F66: 224 | G66: TimerButton | H66: NotActive | I66: but | J66: f | K66: 50 | L66: brY | M66: 2.04 | N66: TimerButton | P66: coffee | S66: 5 | T66: 5 | U66: 5 | V66: 3445784
A67: micro: | B67: 3 | C67: 1445375616205 | D67: 1712 | E67: 662 | F67: 315 | G67: 1Button | H67: SetTime | I67: but | J67: f | K67: 50 | L67: brY | M67: 2.04 | N67: 1Button | P67: coffee | V67: 2724
A68: micro: | B68: 3 | C68: 1445375617928 | D68: 711 | E68: 844 | F68: 295 | G68: 3Button | H68: SetTime | I68: but | J68: f | K68: 50 | L68: brY | M68: 2.04 | N68: 3Button | P68: coffee | V68: =C68-C67 -> 1723
A69: micro: | B69: 3 | C69: 1445375620051 | D69: 180 | E69: 740 | F69: 471 | G69: 0Button | H69: SetTime | I69: but | J69: f | K69: 50 | L69: brY | M69: 2.04 | N69: 0Button | P69: coffee | V69: 2123
A70: micro: | B70: 3 | C70: 1445375624377 | D70: 3315 | E70: 746 | F70: 234 | G70: PowerButton | H70: SetTime | I70: but | J70: f | K70: 50 | L70: brY | M70: 2.04 | N70: PowerButton | P70: coffee | V70: 4326
A71: micro: | B71: 3 | C71: 1445375631297 | D71: 5908 | E71: 643 | F71: 416 | G71: 7Button | H71: SetPower | I71: but | J71: f | K71: 50 | L71: brY | M71: 2.04 | N71: 7Button | P71: coffee | V71: 6920
A72: micro: | B72: 3 | C72: 1445375635393 | D72: 1753 | E72: 799 | F72: 499 | G72: StartButton | H72: SetPower | I72: but | J72: f | K72: 50 | L72: brY | M72: 2.04 | N72: StartButton | P72: coffee | V72: 4096
A73: micro: | B73: 3 | C73: 1445375638437 | D73: 1362 | E73: 670 | F73: 489 | G73: CancelButton | H73: Cooking | I73: but | J73: f | K73: 50 | L73: brY | M73: 2.04 | N73: CancelButton | P73: coffee | Q73: 24956 | R73: 22953 | V73: 3044
A74: micro: | B74: 3 | C74: 1445375899643 | D74: 9203 | E74: 630 | F74: 240 | G74: TimerButton | H74: NotActive | I74: tou | J74: f | K74: 50 | L74: brY | M74: 2.04 | N74: TimerButton | P74: coffee | S74: 5 | T74: 5 | U74: 2 | V74: 261206
A75: micro: | B75: 3 | C75: 1445375902417 | D75: 1763 | E75: 640 | F75: 304 | G75: 1Button | H75: SetTime | I75: tou | J75: f | K75: 50 | L75: brY | M75: 2.04 | N75: 1Button | P75: coffee | V75: 2774
A76: micro: | B76: 3 | C76: 1445375904880 | D76: 1442 | E76: 845 | F76: 292 | G76: 3Button | H76: SetTime | I76: tou | J76: f | K76: 50 | L76: brY | M76: 2.04 | N76: 3Button | P76: coffee | V76: 2463
A77: micro: | B77: 3 | C77: 1445375907855 | D77: 1963 | E77: 753 | F77: 464 | G77: 0Button | H77: SetTime | I77: tou | J77: f | K77: 50 | L77: brY | M77: 2.04 | N77: 0Button | P77: coffee | V77: 2975
A78: micro: | B78: 3 | C78: 1445375911300 | D78: 2434 | E78: 762 | F78: 248 | G78: PowerButton | H78: SetTime | I78: tou | J78: f | K78: 50 | L78: brY | M78: 2.04 | N78: PowerButton | P78: coffee | V78: 3445
A79: micro: | B79: 3 | C79: 1445375917629 | D79: 4637 | E79: 640 | F79: 412 | G79: 7Button | H79: SetPower | I79: tou | J79: f | K79: 50 | L79: brY | M79: 2.04 | N79: 7Button | P79: coffee | V79: 6329
A80: micro: | B80: 3 | C80: 1445375921725 | D80: 3085 | E80: 834 | F80: 475 | G80: StartButton | H80: SetPower | I80: tou | J80: f | K80: 50 | L80: brY | M80: 2.04 | N80: StartButton | P80: coffee | V80: 4096
A81: micro: | B81: 3 | C81: 1445375924589 | D81: 1843 | E81: 630 | F81: 484 | G81: CancelButton | H81: Cooking | I81: tou | J81: f | K81: 50 | L81: brY | M81: 2.04 | N81: CancelButton | P81: coffee | Q81: 24946 | R81: 24265 | V81: 2864
A82: micro: | B82: 3 | C82: 1445376088735 | D82: 3235 | E82: 630 | F82: 240 | G82: TimerButton | H82: SetPower | I82: tac | J82: f | K82: 50 | L82: brY | M82: 2.04 | N82: TimerButton | P82: coffee | S82: 5 | T82: 5 | U82: 5 | V82: 164146
A83: micro: | B83: 3 | C83: 1445376091138 | D83: 1392 | E83: 640 | F83: 314 | G83: 1Button | H83: SetTime | I83: tac | J83: f | K83: 50 | L83: brY | M83: 2.04 | N83: 1Button | P83: coffee | V83: 2403
A84: micro: | B84: 3 | C84: 1445376093261 | D84: 941 | E84: 827 | F84: 311 | G84: 3Button | H84: SetTime | I84: tac | J84: f | K84: 50 | L84: brY | M84: 2.04 | N84: 3Button | P84: coffee | V84: 2123
A85: micro: | B85: 3 | C85: 1445376095675 | D85: 1402 | E85: 739 | F85: 479 | G85: 0Button | H85: SetTime | I85: tac | J85: f | K85: 50 | L85: brY | M85: 2.04 | N85: 0Button | P85: coffee | V85: 2414
A86: micro: | B86: 3 | C86: 1445376098038 | D86: 1352 | E86: 728 | F86: 252 | G86: PowerButton | H86: SetTime | I86: tac | J86: f | K86: 50 | L86: brY | M86: 2.04 | N86: PowerButton | P86: coffee | V86: 2363
A87: micro: | B87: 3 | C87: 1445376103226 | D87: 791 | E87: 651 | F87: 425 | G87: 7Button | H87: SetPower | I87: tac | J87: f | K87: 50 | L87: brY | M87: 2.04 | N87: 7Button | P87: coffee | V87: 5188
A88: micro: | B88: 3 | C88: 1445376106430 | D88: 2193 | E88: 823 | F88: 475 | G88: StartButton | H88: SetPower | I88: tac | J88: f | K88: 50 | L88: brY | M88: 2.04 | N88: StartButton | P88: coffee | V88: 3204
A89: micro: | B89: 3 | C89: 1445376109355 | D89: 1903 | E89: 630 | F89: 485 | G89: CancelButton | H89: Cooking | I89: tac | J89: f | K89: 50 | L89: brY | M89: 2.04 | N89: CancelButton | P89: coffee | Q89: 20620 | R89: 19908 | V89: 2925
A90: micro: | B90: 3 | C90: 1445376319326 | D90: 3695 | E90: 668 | F90: 240 | G90: TimerButton | H90: NotActive | I90: dot | J90: f | K90: 50 | L90: brY | M90: 2.04 | N90: TimerButton | P90: coffee | S90: 1 | T90: 1 | U90: 1 | V90: 209971
A91: micro: | B91: 3 | C91: 1445376321690 | D91: 1352 | E91: 654 | F91: 315 | G91: 1Button | H91: SetTime | I91: dot | J91: f | K91: 50 | L91: brY | M91: 2.04 | N91: 1Button | P91: coffee | V91: 2364
A92: micro: | B92: 3 | C92: 1445376331975 | D92: 9124 | E92: 774 | F92: 478 | G92: 0Button | H92: SetTime | I92: dot | J92: f | K92: 50 | L92: brY | M92: 2.04 | N92: 0Button | P92: coffee | V92: 10285
A93: micro: | B93: 3 | C93: 1445376337733 | D93: 4747 | E93: 745 | F93: 216 | G93: PowerButton | H93: SetTime | I93: dot | J93: f | K93: 50 | L93: brY | M93: 2.04 | N93: PowerButton | P93: coffee | V93: 5758
A94: micro: | B94: 3 | C94: 1445376341398 | D94: 2654 | E94: 678 | F94: 418 | G94: 7Button | H94: SetPower | I94: dot | J94: f | K94: 50 | L94: brY | M94: 2.04 | N94: 7Button | P94: coffee | V94: 3665
A95: micro: | B95: 3 | C95: 1445376345865 | D95: 3445 | E95: 797 | F95: 465 | G95: StartButton | H95: SetPower | I95: dot | J95: f | K95: 50 | L95: brY | M95: 2.04 | N95: StartButton | P95: coffee | V95: 4467
A96: micro: | B96: 3 | C96: 1445376348869 | D96: 1983 | E96: 630 | F96: 465 | G96: CancelButton | H96: Cooking | I96: dot | J96: f | K96: 50 | L96: brY | M96: 2.04 | N96: CancelButton | P96: coffee | Q96: 29543 | R96: 29393 | V96: 3004
A97: micro: | B97: 4 | C97: 1445465871351 | D97: 10676 | E97: 654 | F97: 244 | G97: TimerButton | H97: NotActive | I97: tou | J97: f | K97: 60 | L97: brY | M97: 1.79 | N97: TimerButton | P97: coffee | S97: 4 | T97: 4 | U97: 4 | V97: 89522482
A98: micro: | B98: 4 | C98: 1445465875206 | D98: 2834 | E98: 648 | F98: 302 | G98: 1Button | H98: SetTime | I98: tou | J98: f | K98: 60 | L98: brY | M98: 1.79 | N98: 1Button | P98: coffee | V98: 3855
A99: micro: | B99: 4 | C99: 1445465877940 | D99: 1722 | E99: 831 | F99: 308 | G99: 3Button | H99: SetTime | I99: tou | J99: f | K99: 60 | L99: brY | M99: 1.79 | N99: 3Button | P99: coffee | V99: 2734
A100: micro: | B100: 4 | C100: 1445465881115 | D100: 2163 | E100: 745 | F100: 467 | G100: 0Button | H100: SetTime | I100: tou | J100: f | K100: 60 | L100: brY | M100: 1.79 | N100: 0Button | P100: coffee | V100: 3175
A101: micro: | B101: 4 | C101: 1445465886473 | D101: 4347 | E101: 750 | F101: 242 | G101: PowerButton | H101: SetTime | I101: tou | J101: f | K101: 60 | L101: brY | M101: 1.79 | N101: PowerButton | P101: coffee | V101: 5358
A102: micro: | B102: 4 | C102: 1445465890278 | D102: 541 | E102: 659 | F102: 412 | G102: 7Button | H102: SetPower | I102: tou | J102: f | K102: 60 | L102: brY | M102: 1.79 | N102: 7Button | P102: coffee | V102: 3805
A103: micro: | B103: 4 | C103: 1445465893653 | D103: 2363 | E103: 822 | F103: 479 | G103: StartButton | H103: SetPower | I103: tou | J103: f | K103: 60 | L103: brY | M103: 1.79 | N103: StartButton | P103: coffee | V103: 3375
A104: micro: | B104: 4 | C104: 1445465896868 | D104: 2194 | E104: 638 | F104: 456 | G104: CancelButton | H104: Cooking | I104: tou | J104: f | K104: 60 | L104: brY | M104: 1.79 | N104: CancelButton | P104: coffee | Q104: 25517 | R104: 25517 | V104: 3215
A105: micro: | B105: 4 | C105: 1445466322910 | D105: 8953 | E105: 621 | F105: 226 | G105: TimerButton | H105: NotActive | I105: dot | J105: f | K105: 60 | L105: brY | M105: 1.79 | N105: TimerButton | P105: coffee | S105: 2 | T105: 2 | U105: 1 | V105: 426042
A106: micro: | B106: 4 | C106: 1445466328258 | D106: 4346 | E106: 662 | F106: 311 | G106: 1Button | H106: SetTime | I106: dot | J106: f | K106: 60 | L106: brY | M106: 1.79 | N106: 1Button | P106: coffee | V106: 5348
A107: micro: | B107: 4 | C107: 1445466334487 | D107: 3966 | E107: 760 | F107: 288 | G107: 2Button | H107: SetTime | I107: dot | J107: f | K107: 60 | L107: brY | M107: 1.79 | N107: 3Button | O107: x | P107: coffee | V107: 6229
A108: micro: | B108: 4 | C108: 1445466339935 | D108: 4437 | E108: 744 | F108: 467 | G108: 0Button | H108: SetTime | I108: dot | J108: f | K108: 60 | L108: brY | M108: 1.79 | N108: 0Button | P108: coffee | V108: 5448
A109: micro: | B109: 4 | C109: 1445466346784 | D109: 5377 | E109: 768 | F109: 217 | G109: PowerButton | H109: SetTime | I109: dot | J109: f | K109: 60 | L109: brY | M109: 1.79 | N109: PowerButton | P109: coffee | V109: 6849
A110: micro: | B110: 4 | C110: 1445466360164 | D110: 12368 | E110: 803 | F110: 487 | G110: StartButton | H110: SetPower | I110: dot | J110: f | K110: 60 | L110: brY | M110: 1.79 | N110: 7Button | O110: x | P110: coffee | V110: 13380
A111: micro: | B111: 4 | C111: 1445466360264 | D111: 100 | E111: 803 | F111: 489 | G111: StartButton | H111: Cooking | I111: dot | J111: f | K111: 60 | L111: brY | M111: 1.79 | N111: StartButton | P111: coffee | V111: 100
A112: micro: | B112: 4 | C112: 1445466365582 | D112: 4307 | E112: 675 | F112: 484 | G112: CancelButton | H112: Cooking | I112: dot | J112: f | K112: 60 | L112: brY | M112: 1.79 | N112: CancelButton | P112: coffee | Q112: 42672 | R112: 42212 | V112: 5318
A113: micro: | B113: 4 | C113: 1445466625055 | D113: 5038 | E113: 638 | F113: 241 | G113: TimerButton | H113: NotActive | I113: tac | J113: f | K113: 60 | L113: brY | M113: 1.79 | N113: TimerButton | P113: coffee | S113: 4 | T113: 4 | U113: 4 | V113: 259473
A114: micro: | B114: 4 | C114: 1445466628189 | D114: 2123 | E114: 648 | F114: 308 | G114: 1Button | H114: SetTime | I114: tac | J114: f | K114: 60 | L114: brY | M114: 1.79 | N114: 1Button | P114: coffee | V114: 3134
A115: micro: | B115: 4 | C115: 1445466630382 | D115: 1181 | E115: 832 | F115: 310 | G115: 3Button | H115: SetTime | I115: tac | J115: f | K115: 60 | L115: brY | M115: 1.79 | N115: 3Button | P115: coffee | V115: 2193
A116: micro: | B116: 4 | C116: 1445466632926 | D116: 1532 | E116: 745 | F116: 476 | G116: 0Button | H116: SetTime | I116: tac | J116: f | K116: 60 | L116: brY | M116: 1.79 | N116: 0Button | P116: coffee | V116: 2544
A117: micro: | B117: 4 | C117: 1445466635930 | D117: 861 | E117: 748 | F117: 217 | G117: PowerButton | H117: SetTime | I117: tac | J117: f | K117: 60 | L117: brY | M117: 1.79 | N117: PowerButton | P117: coffee | V117: 3004
A118: micro: | B118: 4 | C118: 1445466640276 | D118: 2233 | E118: 648 | F118: 416 | G118: 7Button | H118: SetPower | I118: tac | J118: f | K118: 60 | L118: brY | M118: 1.79 | N118: 7Button | P118: coffee | V118: 4346
A119: micro: | B119: 4 | C119: 1445466644232 | D119: 2944 | E119: 822 | F119: 479 | G119: StartButton | H119: SetPower | I119: tac | J119: f | K119: 60 | L119: brY | M119: 1.79 | N119: StartButton | P119: coffee | V119: 3956
A120: micro: | B120: 4 | C120: 1445466646415 | D120: 1161 | E120: 638 | F120: 476 | G120: CancelButton | H120: Cooking | I120: tac | J120: f | K120: 60 | L120: brY | M120: 1.79 | N120: CancelButton | P120: coffee | Q120: 21360 | R120: 20258 | V120: 2183
A121: micro: | B121: 4 | C121: 1445466892379 | D121: 5608 | E121: 675 | F121: 223 | G121: TimerButton | H121: NotActive | I121: but | J121: f | K121: 60 | L121: brY | M121: 1.79 | N121: TimerButton | P121: coffee | S121: 4 | T121: 4 | U121: 4 | V121: 245964
A122: micro: | B122: 4 | C122: 1445466895073 | D122: 1683 | E122: 659 | F122: 325 | G122: 1Button | H122: SetTime | I122: but | J122: f | K122: 60 | L122: brY | M122: 1.79 | N122: 1Button | P122: coffee | V122: 2694
A123: micro: | B123: 4 | C123: 1445466898027 | D123: 941 | E123: 851 | F123: 307 | G123: 3Button | H123: SetTime | I123: but | J123: f | K123: 60 | L123: brY | M123: 1.79 | N123: 3Button | P123: coffee | V123: 2954
A124: micro: | B124: 4 | C124: 1445466900691 | D124: 1642 | E124: 745 | F124: 478 | G124: 0Button | H124: SetTime | I124: but | J124: f | K124: 60 | L124: brY | M124: 1.79 | N124: 0Button | P124: coffee | V124: 2664
A125: micro: | B125: 4 | C125: 1445466904516 | D125: 1772 | E125: 750 | F125: 248 | G125: PowerButton | H125: SetTime | I125: but | J125: f | K125: 60 | L125: brY | M125: 1.79 | N125: PowerButton | P125: coffee | V125: 3825
A126: micro: | B126: 4 | C126: 1445466907491 | D126: 1963 | E126: 662 | F126: 417 | G126: 7Button | H126: SetPower | I126: but | J126: f | K126: 60 | L126: brY | M126: 1.79 | N126: 7Button | P126: coffee | V126: 2975
A127: micro: | B127: 4 | C127: 1445466916664 | D127: 5989 | E127: 803 | F127: 479 | G127: StartButton | H127: SetPower | I127: but | J127: f | K127: 60 | L127: brY | M127: 1.79 | N127: StartButton | P127: coffee | V127: 9173
A128: micro: | B128: 4 | C128: 1445466920660 | D128: 541 | E128: 621 | F128: 455 | G128: CancelButton | H128: NotActive | I128: but | J128: f | K128: 60 | L128: brY | M128: 1.79 | N128: CancelButton | P128: coffee | Q128: 28281 | R128: 28281 | V128: 3996
A129: micro: | B129: 5 | C129: 1445368244005 | D129: 2714 | E129: 670 | F129: 258 | G129: TimerButton | H129: NotActive | I129: dot | J129: f | K129: 60 | L129: brY | M129: 2.06 | N129: TimerButton | P129: coffee | S129: 3 | T129: 2 | U129: 1 | V129: -98676655
A130: micro: | B130: 5 | C130: 1445368245557 | D130: 541 | E130: 659 | F130: 319 | G130: 1Button | H130: SetTime | I130: dot | J130: f | K130: 60 | L130: brY | M130: 2.06 | N130: 1Button | P130: coffee | V130: 1552
A131: micro: | B131: 5 | C131: 1445368247950 | D131: 350 | E131: 746 | F131: 312 | G131: 2Button | H131: SetTime | I131: dot | J131: f | K131: 60 | L131: brY | M131: 2.06 | N131: 3Button | P131: coffee | V131: 2393
A132: micro: | B132: 5 | C132: 1445368249973 | D132: 1001 | E132: 757 | F132: 482 | G132: 0Button | H132: SetTime | I132: dot | J132: f | K132: 60 | L132: brY | M132: 2.06 | N132: 0Button | P132: coffee | V132: =C132-C131 -> 2023
A133: micro: | B133: 5 | C133: 1445368252517 | D133: 270 | E133: 766 | F133: 219 | G133: PowerButton | H133: SetTime | I133: dot | J133: f | K133: 60 | L133: brY | M133: 2.06 | N133: PowerButton | P133: coffee | V133: 2544
A134: micro: | B134: 5 | C134: 1445368254870 | D134: 821 | E134: 644 | F134: 416 | G134: 7Button | H134: SetPower | I134: dot | J134: f | K134: 60 | L134: brY | M134: 2.06 | N134: 7Button | P134: coffee | V134: 2353
A135: micro: | B135: 5 | C135: 1445368263943 | D135: 6849 | E135: 837 | F135: 464 | G135: StartButton | H135: SetPower | I135: dot | J135: f | K135: 60 | L135: brY | M135: 2.06 | N135: StartButton | P135: coffee | V135: 9073
A136: micro: | B136: 5 | C136: 1445368272946 | D136: 470 | E136: 617 | F136: 468 | G136: CancelButton | H136: Cooking | I136: dot | J136: f | K136: 60 | L136: brY | M136: 2.06 | N136: CancelButton | P136: coffee | Q136: 28941 | R136: 28420 | V136: 9003
A137: micro: | B137: 5 | C137: 1445368480194 | D137: 460 | E137: 653 | F137: 232 | G137: TimerButton | H137: SetTime | I137: but | J137: f | K137: 60 | L137: brY | M137: 2.06 | N137: TimerButton | P137: coffee | S137: 5 | T137: 5 | U137: 5 | V137: 207248
A138: micro: | B138: 5 | C138: 1445368482007 | D138: 801 | E138: 655 | F138: 329 | G138: 1Button | H138: SetTime | I138: but | J138: f | K138: 60 | L138: brY | M138: 2.06 | N138: 1Button | P138: coffee | V138: 1813
A139: micro: | B139: 5 | C139: 1445368483930 | D139: 912 | E139: 828 | F139: 312 | G139: 3Button | H139: SetTime | I139: but | J139: f | K139: 60 | L139: brY | M139: 2.06 | N139: 3Button | P139: coffee | V139: 1923
A140: micro: | B140: 5 | C140: 1445368485852 | D140: 190 | E140: 741 | F140: 473 | G140: 0Button | H140: SetTime | I140: but | J140: f | K140: 60 | L140: brY | M140: 2.06 | N140: 0Button | P140: coffee | V140: 1922
A141: micro: | B141: 5 | C141: 1445368489688 | D141: 250 | E141: 730 | F141: 250 | G141: PowerButton | H141: SetTime | I141: but | J141: f | K141: 60 | L141: brY | M141: 2.06 | N141: PowerButton | P141: coffee | V141: 3836
A142: micro: | B142: 5 | C142: 1445368492242 | D142: 311 | E142: 644 | F142: 424 | G142: 7Button | H142: NotActive | I142: but | J142: f | K142: 60 | L142: brY | M142: 2.06 | N142: 7Button | P142: coffee | V142: 2554
A143: micro: | B143: 5 | C143: 1445368494224 | D143: 330 | E143: 857 | F143: 480 | G143: StartButton | H143: NotActive | I143: but | J143: f | K143: 60 | L143: brY | M143: 2.06 | N143: StartButton | P143: coffee | V143: 1982
A144: micro: | B144: 5 | C144: 1445368496748 | D144: 1212 | E144: 651 | F144: 469 | G144: CancelButton | H144: NotActive | I144: but | J144: f | K144: 60 | L144: brY | M144: 2.06 | N144: CancelButton | P144: coffee | Q144: 16554 | R144: 15532 | V144: 2524
A145: micro: | B145: 5 | C145: 1445368627827 | D145: 321 | E145: 668 | F145: 242 | G145: TimerButton | H145: SetTime | I145: tac | J145: f | K145: 60 | L145: brY | M145: 2.06 | N145: TimerButton | P145: coffee | S145: 4 | T145: 4 | U145: 4 | V145: 131079
A146: micro: | B146: 5 | C146: 1445368632613 | D146: 330 | E146: 655 | F146: 312 | G146: 1Button | H146: SetTime | I146: tac | J146: f | K146: 60 | L146: brY | M146: 2.06 | N146: 1Button | P146: coffee | V146: 4786
A147: micro: | B147: 5 | C147: 1445368634696 | D147: 330 | E147: 830 | F147: 313 | G147: 3Button | H147: SetTime | I147: tac | J147: f | K147: 60 | L147: brY | M147: 2.06 | N147: 3Button | P147: coffee | V147: 2083
A148: micro: | B148: 5 | C148: 1445368637911 | D148: 310 | E148: 741 | F148: 482 | G148: 0Button | H148: Cooking | I148: tac | J148: f | K148: 60 | L148: brY | M148: 2.06 | N148: 0Button | P148: coffee | V148: 3215
A149: micro: | B149: 5 | C149: 1445368639804 | D149: 621 | E149: 727 | F149: 243 | G149: PowerButton | H149: Cooking | I149: tac | J149: f | K149: 60 | L149: brY | M149: 2.06 | N149: PowerButton | P149: coffee | V149: 1893
A150: micro: | B150: 5 | C150: 1445368642347 | D150: 110 | E150: 658 | F150: 423 | G150: 7Button | H150: NotActive | I150: tac | J150: f | K150: 60 | L150: brY | M150: 2.06 | N150: 7Button | P150: coffee | V150: 2543
A151: micro: | B151: 5 | C151: 1445368644751 | D151: 1392 | E151: 818 | F151: 469 | G151: StartButton | H151: NotActive | I151: tac | J151: f | K151: 60 | L151: brY | M151: 2.06 | N151: StartButton | P151: coffee | V151: 2404
A152: micro: | B152: 5 | C152: 1445368646363 | D152: 601 | E152: 617 | F152: 496 | G152: CancelButton | H152: NotActive | I152: tac | J152: f | K152: 60 | L152: brY | M152: 2.06 | N152: CancelButton | P152: coffee | Q152: 18536 | R152: 18156 | V152: 1612
A153: micro: | B153: 5 | C153: 1445368830057 | D153: 2093 | E153: 634 | F153: 244 | G153: TimerButton | H153: NotActive | I153: tou | J153: f | K153: 60 | L153: brY | M153: 2.06 | N153: TimerButton | P153: coffee | S153: 1 | T153: 1 | U153: 1 | V153: 183694
A154: micro: | B154: 5 | C154: 1445368832331 | D154: 1262 | E154: 652 | F154: 292 | G154: 1Button | H154: SetTime | I154: tou | J154: f | K154: 60 | L154: brY | M154: 2.06 | N154: 1Button | P154: coffee | V154: 2274
A155: micro: | B155: 5 | C155: 1445368834644 | D155: 531 | E155: 827 | F155: 311 | G155: 3Button | H155: SetTime | I155: tou | J155: f | K155: 60 | L155: brY | M155: 2.06 | N155: 3Button | P155: coffee | V155: 2313
A156: micro: | B156: 5 | C156: 1445368837428 | D156: 1773 | E156: 740 | F156: 471 | G156: 0Button | H156: SetTime | I156: tou | J156: f | K156: 60 | L156: brY | M156: 2.06 | N156: 0Button | P156: coffee | V156: 2784
A157: micro: | B157: 5 | C157: 1445368845740 | D157: 5598 | E157: 706 | F157: 249 | G157: PowerButton | H157: SetTime | I157: tou | J157: f | K157: 60 | L157: brY | M157: 2.06 | N157: PowerButton | P157: coffee | V157: 8312
A158: micro: | B158: 5 | C158: 1445368848554 | D158: 1622 | E158: 644 | F158: 406 | G158: 7Button | H158: SetPower | I158: tou | J158: f | K158: 60 | L158: brY | M158: 2.06 | N158: 7Button | P158: coffee | V158: 2814
A159: micro: | B159: 5 | C159: 1445368852410 | D159: 2845 | E159: 801 | F159: 485 | G159: StartButton | H159: SetPower | I159: tou | J159: f | K159: 60 | L159: brY | M159: 2.06 | N159: StartButton | P159: coffee | V159: 3856
A160: micro: | B160: 5 | C160: 1445368854563 | D160: 1132 | E160: 635 | F160: 468 | G160: CancelButton | H160: Cooking | I160: tou | J160: f | K160: 60 | L160: brY | M160: 2.06 | N160: CancelButton | P160: coffee | Q160: 24506 | R160: 24336 | V160: 2153
A161: micro: | B161: 6 | C161: 1445422927181 | D161: 3175 | E161: 618 | F161: 229 | G161: TimerButton | H161: SetTime | I161: but | J161: f | K161: 50 | L161: brN | M161: 1.77 | N161: TimerButton | P161: coffee | S161: 4 | T161: 4 | U161: 4 | V161: 54072618
A162: micro: | B162: 6 | C162: 1445422931036 | D162: 2844 | E162: 644 | F162: 302 | G162: 1Button | H162: SetTime | I162: but | J162: f | K162: 50 | L162: brN | M162: 1.77 | N162: 1Button | P162: coffee | V162: 3855
A163: micro: | B163: 6 | C163: 1445422933109 | D163: 1051 | E163: 828 | F163: 303 | G163: 3Button | H163: SetTime | I163: but | J163: f | K163: 50 | L163: brN | M163: 1.77 | N163: 3Button | P163: coffee | V163: 2073
A164: micro: | B164: 6 | C164: 1445422935313 | D164: 331 | E164: 753 | F164: 484 | G164: 0Button | H164: SetTime | I164: but | J164: f | K164: 50 | L164: brN | M164: 1.77 | N164: 0Button | P164: coffee | V164: 2204
A165: micro: | B165: 6 | C165: 1445422937906 | D165: 1582 | E165: 738 | F165: 249 | G165: PowerButton | H165: SetTime | I165: but | J165: f | K165: 50 | L165: brN | M165: 1.77 | N165: PowerButton | P165: coffee | V165: 2593
A166: micro: | B166: 6 | C166: 1445422945948 | D166: 3856 | E166: 644 | F166: 410 | G166: 7Button | H166: SetPower | I166: but | J166: f | K166: 50 | L166: brN | M166: 1.77 | N166: 7Button | P166: coffee | V166: 8042
A167: micro: | B167: 6 | C167: 1445422950665 | D167: 3706 | E167: 801 | F167: 459 | G167: StartButton | H167: SetPower | I167: but | J167: f | K167: 50 | L167: brN | M167: 1.77 | N167: StartButton | P167: coffee | V167: 4717
A168: micro: | B168: 6 | C168: 1445422973938 | D168: 2884 | E168: 719 | F168: 460 | G168: 0Button | H168: Cooking | I168: but | J168: f | K168: 50 | L168: brN | M168: 1.77 | N168: CancelButton | O168: x | P168: coffee | V168: 23273
A169: micro: | B169: 6 | C169: 1445423329710 | D169: 14711 | E169: 667 | F169: 237 | G169: TimerButton | H169: NotActive | I169: dot | J169: f | K169: 50 | L169: brN | M169: 1.77 | N169: TimerButton | P169: coffee | S169: 5 | T169: 5 | U169: 4 | V169: 355772
A170: micro: | B170: 6 | C170: 1445423331552 | D170: 831 | E170: 644 | F170: 296 | G170: 1Button | H170: SetTime | I170: dot | J170: f | K170: 50 | L170: brN | M170: 1.77 | N170: 1Button | P170: coffee | V170: 1842
A171: micro: | B171: 6 | C171: 1445423343680 | D171: 6770 | E171: 741 | F171: 475 | G171: 0Button | H171: SetTime | I171: dot | J171: f | K171: 50 | L171: brN | M171: 1.77 | N171: 0Button | P171: coffee | V171: 12128
A172: micro: | B172: 6 | C172: 1445423347585 | D172: 2894 | E172: 712 | F172: 228 | G172: PowerButton | H172: SetTime | I172: dot | J172: f | K172: 50 | L172: brN | M172: 1.77 | N172: PowerButton | P172: coffee | V172: 3905
A173: micro: | B173: 6 | C173: 1445423350399 | D173: 1802 | E173: 661 | F173: 414 | G173: 7Button | H173: SetPower | I173: dot | J173: f | K173: 50 | L173: brN | M173: 1.77 | N173: 7Button | P173: coffee | V173: 2814
A174: micro: | B174: 6 | C174: 1445423352553 | D174: 1142 | E174: 800 | F174: 494 | G174: StartButton | H174: SetPower | I174: dot | J174: f | K174: 50 | L174: brN | M174: 1.77 | N174: StartButton | P174: coffee | V174: 2154
A175: micro: | B175: 6 | C175: 1445423355867 | D175: 2283 | E175: 618 | F175: 453 | G175: CancelButton | H175: Cooking | I175: dot | J175: f | K175: 50 | L175: brN | M175: 1.77 | N175: CancelButton | P175: coffee | Q175: 26157 | R175: 21810 | V175: 3314
A176: micro: | B176: 6 | C176: 1445423599137 | D176: 240 | E176: 650 | F176: 224 | G176: TimerButton | H176: SetTime | I176: tou | J176: f | K176: 50 | L176: brN | M176: 1.77 | N176: TimerButton | P176: coffee | S176: 4 | T176: 4 | U176: 2 | V176: 243270
A177: micro: | B177: 6 | C177: 1445423604044 | D177: 3895 | E177: 644 | F177: 311 | G177: 1Button | H177: SetTime | I177: tou | J177: f | K177: 50 | L177: brN | M177: 1.77 | N177: 1Button | P177: coffee | V177: 4907
A178: micro: | B178: 6 | C178: 1445423606107 | D178: 270 | E178: 846 | F178: 306 | G178: 3Button | H178: SetTime | I178: tou | J178: f | K178: 50 | L178: brN | M178: 1.77 | N178: 3Button | P178: coffee | V178: 2063
A179: micro: | B179: 6 | C179: 1445423609131 | D179: 2012 | E179: 752 | F179: 489 | G179: 0Button | H179: SetTime | I179: tou | J179: f | K179: 50 | L179: brN | M179: 1.77 | N179: 0Button | P179: coffee | V179: 3024
A180: micro: | B180: 6 | C180: 1445423614149 | D180: 4006 | E180: 746 | F180: 228 | G180: PowerButton | H180: SetTime | I180: tou | J180: f | K180: 50 | L180: brN | M180: 1.77 | N180: PowerButton | P180: coffee | V180: 5018
A181: micro: | B181: 6 | C181: 1445423622491 | D181: 7331 | E181: 644 | F181: 416 | G181: 7Button | H181: SetPower | I181: tou | J181: f | K181: 50 | L181: brN | M181: 1.77 | N181: 7Button | P181: coffee | V181: 8342
A182: micro: | B182: 6 | C182: 1445423624944 | D182: 1432 | E182: 819 | F182: 473 | G182: StartButton | H182: SetPower | I182: tou | J182: f | K182: 50 | L182: brN | M182: 1.77 | N182: StartButton | P182: coffee | V182: 2453
A183: micro: | B183: 6 | C183: 1445423626877 | D183: 911 | E183: 617 | F183: 463 | G183: CancelButton | H183: Cooking | I183: tou | J183: f | K183: 50 | L183: brN | M183: 1.77 | N183: CancelButton | P183: coffee | Q183: 27740 | R183: 27740 | V183: 1933
A184: micro: | B184: 6 | C184: 1445423820756 | D184: 8102 | E184: 634 | F184: 215 | G184: TimerButton | H184: SetPower | I184: tac | J184: f | K184: 50 | L184: brN | M184: 1.77 | N184: TimerButton | P184: coffee | S184: 5 | T184: 5 | U184: 4 | V184: 193879
A185: micro: | B185: 6 | C185: 1445423824291 | D185: 2524 | E185: 644 | F185: 307 | G185: 1Button | H185: SetTime | I185: tac | J185: f | K185: 50 | L185: brN | M185: 1.77 | N185: 1Button | P185: coffee | V185: 3535
A186: micro: | B186: 6 | C186: 1445423826314 | D186: 1012 | E186: 843 | F186: 312 | G186: 3Button | H186: SetTime | I186: tac | J186: f | K186: 50 | L186: brN | M186: 1.77 | N186: 3Button | P186: coffee | V186: 2023
A187: micro: | B187: 6 | C187: 1445423829949 | D187: 701 | E187: 742 | F187: 470 | G187: 0Button | H187: NotActive | I187: tac | J187: f | K187: 50 | L187: brN | M187: 1.77 | N187: 0Button | P187: coffee | V187: 3635
A188: micro: | B188: 6 | C188: 1445423832513 | D188: 1553 | E188: 748 | F188: 250 | G188: PowerButton | H188: NotActive | I188: tac | J188: f | K188: 50 | L188: brN | M188: 1.77 | N188: PowerButton | P188: coffee | V188: 2564
A189: micro: | B189: 6 | C189: 1445423837290 | D189: 3766 | E189: 655 | F189: 417 | G189: 7Button | H189: SetPower | I189: tac | J189: f | K189: 50 | L189: brN | M189: 1.77 | N189: 7Button | P189: coffee | V189: 4777
A190: micro: | B190: 6 | C190: 1445423840034 | D190: 1733 | E190: 837 | F190: 475 | G190: StartButton | H190: SetPower | I190: tac | J190: f | K190: 50 | L190: brN | M190: 1.77 | N190: StartButton | P190: coffee | V190: 2744
A191: micro: | B191: 6 | C191: 1445423842707 | D191: 1021 | E191: 618 | F191: 486 | G191: CancelButton | H191: SetPower | I191: tac | J191: f | K191: 50 | L191: brN | M191: 1.77 | N191: CancelButton | P191: coffee | Q191: 21951 | R191: 21951 | V191: 2673
A192: micro: | B192: 7 | C192: 1445426291388 | D192: 3004 | E192: 649 | F192: 242 | G192: TimerButton | H192: NotActive | I192: tac | J192: f | K192: 20 | L192: brN | M192: 1.85 | N192: TimerButton | P192: coffee | S192: 5 | T192: 4 | U192: 4 | V192: 2448681
A193: micro: | B193: 7 | C193: 1445426293231 | D193: 821 | E193: 655 | F193: 302 | G193: 1Button | H193: SetTime | I193: tac | J193: f | K193: 20 | L193: brN | M193: 1.85 | N193: 1Button | P193: coffee | V193: 1843
A194: micro: | B194: 7 | C194: 1445426294683 | D194: 441 | E194: 830 | F194: 309 | G194: 3Button | H194: SetTime | I194: tac | J194: f | K194: 20 | L194: brN | M194: 1.85 | N194: 3Button | P194: coffee | V194: 1452
A195: micro: | B195: 7 | C195: 1445426296966 | D195: 1271 | E195: 740 | F195: 466 | G195: 0Button | H195: SetTime | I195: tac | J195: f | K195: 20 | L195: brN | M195: 1.85 | N195: 0Button | P195: coffee | V195: 2283
A196: micro: | B196: 7 | C196: 1445426298749 | D196: 771 | E196: 745 | F196: 222 | G196: PowerButton | H196: SetTime | I196: tac | J196: f | K196: 20 | L196: brN | M196: 1.85 | N196: PowerButton | P196: coffee | V196: =C196-C195 -> 1783
A197: micro: | B197: 7 | C197: 1445426300872 | D197: 1112 | E197: 642 | F197: 410 | G197: 7Button | H197: SetPower | I197: tac | J197: f | K197: 20 | L197: brN | M197: 1.85 | N197: 7Button | P197: coffee | V197: 2123
A198: micro: | B198: 7 | C198: 1445426302454 | D198: 571 | E198: 819 | F198: 479 | G198: StartButton | H198: SetPower | I198: tac | J198: f | K198: 20 | L198: brN | M198: 1.85 | N198: StartButton | P198: coffee | V198: 1582
A199: micro: | B199: 7 | C199: 1445426304728 | D199: 1262 | E199: 651 | F199: 477 | G199: CancelButton | H199: Cooking | I199: tac | J199: f | K199: 20 | L199: brN | M199: 1.85 | N199: CancelButton | P199: coffee | Q199: 13340 | R199: 13340 | V199: 2274
A200: micro: | B200: 7 | C200: 1445426497475 | D200: 5698 | E200: 643 | F200: 225 | G200: TimerButton | H200: NotActive | I200: tou | J200: f | K200: 20 | L200: brN | M200: 1.85 | N200: TimerButton | P200: coffee | S200: 3 | T200: 3 | U200: 2 | V200: 192747
... 181 more rows

Sheet Sheet1
B1: id | C1: time | D1: timegap | E1: x | F1: y | G1: buttonPressed | H1: state | I1: overlay | J1: mf | K1: age | L1: braille | M1: finger | N1: buttonExpected | O1: error | P1: mode | Q1: time | R1: altTime | S1: q1 | T1: q2 | U1: q3
A2: micro: | B2: 1 | C2: 1445365802824 | D2: 1211 | E2: 620 | F2: 236 | G2: TimerButton | H2: NotActive | I2: but | J2: f | K2: 60 | L2: brN | M2: 2.14 | N2: TimerButton | P2: coffee | S2: 4 | T2: 3 | U2: 2
A3: micro: | B3: 2 | C3: 1445371974769 | D3: 611 | E3: 672 | F3: 224 | G3: TimerButton | H3: SetTime | I3: but | J3: m | K3: 50 | L3: brN | M3: 2.57 | N3: TimerButton | P3: coffee | S3: 5 | T3: 4 | U3: 4 | Z3: sumQ1 | AA3: Avg Q1 | AC3: sum Q2 | AD3: avg Q2 | AF3: sum Q3 | AG3: avg Q3
A4: micro: | B4: 3 | C4: 1445375613481 | D4: 2153 | E4: 646 | F4: 224 | G4: TimerButton | H4: NotActive | I4: but | J4: f | K4: 50 | L4: brY | M4: 2.04 | N4: TimerButton | P4: coffee | S4: 5 | T4: 5 | U4: 5 | X4: dot | Y4: =COUNTIF(likeOverlay,X4) -> 12 | Z4: =SUMIFS(likeQ1,likeOverlay,X4) -> 36 | AA4: =Z4/Y4 -> 3 | AB4: 3 | AC4: =SUMIFS(likeQ2,likeOverlay,X4) -> 33 | AD4: =AC4/Y4 -> 2.75 | AE4: 2 | AF4: =SUMIFS(likeQ3,likeOverlay,X4) -> 26 | AG4: =AF4/Y4 -> 2.166666667 | AH4: 1
A5: micro: | B5: 4 | C5: 1445466892379 | D5: 5608 | E5: 675 | F5: 223 | G5: TimerButton | H5: NotActive | I5: but | J5: f | K5: 60 | L5: brY | M5: 1.79 | N5: TimerButton | P5: coffee | S5: 4 | T5: 4 | U5: 4 | X5: tac | Y5: =COUNTIF(likeOverlay,X5) -> 12 | Z5: =SUMIFS(likeQ1,likeOverlay,X5) -> 55 | AA5: =Z5/Y5 -> 4.583333333 | AB5: 3 | AC5: =SUMIFS(likeQ2,likeOverlay,X5) -> 53 | AD5: =AC5/Y5 -> 4.416666667 | AE5: 2 | AF5: =SUMIFS(likeQ3,likeOverlay,X5) -> 48 | AG5: =AF5/Y5 -> 4 | AH5: 1
A6: micro: | B6: 5 | C6: 1445368480194 | D6: 460 | E6: 653 | F6: 232 | G6: TimerButton | H6: SetTime | I6: but | J6: f | K6: 60 | L6: brY | M6: 2.06 | N6: TimerButton | P6: coffee | S6: 5 | T6: 5 | U6: 5 | X6: but | Y6: =COUNTIF(likeOverlay,X6) -> 12 | Z6: =SUMIFS(likeQ1,likeOverlay,X6) -> 54 | AA6: 4.5 | AB6: 3 | AC6: =SUMIFS(likeQ2,likeOverlay,X6) -> 52 | AD6: =AC6/Y6 -> 4.333333333 | AE6: 2 | AF6: =SUMIFS(likeQ3,likeOverlay,X6) -> 47 | AG6: =AF6/Y6 -> 3.916666667 | AH6: 1
A7: micro: | B7: 6 | C7: 1445422927181 | D7: 3175 | E7: 618 | F7: 229 | G7: TimerButton | H7: SetTime | I7: but | J7: f | K7: 50 | L7: brN | M7: 1.77 | N7: TimerButton | P7: coffee | S7: 4 | T7: 4 | U7: 4 | X7: tou | Y7: =COUNTIF(likeOverlay,X7) -> 12 | Z7: =SUMIFS(likeQ1,likeOverlay,X7) -> 43 | AA7: 3.583333333 | AB7: 3 | AC7: =SUMIFS(likeQ2,likeOverlay,X7) -> 38 | AD7: =AC7/Y7 -> 3.166666667 | AE7: 2 | AF7: =SUMIFS(likeQ3,likeOverlay,X7) -> 29 | AG7: =AF7/Y7 -> 2.416666667 | AH7: 1
A8: micro: | B8: 7 | C8: 1445426933752 | D8: 25987 | E8: 632 | F8: 264 | G8: TimerButton | H8: NotActive | I8: but | J8: f | K8: 20 | L8: brN | M8: 1.85 | N8: TimerButton | P8: coffee | S8: 4 | T8: 4 | U8: 2
A9: micro: | B9: 8 | C9: 1445429966303 | D9: 1302 | E9: 650 | F9: 233 | G9: TimerButton | H9: SetTime | I9: but | J9: m | K9: 30 | L9: brY | M9: 2.25 | N9: TimerButton | P9: coffee | S9: 5 | T9: 5 | U9: 5
A10: micro: | B10: 9 | C10: 1445433312004 | D10: 20450 | E10: 632 | F10: 263 | G10: TimerButton | H10: NotActive | I10: but | J10: f | K10: 60 | L10: brY | M10: 1.77 | N10: TimerButton | P10: coffee | S10: 5 | T10: 5 | U10: 5
A11: micro: | B11: 10 | C11: 1445437999083 | D11: 170 | E11: 642 | F11: 263 | G11: TimerButton | H11: SetTime | I11: but | J11: f | K11: 60 | L11: brN | M11: 2.16 | N11: TimerButton | P11: coffee | S11: 5 | T11: 5 | U11: 4 | AC11: num
A12: micro: | B12: 11 | C12: 1445441357052 | D12: 4457 | E12: 642 | F12: 262 | G12: TimerButton | H12: NotActive | I12: but | J12: f | K12: 30 | L12: brY | M12: 1.77 | N12: TimerButton | P12: coffee | S12: 4 | T12: 4 | U12: 4 | X12: but | Y12: 4 | Z12: =Y12+(RAND()-0.5)/5 -> 3.955819309 | AA12: 1 | AB12: =AA12+(RAND()-0.5)/5 -> 1.013965223 | AC12: 3 | AD12: 2.918817181 | AE12: 2 | AF12: =AE12+(RAND()-0.5)/5 -> 2.092238971 | AG12: 2 | AH12: 1.988906068 | AI12: 3 | AJ12: =AI12+(RAND()-0.5)/5 -> 2.920918163
A13: micro: | B13: 12 | C13: 1445420173521 | D13: 901 | E13: 667 | F13: 225 | G13: TimerButton | H13: NotActive | I13: but | J13: f | K13: 40 | L13: brP | M13: 2.11 | N13: TimerButton | P13: coffee | S13: 4 | T13: 4 | U13: 3 | Y13: 5 | Z13: =Y13+(RAND()-0.5)/5 -> 5.067918556 | AA13: 1 | AB13: 0.9505330219 | AC13: 4 | AD13: 4.059922885 | AE13: 2 | AF13: =AE13+(RAND()-0.5)/5 -> 2.079254347 | AG13: 2 | AH13: 2.049693416 | AI13: 3 | AJ13: =AI13+(RAND()-0.5)/5 -> 2.907454306
A14: micro: | B14: 1 | C14: 1445365523212 | D14: 1502 | E14: 637 | F14: 216 | G14: TimerButton | H14: SetTime | I14: dot | J14: f | K14: 60 | L14: brN | M14: 2.14 | N14: TimerButton | P14: coffee | S14: 3 | T14: 2 | U14: 2 | Y14: 5 | Z14: 4.906340569 | AA14: 1 | AB14: 1.064641163 | AC14: 4 | AD14: 3.901724708 | AE14: 2 | AF14: =AE14+(RAND()-0.5)/5 -> 2.058568421 | AG14: 3 | AH14: 3.000052948 | AI14: 3 | AJ14: =AI14+(RAND()-0.5)/5 -> 2.973310465
A15: micro: | B15: 2 | C15: 1445371751378 | D15: 1933 | E15: 634 | F15: 263 | G15: TimerButton | H15: SetTime | I15: dot | J15: m | K15: 50 | L15: brN | M15: 2.57 | N15: TimerButton | P15: coffee | S15: 2 | T15: 2 | U15: 3 | Y15: 4 | Z15: 3.904691981 | AA15: 1 | AB15: 1.077923521 | AC15: 4 | AD15: 4.061546589 | AE15: 2 | AF15: =AE15+(RAND()-0.5)/5 -> 2.077928043 | AG15: 4 | AH15: 4.009530927 | AI15: 3 | AJ15: =AI15+(RAND()-0.5)/5 -> 3.068780598
A16: micro: | B16: 3 | C16: 1445376319326 | D16: 3695 | E16: 668 | F16: 240 | G16: TimerButton | H16: NotActive | I16: dot | J16: f | K16: 50 | L16: brY | M16: 2.04 | N16: TimerButton | P16: coffee | S16: 1 | T16: 1 | U16: 1 | Y16: 5 | Z16: 4.903034613 | AA16: 1 | AB16: 1.051479885 | AC16: 4 | AD16: 4.02809805 | AE16: 2 | AF16: =AE16+(RAND()-0.5)/5 -> 1.954988865 | AG16: 4 | AH16: 4.081630195 | AI16: 3 | AJ16: =AI16+(RAND()-0.5)/5 -> 2.941096814
A17: micro: | B17: 4 | C17: 1445466322910 | D17: 8953 | E17: 621 | F17: 226 | G17: TimerButton | H17: NotActive | I17: dot | J17: f | K17: 60 | L17: brY | M17: 1.79 | N17: TimerButton | P17: coffee | S17: 2 | T17: 2 | U17: 1 | Y17: 4 | Z17: 3.978364602 | AA17: 1 | AB17: 0.9140936935 | AC17: 4 | AD17: 3.912148657 | AE17: 2 | AF17: =AE17+(RAND()-0.5)/5 -> 2.094993126 | AG17: 4 | AH17: 4.081243105 | AI17: 3 | AJ17: =AI17+(RAND()-0.5)/5 -> 2.911519034
A18: micro: | B18: 5 | C18: 1445368244005 | D18: 2714 | E18: 670 | F18: 258 | G18: TimerButton | H18: NotActive | I18: dot | J18: f | K18: 60 | L18: brY | M18: 2.06 | N18: TimerButton | P18: coffee | S18: 3 | T18: 2 | U18: 1 | Y18: 4 | Z18: 4.050832469 | AA18: 1 | AB18: 1.064314042 | AC18: 4 | AD18: 4.030398363 | AE18: 2 | AF18: =AE18+(RAND()-0.5)/5 -> 1.927170452 | AG18: 4 | AH18: 4.082398715 | AI18: 3 | AJ18: =AI18+(RAND()-0.5)/5 -> 2.944317254
A19: micro: | B19: 6 | C19: 1445423329710 | D19: 14711 | E19: 667 | F19: 237 | G19: TimerButton | H19: NotActive | I19: dot | J19: f | K19: 50 | L19: brN | M19: 1.77 | N19: TimerButton | P19: coffee | S19: 5 | T19: 5 | U19: 4 | Y19: 5 | Z19: 5.07457917 | AA19: 1 | AB19: 1.038932232 | AC19: 5 | AD19: 4.995103964 | AE19: 2 | AF19: =AE19+(RAND()-0.5)/5 -> 1.985945078 | AG19: 4 | AH19: 4.045513369 | AI19: 3 | AJ19: =AI19+(RAND()-0.5)/5 -> 3.060927057
A20: micro: | B20: 7 | C20: 1445426709940 | D20: 5658 | E20: 616 | F20: 225 | G20: TimerButton | H20: NotActive | I20: dot | J20: f | K20: 20 | L20: brN | M20: 1.85 | N20: TimerButton | P20: coffee | S20: 2 | T20: 2 | U20: 1 | Y20: 5 | Z20: 4.966065554 | AA20: 1 | AB20: 0.9331992572 | AC20: 5 | AD20: 4.9833611 | AE20: 2 | AF20: =AE20+(RAND()-0.5)/5 -> 2.071861265 | AG20: 5 | AH20: 5.098085119 | AI20: 3 | AJ20: =AI20+(RAND()-0.5)/5 -> 2.961179138
A21: micro: | B21: 8 | C21: 1445429633043 | D21: 4276 | E21: 654 | F21: 241 | G21: TimerButton | H21: SetPower | I21: dot | J21: m | K21: 30 | L21: brY | M21: 2.25 | N21: TimerButton | P21: coffee | S21: 3 | T21: 4 | U21: 3 | Y21: 5 | Z21: 5.001367616 | AA21: 1 | AB21: 1.062094083 | AC21: 5 | AD21: 5.026546299 | AE21: 2 | AF21: =AE21+(RAND()-0.5)/5 -> 1.946639532 | AG21: 5 | AH21: 4.919146673 | AI21: 3 | AJ21: =AI21+(RAND()-0.5)/5 -> 2.949086937
A22: micro: | B22: 9 | C22: 1445432808239 | D22: 11797 | E22: 669 | F22: 222 | G22: TimerButton | H22: NotActive | I22: dot | J22: f | K22: 60 | L22: brY | M22: 1.77 | N22: TimerButton | P22: coffee | S22: 4 | T22: 2 | U22: 1 | Y22: 4 | Z22: 4.050380215 | AA22: 1 | AB22: 1.052898271 | AC22: 5 | AD22: 5.066035604 | AE22: 2 | AF22: =AE22+(RAND()-0.5)/5 -> 2.088400999 | AG22: 5 | AH22: 4.974974897 | AI22: 3 | AJ22: =AI22+(RAND()-0.5)/5 -> 3.00924272
A23: micro: | B23: 10 | C23: 1445438428951 | D23: 5708 | E23: 653 | F23: 227 | G23: TimerButton | H23: NotActive | I23: dot | J23: f | K23: 60 | L23: brN | M23: 2.16 | N23: TimerButton | P23: coffee | S23: 4 | T23: 4 | U23: 4 | Y23: 4 | Z23: 3.983848302 | AA23: 1 | AB23: 1.010356485 | AC23: 5 | AD23: 4.975405117 | AE23: 2 | AF23: =AE23+(RAND()-0.5)/5 -> 1.912932281 | AG23: 5 | AH23: 4.96255652 | AI23: 3 | AJ23: =AI23+(RAND()-0.5)/5 -> 3.053503179
A24: micro: | B24: 11 | C24: 1445441208759 | D24: 2634 | E24: 625 | F24: 236 | G24: TimerButton | H24: SetPower | I24: dot | J24: f | K24: 30 | L24: brY | M24: 1.77 | N24: TimerButton | P24: coffee | S24: 2 | T24: 2 | U24: 1
A25: micro: | B25: 12 | C25: 1445418736124 | D25: 891 | E25: 612 | F25: 238 | G25: TimerButton | H25: SetTime | I25: dot | J25: f | K25: 40 | L25: brP | M25: 2.11 | N25: TimerButton | P25: coffee | S25: 5 | T25: 5 | U25: 4
A26: micro: | B26: 1 | C26: 1445363124283 | D26: 2464 | E26: 654 | F26: 231 | G26: TimerButton | H26: NotActive | I26: tac | J26: f | K26: 60 | L26: brN | M26: 2.14 | N26: TimerButton | P26: coffee | S26: 4 | T26: 4 | U26: 2
A27: micro: | B27: 2 | C27: 1445372144563 | D27: 641 | E27: 634 | F27: 229 | G27: TimerButton | H27: SetTime | I27: tac | J27: m | K27: 50 | L27: brN | M27: 2.57 | N27: TimerButton | P27: coffee | S27: 5 | T27: 5 | U27: 4
A28: micro: | B28: 3 | C28: 1445376088735 | D28: 3235 | E28: 630 | F28: 240 | G28: TimerButton | H28: SetPower | I28: tac | J28: f | K28: 50 | L28: brY | M28: 2.04 | N28: TimerButton | P28: coffee | S28: 5 | T28: 5 | U28: 5
A29: micro: | B29: 4 | C29: 1445466625055 | D29: 5038 | E29: 638 | F29: 241 | G29: TimerButton | H29: NotActive | I29: tac | J29: f | K29: 60 | L29: brY | M29: 1.79 | N29: TimerButton | P29: coffee | S29: 4 | T29: 4 | U29: 4
A30: micro: | B30: 5 | C30: 1445368627827 | D30: 321 | E30: 668 | F30: 242 | G30: TimerButton | H30: SetTime | I30: tac | J30: f | K30: 60 | L30: brY | M30: 2.06 | N30: TimerButton | P30: coffee | S30: 4 | T30: 4 | U30: 4
A31: micro: | B31: 6 | C31: 1445423820756 | D31: 8102 | E31: 634 | F31: 215 | G31: TimerButton | H31: SetPower | I31: tac | J31: f | K31: 50 | L31: brN | M31: 1.77 | N31: TimerButton | P31: coffee | S31: 5 | T31: 5 | U31: 4
A32: micro: | B32: 7 | C32: 1445426291388 | D32: 3004 | E32: 649 | F32: 242 | G32: TimerButton | H32: NotActive | I32: tac | J32: f | K32: 20 | L32: brN | M32: 1.85 | N32: TimerButton | P32: coffee | S32: 5 | T32: 4 | U32: 4
A33: micro: | B33: 8 | C33: 1445430201551 | D33: 1132 | E33: 634 | F33: 235 | G33: TimerButton | H33: SetTime | I33: tac | J33: m | K33: 30 | L33: brY | M33: 2.25 | N33: TimerButton | P33: coffee | S33: 5 | T33: 5 | U33: 5
A34: micro: | B34: 9 | C34: 1445433117784 | D34: 2433 | E34: 632 | F34: 228 | G34: TimerButton | H34: NotActive | I34: tac | J34: f | K34: 60 | L34: brY | M34: 1.77 | N34: TimerButton | P34: coffee | S34: 5 | T34: 5 | U34: 5
A35: micro: | B35: 10 | C35: 1445438681164 | D35: 3295 | E35: 660 | F35: 262 | G35: TimerButton | H35: SetPower | I35: tac | J35: f | K35: 60 | L35: brN | M35: 2.16 | N35: TimerButton | P35: coffee | S35: 5 | T35: 4 | U35: 4
A36: micro: | B36: 11 | C36: 1445441024163 | D36: 12398 | E36: 658 | F36: 256 | G36: TimerButton | H36: NotActive | I36: tac | J36: f | K36: 30 | L36: brY | M36: 1.77 | N36: TimerButton | P36: coffee | S36: 3 | T36: 3 | U36: 2
A37: micro: | B37: 12 | C37: 1445419536165 | D37: 811 | E37: 629 | F37: 247 | G37: TimerButton | H37: SetTime | I37: tac | J37: f | K37: 40 | L37: brP | M37: 2.11 | N37: TimerButton | P37: coffee | S37: 5 | T37: 5 | U37: 5
A38: micro: | B38: 1 | C38: 1445365104570 | D38: 15782 | E38: 637 | F38: 228 | G38: TimerButton | H38: NotActive | I38: tou | J38: f | K38: 60 | L38: brN | M38: 2.14 | N38: TimerButton | P38: coffee | S38: 1 | T38: 1 | U38: 1
A39: micro: | B39: 2 | C39: 1445371468571 | D39: 681 | E39: 618 | F39: 254 | G39: TimerButton | H39: SetTime | I39: tou | J39: m | K39: 50 | L39: brN | M39: 2.57 | N39: TimerButton | P39: coffee | S39: 4 | T39: 2 | U39: 3
A40: micro: | B40: 3 | C40: 1445375899643 | D40: 9203 | E40: 630 | F40: 240 | G40: TimerButton | H40: NotActive | I40: tou | J40: f | K40: 50 | L40: brY | M40: 2.04 | N40: TimerButton | P40: coffee | S40: 5 | T40: 5 | U40: 2
A41: micro: | B41: 4 | C41: 1445465871351 | D41: 10676 | E41: 654 | F41: 244 | G41: TimerButton | H41: NotActive | I41: tou | J41: f | K41: 60 | L41: brY | M41: 1.79 | N41: TimerButton | P41: coffee | S41: 4 | T41: 4 | U41: 4
A42: micro: | B42: 5 | C42: 1445368830057 | D42: 2093 | E42: 634 | F42: 244 | G42: TimerButton | H42: NotActive | I42: tou | J42: f | K42: 60 | L42: brY | M42: 2.06 | N42: TimerButton | P42: coffee | S42: 1 | T42: 1 | U42: 1
A43: micro: | B43: 6 | C43: 1445423599137 | D43: 240 | E43: 650 | F43: 224 | G43: TimerButton | H43: SetTime | I43: tou | J43: f | K43: 50 | L43: brN | M43: 1.77 | N43: TimerButton | P43: coffee | S43: 4 | T43: 4 | U43: 2
A44: micro: | B44: 7 | C44: 1445426497475 | D44: 5698 | E44: 643 | F44: 225 | G44: TimerButton | H44: NotActive | I44: tou | J44: f | K44: 20 | L44: brN | M44: 1.85 | N44: TimerButton | P44: coffee | S44: 3 | T44: 3 | U44: 2
A45: micro: | B45: 8 | C45: 1445429316608 | D45: 3505 | E45: 633 | F45: 235 | G45: TimerButton | H45: NotActive | I45: tou | J45: m | K45: 30 | L45: brY | M45: 2.25 | N45: TimerButton | P45: coffee | S45: 5 | T45: 5 | U45: 5
A46: micro: | B46: 9 | C46: 1445433587159 | D46: 17134 | E46: 616 | F46: 226 | G46: TimerButton | H46: NotActive | I46: tou | J46: f | K46: 60 | L46: brY | M46: 1.77 | N46: TimerButton | P46: coffee | S46: 4 | T46: 3 | U46: 3
A47: micro: | B47: 10 | C47: 1445437586630 | D47: 350 | E47: 655 | F47: 230 | G47: TimerButton | H47: SetTime | I47: tou | J47: f | K47: 60 | L47: brN | M47: 2.16 | N47: TimerButton | P47: coffee | S47: 4 | T47: 4 | U47: 3
A48: micro: | B48: 11 | C48: 1445440771129 | D48: 5778 | E48: 661 | F48: 249 | G48: TimerButton | H48: NotActive | I48: tou | J48: f | K48: 30 | L48: brY | M48: 1.77 | N48: TimerButton | P48: coffee | S48: 4 | T48: 3 | U48: 1
A49: micro: | B49: 12 | C49: 1445419036066 | D49: 4066 | E49: 644 | F49: 238 | G49: TimerButton | H49: NotActive | I49: tou | J49: f | K49: 40 | L49: brP | M49: 2.11 | N49: TimerButton | P49: coffee | S49: 4 | T49: 3 | U49: 2
